{"text_format":"1","workbook":"xlsx","n_sheets":7,"sheets":["Global_Simulation_Parameters","Facility_List","Composition","InternalUseOnly_Feedbacks","InternalUseOnly_FeedbackFormula","InternalUseOnly_CondFormat","InternalUseOnly_Validation"],"not_rendered":{"charts":0,"images":0,"macros":1,"external_links":0,"defined_names":0,"comments":3,"pivot_tables":0},"unopened":[],"bounds":{"document_bytes":16777216,"sheet_cells":100000,"rows_first":2000,"rows_last":500,"rows_between":2000,"halvings":0,"cell_chars":16384,"cell_head_chars":4096},"cells_cut":0,"cells_raw":0,"read":"whole","date_system":"1900"}

{"sheet":"Global_Simulation_Parameters","index":0,"n_rows":1,"n_cols":2,"rows_kept":1,"cut":false,"hidden":false,"merged":[]}
["Output Directory","output/Thermodynamics"]

{"sheet":"Facility_List","index":1,"n_rows":1,"n_cols":11,"rows_kept":1,"cut":false,"hidden":true,"merged":[]}
["Facility_ID","Latitude","Longitude","Region","Sector","Leak Emission Data Source","Leak Survey Method","Filename for User Specified Leaks","Pneumatic Data Source","Reporting Year","Composition Profile ID"]

{"sheet":"Composition","index":2,"n_rows":7,"n_cols":20,"rows_kept":7,"cut":false,"hidden":false,"merged":[]}
["Composition Profile ID","Composition Data Source","Condensate (or OIL) formation","Number of Separator Stages","API Gravity","Gas to Oil Ratio [scf/bbl]","Temperature [F]","1st Stage Pressure [psia]","2nd Stage Pressure [psia]","Methane [molar fraction]","Ethane [molar fraction]","Propane [molar fraction]","Butane [molar fraction]","Isobutane [molar fraction]","Pentane [molar fraction]","Isopentane [molar fraction]","Hexanes [molar fraction]","CO2 [molar fraction]","N2 [molar fraction]","H2S [molar fraction]"]
["Composition_1","thermodynamics","no",1,null,null,84,458,null,0.97909999999999997,1.29E-2]
["Composition_2","thermodynamics","no",1,null,null,77,21,null,0.98340000000000005,1.0999999999999999E-2]
["Composition_3","thermodynamics","no",1,null,null,78,1399,null,0.98309999999999997,1.1900000000000001E-2]
["Composition_4","thermodynamics","yes",1,45.9,8114,67,1089,null,0.84470000000000001,0.1278]
["Composition_5","thermodynamics","yes",1,46.5,3772,119,null,null,0.80840000000000001,0.1176]
["Composition_6","thermodynamics","yes",1,53.1,14319,null,500,null,0.8085,0.12909999999999999]

{"sheet":"InternalUseOnly_Feedbacks","index":3,"n_rows":3234,"n_cols":9,"rows_kept":3234,"cut":false,"hidden":true,"merged":[]}
[null,"FIPS","County","State","County_State",null,null,"Basin ID AAPG","Neme"]
[{"$f":"E2","v":"Autauga, AL"},1001,"Autauga","AL",{"$f":"C2&\", \"&D2","v":"Autauga, AL"},null,{"$f":"I2","v":"New England Province"},100,"New England Province"]
[{"$f":"E3","v":"Baldwin, AL"},1003,"Baldwin","AL",{"$f":"C3&\", \"&D3","v":"Baldwin, AL"},null,{"$f":"I3","v":"Adirondack Uplift"},110,"Adirondack Uplift"]
["Barbour, AL",1005,"Barbour","AL","Barbour, AL",null,"Atlantic Coast Basin",120,"Atlantic Coast Basin"]
["Bibb, AL",1007,"Bibb","AL","Bibb, AL",null,"S.GA Sedimentary Prov",130,"S.GA Sedimentary Prov"]
["Blount, AL",1009,"Blount","AL","Blount, AL",null,"Florida Platform",140,"Florida Platform"]
["Bullock, AL",1011,"Bullock","AL","Bullock, AL",null,"Piedmont-Blue Ridge Prov",150,"Piedmont-Blue Ridge Prov"]
["Butler, AL",1013,"Butler","AL","Butler, AL",null,"Appalachian Basin",160,"Appalachian Basin"]
["Calhoun, AL",1015,"Calhoun","AL","Calhoun, AL",null,"Appalachian Basin (Eastern Overthrust Area)","160A","Appalachian Basin (Eastern Overthrust Area)"]
["Chambers, AL",1017,"Chambers","AL","Chambers, AL",null,"Black Warrior Basin",200,"Black Warrior Basin"]
["Cherokee, AL",1019,"Cherokee","AL","Cherokee, AL",null,"Mid-Gulf Coast Basin",210,"Mid-Gulf Coast Basin"]
["Chilton, AL",1021,"Chilton","AL","Chilton, AL",null,"Gulf Coast Basin (LA, TX)",220,"Gulf Coast Basin (LA, TX)"]
["Choctaw, AL",1023,"Choctaw","AL","Choctaw, AL",null,"Arkla Basin",230,"Arkla Basin"]
["Clarke, AL",1025,"Clarke","AL","Clarke, AL",null,"Desha Basin",240,"Desha Basin"]
["Clay, AL",1027,"Clay","AL","Clay, AL",null,"Upper Mississippi Embaymnt",250,"Upper Mississippi Embaymnt"]
["Cleburne, AL",1029,"Cleburne","AL","Cleburne, AL",null,"East Texas Basin",260,"East Texas Basin"]
["Coffee, AL",1031,"Coffee","AL","Coffee, AL",null,"Cincinnati Arch",300,"Cincinnati Arch"]
["Colbert, AL",1033,"Colbert","AL","Colbert, AL",null,"Michigan Basin",305,"Michigan Basin"]
["Conecuh, AL",1035,"Conecuh","AL","Conecuh, AL",null,"Wisconsin Arch",310,"Wisconsin Arch"]
["Coosa, AL",1037,"Coosa","AL","Coosa, AL",null,"Illinois Basin",315,"Illinois Basin"]
["Covington, AL",1039,"Covington","AL","Covington, AL",null,"Sioux Uplift",320,"Sioux Uplift"]
["Crenshaw, AL",1041,"Crenshaw","AL","Crenshaw, AL",null,"Iowa Shelf",325,"Iowa Shelf"]
["Cullman, AL",1043,"Cullman","AL","Cullman, AL",null,"Lincoln Anticline",330,"Lincoln Anticline"]
["Dale, AL",1045,"Dale","AL","Dale, AL",null,"Forest City Basin",335,"Forest City Basin"]
["Dallas, AL",1047,"Dallas","AL","Dallas, AL",null,"Ozark Uplift",340,"Ozark Uplift"]
["DeKalb, AL",1049,"DeKalb","AL","DeKalb, AL",null,"Arkoma Basin",345,"Arkoma Basin"]
["Elmore, AL",1051,"Elmore","AL","Elmore, AL",null,"South Oklahoma Folded Belt",350,"South Oklahoma Folded Belt"]
["Escambia, AL",1053,"Escambia","AL","Escambia, AL",null,"Chautauqua Platform",355,"Chautauqua Platform"]
["Etowah, AL",1055,"Etowah","AL","Etowah, AL",null,"Anadarko Basin",360,"Anadarko Basin"]
["Fayette, AL",1057,"Fayette","AL","Fayette, AL",null,"Cherokee Basin",365,"Cherokee Basin"]
["Franklin, AL",1059,"Franklin","AL","Franklin, AL",null,"Nemaha Anticline",370,"Nemaha Anticline"]
["Geneva, AL",1061,"Geneva","AL","Geneva, AL",null,"Sedgwick Basin",375,"Sedgwick Basin"]
["Greene, AL",1063,"Greene","AL","Greene, AL",null,"Salina Basin",380,"Salina Basin"]
["Hale, AL",1065,"Hale","AL","Hale, AL",null,"Central Kansas Uplift",385,"Central Kansas Uplift"]
["Henry, AL",1067,"Henry","AL","Henry, AL",null,"Chadron Arch",390,"Chadron Arch"]
["Houston, AL",1069,"Houston","AL","Houston, AL",null,"Williston Basin",395,"Williston Basin"]
["Jackson, AL",1071,"Jackson","AL","Jackson, AL",null,"Ouachita Folded Belt",400,"Ouachita Folded Belt"]
["Jefferson, AL",1073,"Jefferson","AL","Jefferson, AL",null,"Kerr Basin",405,"Kerr Basin"]
["Lamar, AL",1075,"Lamar","AL","Lamar, AL",null,"Llano Uplift",410,"Llano Uplift"]
["Lauderdale, AL",1077,"Lauderdale","AL","Lauderdale, AL",null,"Strawn Basin",415,"Strawn Basin"]
["Lawrence, AL",1079,"Lawrence","AL","Lawrence, AL",null,"Fort Worth Syncline",420,"Fort Worth Syncline"]
["Lee, AL",1081,"Lee","AL","Lee, AL",null,"Bend Arch",425,"Bend Arch"]
["Limestone, AL",1083,"Limestone","AL","Limestone, AL",null,"Permian Basin",430,"Permian Basin"]
["Lowndes, AL",1085,"Lowndes","AL","Lowndes, AL",null,"Palo Duro Basin",435,"Palo Duro Basin"]
["Macon, AL",1087,"Macon","AL","Macon, AL",null,"Sierra Grande Uplift",445,"Sierra Grande Uplift"]
["Madison, AL",1089,"Madison","AL","Madison, AL",null,"Las Animas Arch",450,"Las Animas Arch"]
["Marengo, AL",1091,"Marengo","AL","Marengo, AL",null,"Las Vegas-Raton Basin",455,"Las Vegas-Raton Basin"]
["Marion, AL",1093,"Marion","AL","Marion, AL",null,"Estancia Basin",460,"Estancia Basin"]
["Marshall, AL",1095,"Marshall","AL","Marshall, AL",null,"Orogrande Basin",465,"Orogrande Basin"]
["Mobile, AL",1097,"Mobile","AL","Mobile, AL",null,"Pedregosa Basin",470,"Pedregosa Basin"]
["Monroe, AL",1099,"Monroe","AL","Monroe, AL",null,"Basin-And-Range Province",475,"Basin-And-Range Province"]
["Montgomery, AL",1101,"Montgomery","AL","Montgomery, AL",null,"Sweetgrass Arch",500,"Sweetgrass Arch"]
["Morgan, AL",1103,"Morgan","AL","Morgan, AL",null,"North Western Overthrust",503,"North Western Overthrust"]
["Perry, AL",1105,"Perry","AL","Perry, AL",null,"Montana Folded Belt",505,"Montana Folded Belt"]
["Pickens, AL",1107,"Pickens","AL","Pickens, AL",null,"Central Western Overthrust",507,"Central Western Overthrust"]
["Pike, AL",1109,"Pike","AL","Pike, AL",null,"South Western Overthrust",509,"South Western Overthrust"]
["Randolph, AL",1111,"Randolph","AL","Randolph, AL",null,"Central Montana Uplift",510,"Central Montana Uplift"]
["Russell, AL",1113,"Russell","AL","Russell, AL",null,"Powder River Basin",515,"Powder River Basin"]
["St. Clair, AL",1115,"St. Clair","AL","St. Clair, AL",null,"Big Horn Basin",520,"Big Horn Basin"]
["Shelby, AL",1117,"Shelby","AL","Shelby, AL",null,"Yellowstone Province",525,"Yellowstone Province"]
["Sumter, AL",1119,"Sumter","AL","Sumter, AL",null,"Wind River Basin",530,"Wind River Basin"]
["Talladega, AL",1121,"Talladega","AL","Talladega, AL",null,"Green River Basin",535,"Green River Basin"]
["Tallapoosa, AL",1123,"Tallapoosa","AL","Tallapoosa, AL",null,"Denver Basin",540,"Denver Basin"]
["Tuscaloosa, AL",1125,"Tuscaloosa","AL","Tuscaloosa, AL",null,"North Park Basin",545,"North Park Basin"]
["Walker, AL",1127,"Walker","AL","Walker, AL",null,"South Park Basin",550,"South Park Basin"]
["Washington, AL",1129,"Washington","AL","Washington, AL",null,"Eagle Basin",555,"Eagle Basin"]
[{"$f":"E67","v":"Wilcox, AL"},1131,"Wilcox","AL",{"$f":"C67&\", \"&D67","v":"Wilcox, AL"},null,{"$f":"I67","v":"San Luis Basin"},560,"San Luis Basin"]
["Winston, AL",1133,"Winston","AL","Winston, AL",null,"San Juan Mountains Prov",565,"San Juan Mountains Prov"]
["Aleutians East, AK",2013,"Aleutians East","AK","Aleutians East, AK",null,"Uinta Basin",575,"Uinta Basin"]
["Aleutians West, AK",2016,"Aleutians West","AK","Aleutians West, AK",null,"San Juan Basin",580,"San Juan Basin"]
["Anchorage, AK",2020,"Anchorage","AK","Anchorage, AK",null,"Paradox Basin",585,"Paradox Basin"]
["Bethel, AK",2050,"Bethel","AK","Bethel, AK",null,"Black Mesa Basin",590,"Black Mesa Basin"]
["Bristol Bay, AK",2060,"Bristol Bay","AK","Bristol Bay, AK",null,"Piceance Basin",595,"Piceance Basin"]
["Denali, AK",2068,"Denali","AK","Denali, AK",null,"N. Cascades-Okanagan Prov",600,"N. Cascades-Okanagan Prov"]
["Dillingham, AK",2070,"Dillingham","AK","Dillingham, AK",null,"Eastern Columbia Basin",605,"Eastern Columbia Basin"]
["Fairbanks North Star, AK",2090,"Fairbanks North Star","AK","Fairbanks North Star, AK",null,"Idaho Mountains Province",610,"Idaho Mountains Province"]
["Haines, AK",2100,"Haines","AK","Haines, AK",null,"Snake River Basin",615,"Snake River Basin"]
["Hoonah-Angoon, AK",2105,"Hoonah-Angoon","AK","Hoonah-Angoon, AK",null,"Southern Oregon Basin",620,"Southern Oregon Basin"]
["Juneau, AK",2110,"Juneau","AK","Juneau, AK",null,"Great Basin Province",625,"Great Basin Province"]
["Kenai Peninsula, AK",2122,"Kenai Peninsula","AK","Kenai Peninsula, AK",null,"Overthrust&Wasatch Uplift",630,"Overthrust&Wasatch Uplift"]
["Ketchikan Gateway, AK",2130,"Ketchikan Gateway","AK","Ketchikan Gateway, AK",null,"Plateau Sedimentary Prov",635,"Plateau Sedimentary Prov"]
["Kodiak Island, AK",2150,"Kodiak Island","AK","Kodiak Island, AK",null,"Mojave Basin",640,"Mojave Basin"]
["Kusilvak, AK",2158,"Kusilvak","AK","Kusilvak, AK",null,"Salton Basin",645,"Salton Basin"]
["Lake and Peninsula, AK",2164,"Lake and Peninsula","AK","Lake and Peninsula, AK",null,"Sierra Nevada Province",650,"Sierra Nevada Province"]
["Matanuska-Susitna, AK",2170,"Matanuska-Susitna","AK","Matanuska-Susitna, AK",null,"Bellingham Basin",700,"Bellingham Basin"]
["Nome, AK",2180,"Nome","AK","Nome, AK",null,"Puget Sound Province",705,"Puget Sound Province"]
["North Slope, AK",2185,"North Slope","AK","North Slope, AK",null,"Western Columbia Basin",710,"Western Columbia Basin"]
["Northwest Arctic, AK",2188,"Northwest Arctic","AK","Northwest Arctic, AK",null,"Klamath Mountains Province",715,"Klamath Mountains Province"]
["Petersburg, AK",2195,"Petersburg","AK","Petersburg, AK",null,"Eel River Basin",720,"Eel River Basin"]
["Prince of Wales-Hyder, AK",2198,"Prince of Wales-Hyder","AK","Prince of Wales-Hyder, AK",null,"Northern Coast Range Prov",725,"Northern Coast Range Prov"]
["Sitka, AK",2220,"Sitka","AK","Sitka, AK",null,"Sacramento Basin",730,"Sacramento Basin"]
["Skagway, AK",2230,"Skagway","AK","Skagway, AK",null,"Santa Cruz Basin",735,"Santa Cruz Basin"]
["Southeast Fairbanks, AK",2240,"Southeast Fairbanks","AK","Southeast Fairbanks, AK",null,"Coastal Basins",740,"Coastal Basins"]
["Valdez-Cordova, AK",2261,"Valdez-Cordova","AK","Valdez-Cordova, AK",null,"San Joaquin Basin",745,"San Joaquin Basin"]
["Wrangell, AK",2275,"Wrangell","AK","Wrangell, AK",null,"Santa Maria Basin",750,"Santa Maria Basin"]
["Yakutat, AK",2282,"Yakutat","AK","Yakutat, AK",null,"Ventura Basin",755,"Ventura Basin"]
["Yukon-Koyukuk, AK",2290,"Yukon-Koyukuk","AK","Yukon-Koyukuk, AK",null,"Los Angeles Basin",760,"Los Angeles Basin"]
["Apache, AZ",4001,"Apache","AZ","Apache, AZ",null,"Capistrano Basin",765,"Capistrano Basin"]
["Cochise, AZ",4003,"Cochise","AZ","Cochise, AZ",null,"Southeastern Alaska Provinces",800,"Southeastern Alaska Provinces"]
["Coconino, AZ",4005,"Coconino","AZ","Coconino, AZ",null,"Gulf of Alaska Basin",810,"Gulf of Alaska Basin"]
["Gila, AZ",4007,"Gila","AZ","Gila, AZ",null,"Copper River Basin",815,"Copper River Basin"]
["Graham, AZ",4009,"Graham","AZ","Graham, AZ",null,"AK Cook Inlet Basin",820,"AK Cook Inlet Basin"]
["Greenlee, AZ",4011,"Greenlee","AZ","Greenlee, AZ",null,"Alaska Peninsula Province",825,"Alaska Peninsula Province"]
["La Paz, AZ",4012,"La Paz","AZ","La Paz, AZ",null,"Yukon-Porcupine Province",830,"Yukon-Porcupine Province"]
["Maricopa, AZ",4013,"Maricopa","AZ","Maricopa, AZ",null,"Yukon-Koyukuk Province",840,"Yukon-Koyukuk Province"]
["Mohave, AZ",4015,"Mohave","AZ","Mohave, AZ",null,"Bristol Bay Basin",845,"Bristol Bay Basin"]
["Navajo, AZ",4017,"Navajo","AZ","Navajo, AZ",null,"Selawik Lowland Basins",860,"Selawik Lowland Basins"]
["Pima, AZ",4019,"Pima","AZ","Pima, AZ",null,"Interior Lowlands Basin",880,"Interior Lowlands Basin"]
["Pinal, AZ",4021,"Pinal","AZ","Pinal, AZ",null,"Brooks Range Province",884,"Brooks Range Province"]
["Santa Cruz, AZ",4023,"Santa Cruz","AZ","Santa Cruz, AZ",null,"Southern Foothills Province",885,"Southern Foothills Province"]
["Yavapai, AZ",4025,"Yavapai","AZ","Yavapai, AZ",null,"Northern Foothills Province",886,"Northern Foothills Province"]
["Yuma, AZ",4027,"Yuma","AZ","Yuma, AZ",null,"Arctic Coastal Plains Province",890,"Arctic Coastal Plains Province"]
["Arkansas, AR",5001,"Arkansas","AR","Arkansas, AR",null,"Kodiak State",984,"Kodiak State"]
["Ashley, AR",5003,"Ashley","AR","Ashley, AR"]
["Baxter, AR",5005,"Baxter","AR","Baxter, AR"]
["Benton, AR",5007,"Benton","AR","Benton, AR"]
["Boone, AR",5009,"Boone","AR","Boone, AR"]
["Bradley, AR",5011,"Bradley","AR","Bradley, AR"]
["Calhoun, AR",5013,"Calhoun","AR","Calhoun, AR"]
["Carroll, AR",5015,"Carroll","AR","Carroll, AR"]
["Chicot, AR",5017,"Chicot","AR","Chicot, AR"]
["Clark, AR",5019,"Clark","AR","Clark, AR"]
["Clay, AR",5021,"Clay","AR","Clay, AR"]
["Cleburne, AR",5023,"Cleburne","AR","Cleburne, AR"]
["Cleveland, AR",5025,"Cleveland","AR","Cleveland, AR"]
["Columbia, AR",5027,"Columbia","AR","Columbia, AR"]
["Conway, AR",5029,"Conway","AR","Conway, AR"]
["Craighead, AR",5031,"Craighead","AR","Craighead, AR"]
["Crawford, AR",5033,"Crawford","AR","Crawford, AR"]
["Crittenden, AR",5035,"Crittenden","AR","Crittenden, AR"]
[{"$f":"E131","v":"Cross, AR"},5037,"Cross","AR",{"$f":"C131&\", \"&D131","v":"Cross, AR"}]
["Dallas, AR",5039,"Dallas","AR","Dallas, AR"]
["Desha, AR",5041,"Desha","AR","Desha, AR"]
["Drew, AR",5043,"Drew","AR","Drew, AR"]
["Faulkner, AR",5045,"Faulkner","AR","Faulkner, AR"]
["Franklin, AR",5047,"Franklin","AR","Franklin, AR"]
["Fulton, AR",5049,"Fulton","AR","Fulton, AR"]
["Garland, AR",5051,"Garland","AR","Garland, AR"]
["Grant, AR",5053,"Grant","AR","Grant, AR"]
["Greene, AR",5055,"Greene","AR","Greene, AR"]
["Hempstead, AR",5057,"Hempstead","AR","Hempstead, AR"]
["Hot Spring, AR",5059,"Hot Spring","AR","Hot Spring, AR"]
["Howard, AR",5061,"Howard","AR","Howard, AR"]
["Independence, AR",5063,"Independence","AR","Independence, AR"]
["Izard, AR",5065,"Izard","AR","Izard, AR"]
["Jackson, AR",5067,"Jackson","AR","Jackson, AR"]
["Jefferson, AR",5069,"Jefferson","AR","Jefferson, AR"]
["Johnson, AR",5071,"Johnson","AR","Johnson, AR"]
["Lafayette, AR",5073,"Lafayette","AR","Lafayette, AR"]
["Lawrence, AR",5075,"Lawrence","AR","Lawrence, AR"]
["Lee, AR",5077,"Lee","AR","Lee, AR"]
["Lincoln, AR",5079,"Lincoln","AR","Lincoln, AR"]
["Little River, AR",5081,"Little River","AR","Little River, AR"]
["Logan, AR",5083,"Logan","AR","Logan, AR"]
["Lonoke, AR",5085,"Lonoke","AR","Lonoke, AR"]
["Madison, AR",5087,"Madison","AR","Madison, AR"]
["Marion, AR",5089,"Marion","AR","Marion, AR"]
["Miller, AR",5091,"Miller","AR","Miller, AR"]
["Mississippi, AR",5093,"Mississippi","AR","Mississippi, AR"]
["Monroe, AR",5095,"Monroe","AR","Monroe, AR"]
["Montgomery, AR",5097,"Montgomery","AR","Montgomery, AR"]
["Nevada, AR",5099,"Nevada","AR","Nevada, AR"]
["Newton, AR",5101,"Newton","AR","Newton, AR"]
["Ouachita, AR",5103,"Ouachita","AR","Ouachita, AR"]
["Perry, AR",5105,"Perry","AR","Perry, AR"]
["Phillips, AR",5107,"Phillips","AR","Phillips, AR"]
["Pike, AR",5109,"Pike","AR","Pike, AR"]
["Poinsett, AR",5111,"Poinsett","AR","Poinsett, AR"]
["Polk, AR",5113,"Polk","AR","Polk, AR"]
["Pope, AR",5115,"Pope","AR","Pope, AR"]
["Prairie, AR",5117,"Prairie","AR","Prairie, AR"]
["Pulaski, AR",5119,"Pulaski","AR","Pulaski, AR"]
["Randolph, AR",5121,"Randolph","AR","Randolph, AR"]
["St. Francis, AR",5123,"St. Francis","AR","St. Francis, AR"]
["Saline, AR",5125,"Saline","AR","Saline, AR"]
["Scott, AR",5127,"Scott","AR","Scott, AR"]
["Searcy, AR",5129,"Searcy","AR","Searcy, AR"]
["Sebastian, AR",5131,"Sebastian","AR","Sebastian, AR"]
["Sevier, AR",5133,"Sevier","AR","Sevier, AR"]
["Sharp, AR",5135,"Sharp","AR","Sharp, AR"]
["Stone, AR",5137,"Stone","AR","Stone, AR"]
["Union, AR",5139,"Union","AR","Union, AR"]
["Van Buren, AR",5141,"Van Buren","AR","Van Buren, AR"]
["Washington, AR",5143,"Washington","AR","Washington, AR"]
["White, AR",5145,"White","AR","White, AR"]
["Woodruff, AR",5147,"Woodruff","AR","Woodruff, AR"]
["Yell, AR",5149,"Yell","AR","Yell, AR"]
["Alameda, CA",6001,"Alameda","CA","Alameda, CA"]
["Alpine, CA",6003,"Alpine","CA","Alpine, CA"]
["Amador, CA",6005,"Amador","CA","Amador, CA"]
["Butte, CA",6007,"Butte","CA","Butte, CA"]
["Calaveras, CA",6009,"Calaveras","CA","Calaveras, CA"]
["Colusa, CA",6011,"Colusa","CA","Colusa, CA"]
["Contra Costa, CA",6013,"Contra Costa","CA","Contra Costa, CA"]
[{"$f":"E195","v":"Del Norte, CA"},6015,"Del Norte","CA",{"$f":"C195&\", \"&D195","v":"Del Norte, CA"}]
["El Dorado, CA",6017,"El Dorado","CA","El Dorado, CA"]
["Fresno, CA",6019,"Fresno","CA","Fresno, CA"]
["Glenn, CA",6021,"Glenn","CA","Glenn, CA"]
["Humboldt, CA",6023,"Humboldt","CA","Humboldt, CA"]
["Imperial, CA",6025,"Imperial","CA","Imperial, CA"]
["Inyo, CA",6027,"Inyo","CA","Inyo, CA"]
["Kern, CA",6029,"Kern","CA","Kern, CA"]
["Kings, CA",6031,"Kings","CA","Kings, CA"]
["Lake, CA",6033,"Lake","CA","Lake, CA"]
["Lassen, CA",6035,"Lassen","CA","Lassen, CA"]
["Los Angeles, CA",6037,"Los Angeles","CA","Los Angeles, CA"]
["Madera, CA",6039,"Madera","CA","Madera, CA"]
["Marin, CA",6041,"Marin","CA","Marin, CA"]
["Mariposa, CA",6043,"Mariposa","CA","Mariposa, CA"]
["Mendocino, CA",6045,"Mendocino","CA","Mendocino, CA"]
["Merced, CA",6047,"Merced","CA","Merced, CA"]
["Modoc, CA",6049,"Modoc","CA","Modoc, CA"]
["Mono, CA",6051,"Mono","CA","Mono, CA"]
["Monterey, CA",6053,"Monterey","CA","Monterey, CA"]
["Napa, CA",6055,"Napa","CA","Napa, CA"]
["Nevada, CA",6057,"Nevada","CA","Nevada, CA"]
["Orange, CA",6059,"Orange","CA","Orange, CA"]
["Placer, CA",6061,"Placer","CA","Placer, CA"]
["Plumas, CA",6063,"Plumas","CA","Plumas, CA"]
["Riverside, CA",6065,"Riverside","CA","Riverside, CA"]
["Sacramento, CA",6067,"Sacramento","CA","Sacramento, CA"]
["San Benito, CA",6069,"San Benito","CA","San Benito, CA"]
["San Bernardino, CA",6071,"San Bernardino","CA","San Bernardino, CA"]
["San Diego, CA",6073,"San Diego","CA","San Diego, CA"]
["San Francisco, CA",6075,"San Francisco","CA","San Francisco, CA"]
["San Joaquin, CA",6077,"San Joaquin","CA","San Joaquin, CA"]
["San Luis Obispo, CA",6079,"San Luis Obispo","CA","San Luis Obispo, CA"]
["San Mateo, CA",6081,"San Mateo","CA","San Mateo, CA"]
["Santa Barbara, CA",6083,"Santa Barbara","CA","Santa Barbara, CA"]
["Santa Clara, CA",6085,"Santa Clara","CA","Santa Clara, CA"]
["Santa Cruz, CA",6087,"Santa Cruz","CA","Santa Cruz, CA"]
["Shasta, CA",6089,"Shasta","CA","Shasta, CA"]
["Sierra, CA",6091,"Sierra","CA","Sierra, CA"]
["Siskiyou, CA",6093,"Siskiyou","CA","Siskiyou, CA"]
["Solano, CA",6095,"Solano","CA","Solano, CA"]
["Sonoma, CA",6097,"Sonoma","CA","Sonoma, CA"]
["Stanislaus, CA",6099,"Stanislaus","CA","Stanislaus, CA"]
["Sutter, CA",6101,"Sutter","CA","Sutter, CA"]
["Tehama, CA",6103,"Tehama","CA","Tehama, CA"]
["Trinity, CA",6105,"Trinity","CA","Trinity, CA"]
["Tulare, CA",6107,"Tulare","CA","Tulare, CA"]
["Tuolumne, CA",6109,"Tuolumne","CA","Tuolumne, CA"]
["Ventura, CA",6111,"Ventura","CA","Ventura, CA"]
["Yolo, CA",6113,"Yolo","CA","Yolo, CA"]
["Yuba, CA",6115,"Yuba","CA","Yuba, CA"]
["Adams, CO",8001,"Adams","CO","Adams, CO"]
["Alamosa, CO",8003,"Alamosa","CO","Alamosa, CO"]
["Arapahoe, CO",8005,"Arapahoe","CO","Arapahoe, CO"]
["Archuleta, CO",8007,"Archuleta","CO","Archuleta, CO"]
["Baca, CO",8009,"Baca","CO","Baca, CO"]
["Bent, CO",8011,"Bent","CO","Bent, CO"]
["Boulder, CO",8013,"Boulder","CO","Boulder, CO"]
["Broomfield, CO",8014,"Broomfield","CO","Broomfield, CO"]
["Chaffee, CO",8015,"Chaffee","CO","Chaffee, CO"]
["Cheyenne, CO",8017,"Cheyenne","CO","Cheyenne, CO"]
["Clear Creek, CO",8019,"Clear Creek","CO","Clear Creek, CO"]
["Conejos, CO",8021,"Conejos","CO","Conejos, CO"]
["Costilla, CO",8023,"Costilla","CO","Costilla, CO"]
[{"$f":"E259","v":"Crowley, CO"},8025,"Crowley","CO",{"$f":"C259&\", \"&D259","v":"Crowley, CO"}]
["Custer, CO",8027,"Custer","CO","Custer, CO"]
["Delta, CO",8029,"Delta","CO","Delta, CO"]
["Denver, CO",8031,"Denver","CO","Denver, CO"]
["Dolores, CO",8033,"Dolores","CO","Dolores, CO"]
["Douglas, CO",8035,"Douglas","CO","Douglas, CO"]
["Eagle, CO",8037,"Eagle","CO","Eagle, CO"]
["Elbert, CO",8039,"Elbert","CO","Elbert, CO"]
["El Paso, CO",8041,"El Paso","CO","El Paso, CO"]
["Fremont, CO",8043,"Fremont","CO","Fremont, CO"]
["Garfield, CO",8045,"Garfield","CO","Garfield, CO"]
["Gilpin, CO",8047,"Gilpin","CO","Gilpin, CO"]
["Grand, CO",8049,"Grand","CO","Grand, CO"]
["Gunnison, CO",8051,"Gunnison","CO","Gunnison, CO"]
["Hinsdale, CO",8053,"Hinsdale","CO","Hinsdale, CO"]
["Huerfano, CO",8055,"Huerfano","CO","Huerfano, CO"]
["Jackson, CO",8057,"Jackson","CO","Jackson, CO"]
["Jefferson, CO",8059,"Jefferson","CO","Jefferson, CO"]
["Kiowa, CO",8061,"Kiowa","CO","Kiowa, CO"]
["Kit Carson, CO",8063,"Kit Carson","CO","Kit Carson, CO"]
["Lake, CO",8065,"Lake","CO","Lake, CO"]
["La Plata, CO",8067,"La Plata","CO","La Plata, CO"]
["Larimer, CO",8069,"Larimer","CO","Larimer, CO"]
["Las Animas, CO",8071,"Las Animas","CO","Las Animas, CO"]
["Lincoln, CO",8073,"Lincoln","CO","Lincoln, CO"]
["Logan, CO",8075,"Logan","CO","Logan, CO"]
["Mesa, CO",8077,"Mesa","CO","Mesa, CO"]
["Mineral, CO",8079,"Mineral","CO","Mineral, CO"]
["Moffat, CO",8081,"Moffat","CO","Moffat, CO"]
["Montezuma, CO",8083,"Montezuma","CO","Montezuma, CO"]
["Montrose, CO",8085,"Montrose","CO","Montrose, CO"]
["Morgan, CO",8087,"Morgan","CO","Morgan, CO"]
["Otero, CO",8089,"Otero","CO","Otero, CO"]
["Ouray, CO",8091,"Ouray","CO","Ouray, CO"]
["Park, CO",8093,"Park","CO","Park, CO"]
["Phillips, CO",8095,"Phillips","CO","Phillips, CO"]
["Pitkin, CO",8097,"Pitkin","CO","Pitkin, CO"]
["Prowers, CO",8099,"Prowers","CO","Prowers, CO"]
["Pueblo, CO",8101,"Pueblo","CO","Pueblo, CO"]
["Rio Blanco, CO",8103,"Rio Blanco","CO","Rio Blanco, CO"]
["Rio Grande, CO",8105,"Rio Grande","CO","Rio Grande, CO"]
["Routt, CO",8107,"Routt","CO","Routt, CO"]
["Saguache, CO",8109,"Saguache","CO","Saguache, CO"]
["San Juan, CO",8111,"San Juan","CO","San Juan, CO"]
["San Miguel, CO",8113,"San Miguel","CO","San Miguel, CO"]
["Sedgwick, CO",8115,"Sedgwick","CO","Sedgwick, CO"]
["Summit, CO",8117,"Summit","CO","Summit, CO"]
["Teller, CO",8119,"Teller","CO","Teller, CO"]
["Washington, CO",8121,"Washington","CO","Washington, CO"]
["Weld, CO",8123,"Weld","CO","Weld, CO"]
["Yuma, CO",8125,"Yuma","CO","Yuma, CO"]
["Fairfield, CT",9001,"Fairfield","CT","Fairfield, CT"]
["Hartford, CT",9003,"Hartford","CT","Hartford, CT"]
["Litchfield, CT",9005,"Litchfield","CT","Litchfield, CT"]
["Middlesex, CT",9007,"Middlesex","CT","Middlesex, CT"]
["New Haven, CT",9009,"New Haven","CT","New Haven, CT"]
["New London, CT",9011,"New London","CT","New London, CT"]
["Tolland, CT",9013,"Tolland","CT","Tolland, CT"]
["Windham, CT",9015,"Windham","CT","Windham, CT"]
["Kent, DE",10001,"Kent","DE","Kent, DE"]
["New Castle, DE",10003,"New Castle","DE","New Castle, DE"]
["Sussex, DE",10005,"Sussex","DE","Sussex, DE"]
["District of Columbia, DC",11001,"District of Columbia","DC","District of Columbia, DC"]
["Alachua, FL",12001,"Alachua","FL","Alachua, FL"]
[{"$f":"E323","v":"Baker, FL"},12003,"Baker","FL",{"$f":"C323&\", \"&D323","v":"Baker, FL"}]
["Bay, FL",12005,"Bay","FL","Bay, FL"]
["Bradford, FL",12007,"Bradford","FL","Bradford, FL"]
["Brevard, FL",12009,"Brevard","FL","Brevard, FL"]
["Broward, FL",12011,"Broward","FL","Broward, FL"]
["Calhoun, FL",12013,"Calhoun","FL","Calhoun, FL"]
["Charlotte, FL",12015,"Charlotte","FL","Charlotte, FL"]
["Citrus, FL",12017,"Citrus","FL","Citrus, FL"]
["Clay, FL",12019,"Clay","FL","Clay, FL"]
["Collier, FL",12021,"Collier","FL","Collier, FL"]
["Columbia, FL",12023,"Columbia","FL","Columbia, FL"]
["DeSoto, FL",12027,"DeSoto","FL","DeSoto, FL"]
["Dixie, FL",12029,"Dixie","FL","Dixie, FL"]
["Duval, FL",12031,"Duval","FL","Duval, FL"]
["Escambia, FL",12033,"Escambia","FL","Escambia, FL"]
["Flagler, FL",12035,"Flagler","FL","Flagler, FL"]
["Franklin, FL",12037,"Franklin","FL","Franklin, FL"]
["Gadsden, FL",12039,"Gadsden","FL","Gadsden, FL"]
["Gilchrist, FL",12041,"Gilchrist","FL","Gilchrist, FL"]
["Glades, FL",12043,"Glades","FL","Glades, FL"]
["Gulf, FL",12045,"Gulf","FL","Gulf, FL"]
["Hamilton, FL",12047,"Hamilton","FL","Hamilton, FL"]
["Hardee, FL",12049,"Hardee","FL","Hardee, FL"]
["Hendry, FL",12051,"Hendry","FL","Hendry, FL"]
["Hernando, FL",12053,"Hernando","FL","Hernando, FL"]
["Highlands, FL",12055,"Highlands","FL","Highlands, FL"]
["Hillsborough, FL",12057,"Hillsborough","FL","Hillsborough, FL"]
["Holmes, FL",12059,"Holmes","FL","Holmes, FL"]
["Indian River, FL",12061,"Indian River","FL","Indian River, FL"]
["Jackson, FL",12063,"Jackson","FL","Jackson, FL"]
["Jefferson, FL",12065,"Jefferson","FL","Jefferson, FL"]
["Lafayette, FL",12067,"Lafayette","FL","Lafayette, FL"]
["Lake, FL",12069,"Lake","FL","Lake, FL"]
["Lee, FL",12071,"Lee","FL","Lee, FL"]
["Leon, FL",12073,"Leon","FL","Leon, FL"]
["Levy, FL",12075,"Levy","FL","Levy, FL"]
["Liberty, FL",12077,"Liberty","FL","Liberty, FL"]
["Madison, FL",12079,"Madison","FL","Madison, FL"]
["Manatee, FL",12081,"Manatee","FL","Manatee, FL"]
["Marion, FL",12083,"Marion","FL","Marion, FL"]
["Martin, FL",12085,"Martin","FL","Martin, FL"]
["Miami-Dade, FL",12086,"Miami-Dade","FL","Miami-Dade, FL"]
["Monroe, FL",12087,"Monroe","FL","Monroe, FL"]
["Nassau, FL",12089,"Nassau","FL","Nassau, FL"]
["Okaloosa, FL",12091,"Okaloosa","FL","Okaloosa, FL"]
["Okeechobee, FL",12093,"Okeechobee","FL","Okeechobee, FL"]
["Orange, FL",12095,"Orange","FL","Orange, FL"]
["Osceola, FL",12097,"Osceola","FL","Osceola, FL"]
["Palm Beach, FL",12099,"Palm Beach","FL","Palm Beach, FL"]
["Pasco, FL",12101,"Pasco","FL","Pasco, FL"]
["Pinellas, FL",12103,"Pinellas","FL","Pinellas, FL"]
["Polk, FL",12105,"Polk","FL","Polk, FL"]
["Putnam, FL",12107,"Putnam","FL","Putnam, FL"]
["St. Johns, FL",12109,"St. Johns","FL","St. Johns, FL"]
["St. Lucie, FL",12111,"St. Lucie","FL","St. Lucie, FL"]
["Santa Rosa, FL",12113,"Santa Rosa","FL","Santa Rosa, FL"]
["Sarasota, FL",12115,"Sarasota","FL","Sarasota, FL"]
["Seminole, FL",12117,"Seminole","FL","Seminole, FL"]
["Sumter, FL",12119,"Sumter","FL","Sumter, FL"]
["Suwannee, FL",12121,"Suwannee","FL","Suwannee, FL"]
["Taylor, FL",12123,"Taylor","FL","Taylor, FL"]
["Union, FL",12125,"Union","FL","Union, FL"]
["Volusia, FL",12127,"Volusia","FL","Volusia, FL"]
["Wakulla, FL",12129,"Wakulla","FL","Wakulla, FL"]
[{"$f":"E387","v":"Walton, FL"},12131,"Walton","FL",{"$f":"C387&\", \"&D387","v":"Walton, FL"}]
["Washington, FL",12133,"Washington","FL","Washington, FL"]
["Appling, GA",13001,"Appling","GA","Appling, GA"]
["Atkinson, GA",13003,"Atkinson","GA","Atkinson, GA"]
["Bacon, GA",13005,"Bacon","GA","Bacon, GA"]
["Baker, GA",13007,"Baker","GA","Baker, GA"]
["Baldwin, GA",13009,"Baldwin","GA","Baldwin, GA"]
["Banks, GA",13011,"Banks","GA","Banks, GA"]
["Barrow, GA",13013,"Barrow","GA","Barrow, GA"]
["Bartow, GA",13015,"Bartow","GA","Bartow, GA"]
["Ben Hill, GA",13017,"Ben Hill","GA","Ben Hill, GA"]
["Berrien, GA",13019,"Berrien","GA","Berrien, GA"]
["Bibb, GA",13021,"Bibb","GA","Bibb, GA"]
["Bleckley, GA",13023,"Bleckley","GA","Bleckley, GA"]
["Brantley, GA",13025,"Brantley","GA","Brantley, GA"]
["Brooks, GA",13027,"Brooks","GA","Brooks, GA"]
["Bryan, GA",13029,"Bryan","GA","Bryan, GA"]
["Bulloch, GA",13031,"Bulloch","GA","Bulloch, GA"]
["Burke, GA",13033,"Burke","GA","Burke, GA"]
["Butts, GA",13035,"Butts","GA","Butts, GA"]
["Calhoun, GA",13037,"Calhoun","GA","Calhoun, GA"]
["Camden, GA",13039,"Camden","GA","Camden, GA"]
["Candler, GA",13043,"Candler","GA","Candler, GA"]
["Carroll, GA",13045,"Carroll","GA","Carroll, GA"]
["Catoosa, GA",13047,"Catoosa","GA","Catoosa, GA"]
["Charlton, GA",13049,"Charlton","GA","Charlton, GA"]
["Chatham, GA",13051,"Chatham","GA","Chatham, GA"]
["Chattahoochee, GA",13053,"Chattahoochee","GA","Chattahoochee, GA"]
["Chattooga, GA",13055,"Chattooga","GA","Chattooga, GA"]
["Cherokee, GA",13057,"Cherokee","GA","Cherokee, GA"]
["Clarke, GA",13059,"Clarke","GA","Clarke, GA"]
["Clay, GA",13061,"Clay","GA","Clay, GA"]
["Clayton, GA",13063,"Clayton","GA","Clayton, GA"]
["Clinch, GA",13065,"Clinch","GA","Clinch, GA"]
["Cobb, GA",13067,"Cobb","GA","Cobb, GA"]
["Coffee, GA",13069,"Coffee","GA","Coffee, GA"]
["Colquitt, GA",13071,"Colquitt","GA","Colquitt, GA"]
["Columbia, GA",13073,"Columbia","GA","Columbia, GA"]
["Cook, GA",13075,"Cook","GA","Cook, GA"]
["Coweta, GA",13077,"Coweta","GA","Coweta, GA"]
["Crawford, GA",13079,"Crawford","GA","Crawford, GA"]
["Crisp, GA",13081,"Crisp","GA","Crisp, GA"]
["Dade, GA",13083,"Dade","GA","Dade, GA"]
["Dawson, GA",13085,"Dawson","GA","Dawson, GA"]
["Decatur, GA",13087,"Decatur","GA","Decatur, GA"]
["DeKalb, GA",13089,"DeKalb","GA","DeKalb, GA"]
["Dodge, GA",13091,"Dodge","GA","Dodge, GA"]
["Dooly, GA",13093,"Dooly","GA","Dooly, GA"]
["Dougherty, GA",13095,"Dougherty","GA","Dougherty, GA"]
["Douglas, GA",13097,"Douglas","GA","Douglas, GA"]
["Early, GA",13099,"Early","GA","Early, GA"]
["Echols, GA",13101,"Echols","GA","Echols, GA"]
["Effingham, GA",13103,"Effingham","GA","Effingham, GA"]
["Elbert, GA",13105,"Elbert","GA","Elbert, GA"]
["Emanuel, GA",13107,"Emanuel","GA","Emanuel, GA"]
["Evans, GA",13109,"Evans","GA","Evans, GA"]
["Fannin, GA",13111,"Fannin","GA","Fannin, GA"]
["Fayette, GA",13113,"Fayette","GA","Fayette, GA"]
["Floyd, GA",13115,"Floyd","GA","Floyd, GA"]
["Forsyth, GA",13117,"Forsyth","GA","Forsyth, GA"]
["Franklin, GA",13119,"Franklin","GA","Franklin, GA"]
["Fulton, GA",13121,"Fulton","GA","Fulton, GA"]
["Gilmer, GA",13123,"Gilmer","GA","Gilmer, GA"]
["Glascock, GA",13125,"Glascock","GA","Glascock, GA"]
[{"$f":"E451","v":"Glynn, GA"},13127,"Glynn","GA",{"$f":"C451&\", \"&D451","v":"Glynn, GA"}]
["Gordon, GA",13129,"Gordon","GA","Gordon, GA"]
["Grady, GA",13131,"Grady","GA","Grady, GA"]
["Greene, GA",13133,"Greene","GA","Greene, GA"]
["Gwinnett, GA",13135,"Gwinnett","GA","Gwinnett, GA"]
["Habersham, GA",13137,"Habersham","GA","Habersham, GA"]
["Hall, GA",13139,"Hall","GA","Hall, GA"]
["Hancock, GA",13141,"Hancock","GA","Hancock, GA"]
["Haralson, GA",13143,"Haralson","GA","Haralson, GA"]
["Harris, GA",13145,"Harris","GA","Harris, GA"]
["Hart, GA",13147,"Hart","GA","Hart, GA"]
["Heard, GA",13149,"Heard","GA","Heard, GA"]
["Henry, GA",13151,"Henry","GA","Henry, GA"]
["Houston, GA",13153,"Houston","GA","Houston, GA"]
["Irwin, GA",13155,"Irwin","GA","Irwin, GA"]
["Jackson, GA",13157,"Jackson","GA","Jackson, GA"]
["Jasper, GA",13159,"Jasper","GA","Jasper, GA"]
["Jeff Davis, GA",13161,"Jeff Davis","GA","Jeff Davis, GA"]
["Jefferson, GA",13163,"Jefferson","GA","Jefferson, GA"]
["Jenkins, GA",13165,"Jenkins","GA","Jenkins, GA"]
["Johnson, GA",13167,"Johnson","GA","Johnson, GA"]
["Jones, GA",13169,"Jones","GA","Jones, GA"]
["Lamar, GA",13171,"Lamar","GA","Lamar, GA"]
["Lanier, GA",13173,"Lanier","GA","Lanier, GA"]
["Laurens, GA",13175,"Laurens","GA","Laurens, GA"]
["Lee, GA",13177,"Lee","GA","Lee, GA"]
["Liberty, GA",13179,"Liberty","GA","Liberty, GA"]
["Lincoln, GA",13181,"Lincoln","GA","Lincoln, GA"]
["Long, GA",13183,"Long","GA","Long, GA"]
["Lowndes, GA",13185,"Lowndes","GA","Lowndes, GA"]
["Lumpkin, GA",13187,"Lumpkin","GA","Lumpkin, GA"]
["McDuffie, GA",13189,"McDuffie","GA","McDuffie, GA"]
["McIntosh, GA",13191,"McIntosh","GA","McIntosh, GA"]
["Macon, GA",13193,"Macon","GA","Macon, GA"]
["Madison, GA",13195,"Madison","GA","Madison, GA"]
["Marion, GA",13197,"Marion","GA","Marion, GA"]
["Meriwether, GA",13199,"Meriwether","GA","Meriwether, GA"]
["Miller, GA",13201,"Miller","GA","Miller, GA"]
["Mitchell, GA",13205,"Mitchell","GA","Mitchell, GA"]
["Monroe, GA",13207,"Monroe","GA","Monroe, GA"]
["Montgomery, GA",13209,"Montgomery","GA","Montgomery, GA"]
["Morgan, GA",13211,"Morgan","GA","Morgan, GA"]
["Murray, GA",13213,"Murray","GA","Murray, GA"]
["Muscogee, GA",13215,"Muscogee","GA","Muscogee, GA"]
["Newton, GA",13217,"Newton","GA","Newton, GA"]
["Oconee, GA",13219,"Oconee","GA","Oconee, GA"]
["Oglethorpe, GA",13221,"Oglethorpe","GA","Oglethorpe, GA"]
["Paulding, GA",13223,"Paulding","GA","Paulding, GA"]
["Peach, GA",13225,"Peach","GA","Peach, GA"]
["Pickens, GA",13227,"Pickens","GA","Pickens, GA"]
["Pierce, GA",13229,"Pierce","GA","Pierce, GA"]
["Pike, GA",13231,"Pike","GA","Pike, GA"]
["Polk, GA",13233,"Polk","GA","Polk, GA"]
["Pulaski, GA",13235,"Pulaski","GA","Pulaski, GA"]
["Putnam, GA",13237,"Putnam","GA","Putnam, GA"]
["Quitman, GA",13239,"Quitman","GA","Quitman, GA"]
["Rabun, GA",13241,"Rabun","GA","Rabun, GA"]
["Randolph, GA",13243,"Randolph","GA","Randolph, GA"]
["Richmond, GA",13245,"Richmond","GA","Richmond, GA"]
["Rockdale, GA",13247,"Rockdale","GA","Rockdale, GA"]
["Schley, GA",13249,"Schley","GA","Schley, GA"]
["Screven, GA",13251,"Screven","GA","Screven, GA"]
["Seminole, GA",13253,"Seminole","GA","Seminole, GA"]
["Spalding, GA",13255,"Spalding","GA","Spalding, GA"]
[{"$f":"E515","v":"Stephens, GA"},13257,"Stephens","GA",{"$f":"C515&\", \"&D515","v":"Stephens, GA"}]
["Stewart, GA",13259,"Stewart","GA","Stewart, GA"]
["Sumter, GA",13261,"Sumter","GA","Sumter, GA"]
["Talbot, GA",13263,"Talbot","GA","Talbot, GA"]
["Taliaferro, GA",13265,"Taliaferro","GA","Taliaferro, GA"]
["Tattnall, GA",13267,"Tattnall","GA","Tattnall, GA"]
["Taylor, GA",13269,"Taylor","GA","Taylor, GA"]
["Telfair, GA",13271,"Telfair","GA","Telfair, GA"]
["Terrell, GA",13273,"Terrell","GA","Terrell, GA"]
["Thomas, GA",13275,"Thomas","GA","Thomas, GA"]
["Tift, GA",13277,"Tift","GA","Tift, GA"]
["Toombs, GA",13279,"Toombs","GA","Toombs, GA"]
["Towns, GA",13281,"Towns","GA","Towns, GA"]
["Treutlen, GA",13283,"Treutlen","GA","Treutlen, GA"]
["Troup, GA",13285,"Troup","GA","Troup, GA"]
["Turner, GA",13287,"Turner","GA","Turner, GA"]
["Twiggs, GA",13289,"Twiggs","GA","Twiggs, GA"]
["Union, GA",13291,"Union","GA","Union, GA"]
["Upson, GA",13293,"Upson","GA","Upson, GA"]
["Walker, GA",13295,"Walker","GA","Walker, GA"]
["Walton, GA",13297,"Walton","GA","Walton, GA"]
["Ware, GA",13299,"Ware","GA","Ware, GA"]
["Warren, GA",13301,"Warren","GA","Warren, GA"]
["Washington, GA",13303,"Washington","GA","Washington, GA"]
["Wayne, GA",13305,"Wayne","GA","Wayne, GA"]
["Webster, GA",13307,"Webster","GA","Webster, GA"]
["Wheeler, GA",13309,"Wheeler","GA","Wheeler, GA"]
["White, GA",13311,"White","GA","White, GA"]
["Whitfield, GA",13313,"Whitfield","GA","Whitfield, GA"]
["Wilcox, GA",13315,"Wilcox","GA","Wilcox, GA"]
["Wilkes, GA",13317,"Wilkes","GA","Wilkes, GA"]
["Wilkinson, GA",13319,"Wilkinson","GA","Wilkinson, GA"]
["Worth, GA",13321,"Worth","GA","Worth, GA"]
["Hawaii, HI",15001,"Hawaii","HI","Hawaii, HI"]
["Honolulu, HI",15003,"Honolulu","HI","Honolulu, HI"]
["Kalawao, HI",15005,"Kalawao","HI","Kalawao, HI"]
["Kauai, HI",15007,"Kauai","HI","Kauai, HI"]
["Maui, HI",15009,"Maui","HI","Maui, HI"]
["Ada, ID",16001,"Ada","ID","Ada, ID"]
["Adams, ID",16003,"Adams","ID","Adams, ID"]
["Bannock, ID",16005,"Bannock","ID","Bannock, ID"]
["Bear Lake, ID",16007,"Bear Lake","ID","Bear Lake, ID"]
["Benewah, ID",16009,"Benewah","ID","Benewah, ID"]
["Bingham, ID",16011,"Bingham","ID","Bingham, ID"]
["Blaine, ID",16013,"Blaine","ID","Blaine, ID"]
["Boise, ID",16015,"Boise","ID","Boise, ID"]
["Bonner, ID",16017,"Bonner","ID","Bonner, ID"]
["Bonneville, ID",16019,"Bonneville","ID","Bonneville, ID"]
["Boundary, ID",16021,"Boundary","ID","Boundary, ID"]
["Butte, ID",16023,"Butte","ID","Butte, ID"]
["Camas, ID",16025,"Camas","ID","Camas, ID"]
["Canyon, ID",16027,"Canyon","ID","Canyon, ID"]
["Caribou, ID",16029,"Caribou","ID","Caribou, ID"]
["Cassia, ID",16031,"Cassia","ID","Cassia, ID"]
["Clark, ID",16033,"Clark","ID","Clark, ID"]
["Clearwater, ID",16035,"Clearwater","ID","Clearwater, ID"]
["Custer, ID",16037,"Custer","ID","Custer, ID"]
["Elmore, ID",16039,"Elmore","ID","Elmore, ID"]
["Franklin, ID",16041,"Franklin","ID","Franklin, ID"]
["Fremont, ID",16043,"Fremont","ID","Fremont, ID"]
["Gem, ID",16045,"Gem","ID","Gem, ID"]
["Gooding, ID",16047,"Gooding","ID","Gooding, ID"]
["Idaho, ID",16049,"Idaho","ID","Idaho, ID"]
["Jefferson, ID",16051,"Jefferson","ID","Jefferson, ID"]
[{"$f":"E579","v":"Jerome, ID"},16053,"Jerome","ID",{"$f":"C579&\", \"&D579","v":"Jerome, ID"}]
["Kootenai, ID",16055,"Kootenai","ID","Kootenai, ID"]
["Latah, ID",16057,"Latah","ID","Latah, ID"]
["Lemhi, ID",16059,"Lemhi","ID","Lemhi, ID"]
["Lewis, ID",16061,"Lewis","ID","Lewis, ID"]
["Lincoln, ID",16063,"Lincoln","ID","Lincoln, ID"]
["Madison, ID",16065,"Madison","ID","Madison, ID"]
["Minidoka, ID",16067,"Minidoka","ID","Minidoka, ID"]
["Nez Perce, ID",16069,"Nez Perce","ID","Nez Perce, ID"]
["Oneida, ID",16071,"Oneida","ID","Oneida, ID"]
["Owyhee, ID",16073,"Owyhee","ID","Owyhee, ID"]
["Payette, ID",16075,"Payette","ID","Payette, ID"]
["Power, ID",16077,"Power","ID","Power, ID"]
["Shoshone, ID",16079,"Shoshone","ID","Shoshone, ID"]
["Teton, ID",16081,"Teton","ID","Teton, ID"]
["Twin Falls, ID",16083,"Twin Falls","ID","Twin Falls, ID"]
["Valley, ID",16085,"Valley","ID","Valley, ID"]
["Washington, ID",16087,"Washington","ID","Washington, ID"]
["Adams, IL",17001,"Adams","IL","Adams, IL"]
["Alexander, IL",17003,"Alexander","IL","Alexander, IL"]
["Bond, IL",17005,"Bond","IL","Bond, IL"]
["Boone, IL",17007,"Boone","IL","Boone, IL"]
["Brown, IL",17009,"Brown","IL","Brown, IL"]
["Bureau, IL",17011,"Bureau","IL","Bureau, IL"]
["Calhoun, IL",17013,"Calhoun","IL","Calhoun, IL"]
["Carroll, IL",17015,"Carroll","IL","Carroll, IL"]
["Cass, IL",17017,"Cass","IL","Cass, IL"]
["Champaign, IL",17019,"Champaign","IL","Champaign, IL"]
["Christian, IL",17021,"Christian","IL","Christian, IL"]
["Clark, IL",17023,"Clark","IL","Clark, IL"]
["Clay, IL",17025,"Clay","IL","Clay, IL"]
["Clinton, IL",17027,"Clinton","IL","Clinton, IL"]
["Coles, IL",17029,"Coles","IL","Coles, IL"]
["Cook, IL",17031,"Cook","IL","Cook, IL"]
["Crawford, IL",17033,"Crawford","IL","Crawford, IL"]
["Cumberland, IL",17035,"Cumberland","IL","Cumberland, IL"]
["DeKalb, IL",17037,"DeKalb","IL","DeKalb, IL"]
["De Witt, IL",17039,"De Witt","IL","De Witt, IL"]
["Douglas, IL",17041,"Douglas","IL","Douglas, IL"]
["DuPage, IL",17043,"DuPage","IL","DuPage, IL"]
["Edgar, IL",17045,"Edgar","IL","Edgar, IL"]
["Edwards, IL",17047,"Edwards","IL","Edwards, IL"]
["Effingham, IL",17049,"Effingham","IL","Effingham, IL"]
["Fayette, IL",17051,"Fayette","IL","Fayette, IL"]
["Ford, IL",17053,"Ford","IL","Ford, IL"]
["Franklin, IL",17055,"Franklin","IL","Franklin, IL"]
["Fulton, IL",17057,"Fulton","IL","Fulton, IL"]
["Gallatin, IL",17059,"Gallatin","IL","Gallatin, IL"]
["Greene, IL",17061,"Greene","IL","Greene, IL"]
["Grundy, IL",17063,"Grundy","IL","Grundy, IL"]
["Hamilton, IL",17065,"Hamilton","IL","Hamilton, IL"]
["Hancock, IL",17067,"Hancock","IL","Hancock, IL"]
["Hardin, IL",17069,"Hardin","IL","Hardin, IL"]
["Henderson, IL",17071,"Henderson","IL","Henderson, IL"]
["Henry, IL",17073,"Henry","IL","Henry, IL"]
["Iroquois, IL",17075,"Iroquois","IL","Iroquois, IL"]
["Jackson, IL",17077,"Jackson","IL","Jackson, IL"]
["Jasper, IL",17079,"Jasper","IL","Jasper, IL"]
["Jefferson, IL",17081,"Jefferson","IL","Jefferson, IL"]
["Jersey, IL",17083,"Jersey","IL","Jersey, IL"]
["Jo Daviess, IL",17085,"Jo Daviess","IL","Jo Daviess, IL"]
["Johnson, IL",17087,"Johnson","IL","Johnson, IL"]
["Kane, IL",17089,"Kane","IL","Kane, IL"]
["Kankakee, IL",17091,"Kankakee","IL","Kankakee, IL"]
[{"$f":"E643","v":"Kendall, IL"},17093,"Kendall","IL",{"$f":"C643&\", \"&D643","v":"Kendall, IL"}]
["Knox, IL",17095,"Knox","IL","Knox, IL"]
["Lake, IL",17097,"Lake","IL","Lake, IL"]
["LaSalle, IL",17099,"LaSalle","IL","LaSalle, IL"]
["Lawrence, IL",17101,"Lawrence","IL","Lawrence, IL"]
["Lee, IL",17103,"Lee","IL","Lee, IL"]
["Livingston, IL",17105,"Livingston","IL","Livingston, IL"]
["Logan, IL",17107,"Logan","IL","Logan, IL"]
["McDonough, IL",17109,"McDonough","IL","McDonough, IL"]
["McHenry, IL",17111,"McHenry","IL","McHenry, IL"]
["McLean, IL",17113,"McLean","IL","McLean, IL"]
["Macon, IL",17115,"Macon","IL","Macon, IL"]
["Macoupin, IL",17117,"Macoupin","IL","Macoupin, IL"]
["Madison, IL",17119,"Madison","IL","Madison, IL"]
["Marion, IL",17121,"Marion","IL","Marion, IL"]
["Marshall, IL",17123,"Marshall","IL","Marshall, IL"]
["Mason, IL",17125,"Mason","IL","Mason, IL"]
["Massac, IL",17127,"Massac","IL","Massac, IL"]
["Menard, IL",17129,"Menard","IL","Menard, IL"]
["Mercer, IL",17131,"Mercer","IL","Mercer, IL"]
["Monroe, IL",17133,"Monroe","IL","Monroe, IL"]
["Montgomery, IL",17135,"Montgomery","IL","Montgomery, IL"]
["Morgan, IL",17137,"Morgan","IL","Morgan, IL"]
["Moultrie, IL",17139,"Moultrie","IL","Moultrie, IL"]
["Ogle, IL",17141,"Ogle","IL","Ogle, IL"]
["Peoria, IL",17143,"Peoria","IL","Peoria, IL"]
["Perry, IL",17145,"Perry","IL","Perry, IL"]
["Piatt, IL",17147,"Piatt","IL","Piatt, IL"]
["Pike, IL",17149,"Pike","IL","Pike, IL"]
["Pope, IL",17151,"Pope","IL","Pope, IL"]
["Pulaski, IL",17153,"Pulaski","IL","Pulaski, IL"]
["Putnam, IL",17155,"Putnam","IL","Putnam, IL"]
["Randolph, IL",17157,"Randolph","IL","Randolph, IL"]
["Richland, IL",17159,"Richland","IL","Richland, IL"]
["Rock Island, IL",17161,"Rock Island","IL","Rock Island, IL"]
["St. Clair, IL",17163,"St. Clair","IL","St. Clair, IL"]
["Saline, IL",17165,"Saline","IL","Saline, IL"]
["Sangamon, IL",17167,"Sangamon","IL","Sangamon, IL"]
["Schuyler, IL",17169,"Schuyler","IL","Schuyler, IL"]
["Scott, IL",17171,"Scott","IL","Scott, IL"]
["Shelby, IL",17173,"Shelby","IL","Shelby, IL"]
["Stark, IL",17175,"Stark","IL","Stark, IL"]
["Stephenson, IL",17177,"Stephenson","IL","Stephenson, IL"]
["Tazewell, IL",17179,"Tazewell","IL","Tazewell, IL"]
["Union, IL",17181,"Union","IL","Union, IL"]
["Vermilion, IL",17183,"Vermilion","IL","Vermilion, IL"]
["Wabash, IL",17185,"Wabash","IL","Wabash, IL"]
["Warren, IL",17187,"Warren","IL","Warren, IL"]
["Washington, IL",17189,"Washington","IL","Washington, IL"]
["Wayne, IL",17191,"Wayne","IL","Wayne, IL"]
["White, IL",17193,"White","IL","White, IL"]
["Whiteside, IL",17195,"Whiteside","IL","Whiteside, IL"]
["Will, IL",17197,"Will","IL","Will, IL"]
["Williamson, IL",17199,"Williamson","IL","Williamson, IL"]
["Winnebago, IL",17201,"Winnebago","IL","Winnebago, IL"]
["Woodford, IL",17203,"Woodford","IL","Woodford, IL"]
["Adams, IN",18001,"Adams","IN","Adams, IN"]
["Allen, IN",18003,"Allen","IN","Allen, IN"]
["Bartholomew, IN",18005,"Bartholomew","IN","Bartholomew, IN"]
["Benton, IN",18007,"Benton","IN","Benton, IN"]
["Blackford, IN",18009,"Blackford","IN","Blackford, IN"]
["Boone, IN",18011,"Boone","IN","Boone, IN"]
["Brown, IN",18013,"Brown","IN","Brown, IN"]
["Carroll, IN",18015,"Carroll","IN","Carroll, IN"]
[{"$f":"E707","v":"Cass, IN"},18017,"Cass","IN",{"$f":"C707&\", \"&D707","v":"Cass, IN"}]
["Clark, IN",18019,"Clark","IN","Clark, IN"]
["Clay, IN",18021,"Clay","IN","Clay, IN"]
["Clinton, IN",18023,"Clinton","IN","Clinton, IN"]
["Crawford, IN",18025,"Crawford","IN","Crawford, IN"]
["Daviess, IN",18027,"Daviess","IN","Daviess, IN"]
["Dearborn, IN",18029,"Dearborn","IN","Dearborn, IN"]
["Decatur, IN",18031,"Decatur","IN","Decatur, IN"]
["DeKalb, IN",18033,"DeKalb","IN","DeKalb, IN"]
["Delaware, IN",18035,"Delaware","IN","Delaware, IN"]
["Dubois, IN",18037,"Dubois","IN","Dubois, IN"]
["Elkhart, IN",18039,"Elkhart","IN","Elkhart, IN"]
["Fayette, IN",18041,"Fayette","IN","Fayette, IN"]
["Floyd, IN",18043,"Floyd","IN","Floyd, IN"]
["Fountain, IN",18045,"Fountain","IN","Fountain, IN"]
["Franklin, IN",18047,"Franklin","IN","Franklin, IN"]
["Fulton, IN",18049,"Fulton","IN","Fulton, IN"]
["Gibson, IN",18051,"Gibson","IN","Gibson, IN"]
["Grant, IN",18053,"Grant","IN","Grant, IN"]
["Greene, IN",18055,"Greene","IN","Greene, IN"]
["Hamilton, IN",18057,"Hamilton","IN","Hamilton, IN"]
["Hancock, IN",18059,"Hancock","IN","Hancock, IN"]
["Harrison, IN",18061,"Harrison","IN","Harrison, IN"]
["Hendricks, IN",18063,"Hendricks","IN","Hendricks, IN"]
["Henry, IN",18065,"Henry","IN","Henry, IN"]
["Howard, IN",18067,"Howard","IN","Howard, IN"]
["Huntington, IN",18069,"Huntington","IN","Huntington, IN"]
["Jackson, IN",18071,"Jackson","IN","Jackson, IN"]
["Jasper, IN",18073,"Jasper","IN","Jasper, IN"]
["Jay, IN",18075,"Jay","IN","Jay, IN"]
["Jefferson, IN",18077,"Jefferson","IN","Jefferson, IN"]
["Jennings, IN",18079,"Jennings","IN","Jennings, IN"]
["Johnson, IN",18081,"Johnson","IN","Johnson, IN"]
["Knox, IN",18083,"Knox","IN","Knox, IN"]
["Kosciusko, IN",18085,"Kosciusko","IN","Kosciusko, IN"]
["LaGrange, IN",18087,"LaGrange","IN","LaGrange, IN"]
["Lake, IN",18089,"Lake","IN","Lake, IN"]
["LaPorte, IN",18091,"LaPorte","IN","LaPorte, IN"]
["Lawrence, IN",18093,"Lawrence","IN","Lawrence, IN"]
["Madison, IN",18095,"Madison","IN","Madison, IN"]
["Marion, IN",18097,"Marion","IN","Marion, IN"]
["Marshall, IN",18099,"Marshall","IN","Marshall, IN"]
["Martin, IN",18101,"Martin","IN","Martin, IN"]
["Miami, IN",18103,"Miami","IN","Miami, IN"]
["Monroe, IN",18105,"Monroe","IN","Monroe, IN"]
["Montgomery, IN",18107,"Montgomery","IN","Montgomery, IN"]
["Morgan, IN",18109,"Morgan","IN","Morgan, IN"]
["Newton, IN",18111,"Newton","IN","Newton, IN"]
["Noble, IN",18113,"Noble","IN","Noble, IN"]
["Ohio, IN",18115,"Ohio","IN","Ohio, IN"]
["Orange, IN",18117,"Orange","IN","Orange, IN"]
["Owen, IN",18119,"Owen","IN","Owen, IN"]
["Parke, IN",18121,"Parke","IN","Parke, IN"]
["Perry, IN",18123,"Perry","IN","Perry, IN"]
["Pike, IN",18125,"Pike","IN","Pike, IN"]
["Porter, IN",18127,"Porter","IN","Porter, IN"]
["Posey, IN",18129,"Posey","IN","Posey, IN"]
["Pulaski, IN",18131,"Pulaski","IN","Pulaski, IN"]
["Putnam, IN",18133,"Putnam","IN","Putnam, IN"]
["Randolph, IN",18135,"Randolph","IN","Randolph, IN"]
["Ripley, IN",18137,"Ripley","IN","Ripley, IN"]
["Rush, IN",18139,"Rush","IN","Rush, IN"]
["St. Joseph, IN",18141,"St. Joseph","IN","St. Joseph, IN"]
["Scott, IN",18143,"Scott","IN","Scott, IN"]
[{"$f":"E771","v":"Shelby, IN"},18145,"Shelby","IN",{"$f":"C771&\", \"&D771","v":"Shelby, IN"}]
["Spencer, IN",18147,"Spencer","IN","Spencer, IN"]
["Starke, IN",18149,"Starke","IN","Starke, IN"]
["Steuben, IN",18151,"Steuben","IN","Steuben, IN"]
["Sullivan, IN",18153,"Sullivan","IN","Sullivan, IN"]
["Switzerland, IN",18155,"Switzerland","IN","Switzerland, IN"]
["Tippecanoe, IN",18157,"Tippecanoe","IN","Tippecanoe, IN"]
["Tipton, IN",18159,"Tipton","IN","Tipton, IN"]
["Union, IN",18161,"Union","IN","Union, IN"]
["Vanderburgh, IN",18163,"Vanderburgh","IN","Vanderburgh, IN"]
["Vermillion, IN",18165,"Vermillion","IN","Vermillion, IN"]
["Vigo, IN",18167,"Vigo","IN","Vigo, IN"]
["Wabash, IN",18169,"Wabash","IN","Wabash, IN"]
["Warren, IN",18171,"Warren","IN","Warren, IN"]
["Warrick, IN",18173,"Warrick","IN","Warrick, IN"]
["Washington, IN",18175,"Washington","IN","Washington, IN"]
["Wayne, IN",18177,"Wayne","IN","Wayne, IN"]
["Wells, IN",18179,"Wells","IN","Wells, IN"]
["White, IN",18181,"White","IN","White, IN"]
["Whitley, IN",18183,"Whitley","IN","Whitley, IN"]
["Adair, IA",19001,"Adair","IA","Adair, IA"]
["Adams, IA",19003,"Adams","IA","Adams, IA"]
["Allamakee, IA",19005,"Allamakee","IA","Allamakee, IA"]
["Appanoose, IA",19007,"Appanoose","IA","Appanoose, IA"]
["Audubon, IA",19009,"Audubon","IA","Audubon, IA"]
["Benton, IA",19011,"Benton","IA","Benton, IA"]
["Black Hawk, IA",19013,"Black Hawk","IA","Black Hawk, IA"]
["Boone, IA",19015,"Boone","IA","Boone, IA"]
["Bremer, IA",19017,"Bremer","IA","Bremer, IA"]
["Buchanan, IA",19019,"Buchanan","IA","Buchanan, IA"]
["Buena Vista, IA",19021,"Buena Vista","IA","Buena Vista, IA"]
["Butler, IA",19023,"Butler","IA","Butler, IA"]
["Calhoun, IA",19025,"Calhoun","IA","Calhoun, IA"]
["Carroll, IA",19027,"Carroll","IA","Carroll, IA"]
["Cass, IA",19029,"Cass","IA","Cass, IA"]
["Cedar, IA",19031,"Cedar","IA","Cedar, IA"]
["Cerro Gordo, IA",19033,"Cerro Gordo","IA","Cerro Gordo, IA"]
["Cherokee, IA",19035,"Cherokee","IA","Cherokee, IA"]
["Chickasaw, IA",19037,"Chickasaw","IA","Chickasaw, IA"]
["Clarke, IA",19039,"Clarke","IA","Clarke, IA"]
["Clay, IA",19041,"Clay","IA","Clay, IA"]
["Clayton, IA",19043,"Clayton","IA","Clayton, IA"]
["Clinton, IA",19045,"Clinton","IA","Clinton, IA"]
["Crawford, IA",19047,"Crawford","IA","Crawford, IA"]
["Dallas, IA",19049,"Dallas","IA","Dallas, IA"]
["Davis, IA",19051,"Davis","IA","Davis, IA"]
["Decatur, IA",19053,"Decatur","IA","Decatur, IA"]
["Delaware, IA",19055,"Delaware","IA","Delaware, IA"]
["Des Moines, IA",19057,"Des Moines","IA","Des Moines, IA"]
["Dickinson, IA",19059,"Dickinson","IA","Dickinson, IA"]
["Dubuque, IA",19061,"Dubuque","IA","Dubuque, IA"]
["Emmet, IA",19063,"Emmet","IA","Emmet, IA"]
["Fayette, IA",19065,"Fayette","IA","Fayette, IA"]
["Floyd, IA",19067,"Floyd","IA","Floyd, IA"]
["Franklin, IA",19069,"Franklin","IA","Franklin, IA"]
["Fremont, IA",19071,"Fremont","IA","Fremont, IA"]
["Greene, IA",19073,"Greene","IA","Greene, IA"]
["Grundy, IA",19075,"Grundy","IA","Grundy, IA"]
["Guthrie, IA",19077,"Guthrie","IA","Guthrie, IA"]
["Hamilton, IA",19079,"Hamilton","IA","Hamilton, IA"]
["Hancock, IA",19081,"Hancock","IA","Hancock, IA"]
["Hardin, IA",19083,"Hardin","IA","Hardin, IA"]
["Harrison, IA",19085,"Harrison","IA","Harrison, IA"]
["Henry, IA",19087,"Henry","IA","Henry, IA"]
[{"$f":"E835","v":"Howard, IA"},19089,"Howard","IA",{"$f":"C835&\", \"&D835","v":"Howard, IA"}]
["Humboldt, IA",19091,"Humboldt","IA","Humboldt, IA"]
["Ida, IA",19093,"Ida","IA","Ida, IA"]
["Iowa, IA",19095,"Iowa","IA","Iowa, IA"]
["Jackson, IA",19097,"Jackson","IA","Jackson, IA"]
["Jasper, IA",19099,"Jasper","IA","Jasper, IA"]
["Jefferson, IA",19101,"Jefferson","IA","Jefferson, IA"]
["Johnson, IA",19103,"Johnson","IA","Johnson, IA"]
["Jones, IA",19105,"Jones","IA","Jones, IA"]
["Keokuk, IA",19107,"Keokuk","IA","Keokuk, IA"]
["Kossuth, IA",19109,"Kossuth","IA","Kossuth, IA"]
["Lee, IA",19111,"Lee","IA","Lee, IA"]
["Linn, IA",19113,"Linn","IA","Linn, IA"]
["Louisa, IA",19115,"Louisa","IA","Louisa, IA"]
["Lucas, IA",19117,"Lucas","IA","Lucas, IA"]
["Lyon, IA",19119,"Lyon","IA","Lyon, IA"]
["Madison, IA",19121,"Madison","IA","Madison, IA"]
["Mahaska, IA",19123,"Mahaska","IA","Mahaska, IA"]
["Marion, IA",19125,"Marion","IA","Marion, IA"]
["Marshall, IA",19127,"Marshall","IA","Marshall, IA"]
["Mills, IA",19129,"Mills","IA","Mills, IA"]
["Mitchell, IA",19131,"Mitchell","IA","Mitchell, IA"]
["Monona, IA",19133,"Monona","IA","Monona, IA"]
["Monroe, IA",19135,"Monroe","IA","Monroe, IA"]
["Montgomery, IA",19137,"Montgomery","IA","Montgomery, IA"]
["Muscatine, IA",19139,"Muscatine","IA","Muscatine, IA"]
["O'Brien, IA",19141,"O'Brien","IA","O'Brien, IA"]
["Osceola, IA",19143,"Osceola","IA","Osceola, IA"]
["Page, IA",19145,"Page","IA","Page, IA"]
["Palo Alto, IA",19147,"Palo Alto","IA","Palo Alto, IA"]
["Plymouth, IA",19149,"Plymouth","IA","Plymouth, IA"]
["Pocahontas, IA",19151,"Pocahontas","IA","Pocahontas, IA"]
["Polk, IA",19153,"Polk","IA","Polk, IA"]
["Pottawattamie, IA",19155,"Pottawattamie","IA","Pottawattamie, IA"]
["Poweshiek, IA",19157,"Poweshiek","IA","Poweshiek, IA"]
["Ringgold, IA",19159,"Ringgold","IA","Ringgold, IA"]
["Sac, IA",19161,"Sac","IA","Sac, IA"]
["Scott, IA",19163,"Scott","IA","Scott, IA"]
["Shelby, IA",19165,"Shelby","IA","Shelby, IA"]
["Sioux, IA",19167,"Sioux","IA","Sioux, IA"]
["Story, IA",19169,"Story","IA","Story, IA"]
["Tama, IA",19171,"Tama","IA","Tama, IA"]
["Taylor, IA",19173,"Taylor","IA","Taylor, IA"]
["Union, IA",19175,"Union","IA","Union, IA"]
["Van Buren, IA",19177,"Van Buren","IA","Van Buren, IA"]
["Wapello, IA",19179,"Wapello","IA","Wapello, IA"]
["Warren, IA",19181,"Warren","IA","Warren, IA"]
["Washington, IA",19183,"Washington","IA","Washington, IA"]
["Wayne, IA",19185,"Wayne","IA","Wayne, IA"]
["Webster, IA",19187,"Webster","IA","Webster, IA"]
["Winnebago, IA",19189,"Winnebago","IA","Winnebago, IA"]
["Winneshiek, IA",19191,"Winneshiek","IA","Winneshiek, IA"]
["Woodbury, IA",19193,"Woodbury","IA","Woodbury, IA"]
["Worth, IA",19195,"Worth","IA","Worth, IA"]
["Wright, IA",19197,"Wright","IA","Wright, IA"]
["Allen, KS",20001,"Allen","KS","Allen, KS"]
["Anderson, KS",20003,"Anderson","KS","Anderson, KS"]
["Atchison, KS",20005,"Atchison","KS","Atchison, KS"]
["Barber, KS",20007,"Barber","KS","Barber, KS"]
["Barton, KS",20009,"Barton","KS","Barton, KS"]
["Bourbon, KS",20011,"Bourbon","KS","Bourbon, KS"]
["Brown, KS",20013,"Brown","KS","Brown, KS"]
["Butler, KS",20015,"Butler","KS","Butler, KS"]
["Chase, KS",20017,"Chase","KS","Chase, KS"]
[{"$f":"E899","v":"Chautauqua, KS"},20019,"Chautauqua","KS",{"$f":"C899&\", \"&D899","v":"Chautauqua, KS"}]
["Cherokee, KS",20021,"Cherokee","KS","Cherokee, KS"]
["Cheyenne, KS",20023,"Cheyenne","KS","Cheyenne, KS"]
["Clark, KS",20025,"Clark","KS","Clark, KS"]
["Clay, KS",20027,"Clay","KS","Clay, KS"]
["Cloud, KS",20029,"Cloud","KS","Cloud, KS"]
["Coffey, KS",20031,"Coffey","KS","Coffey, KS"]
["Comanche, KS",20033,"Comanche","KS","Comanche, KS"]
["Cowley, KS",20035,"Cowley","KS","Cowley, KS"]
["Crawford, KS",20037,"Crawford","KS","Crawford, KS"]
["Decatur, KS",20039,"Decatur","KS","Decatur, KS"]
["Dickinson, KS",20041,"Dickinson","KS","Dickinson, KS"]
["Doniphan, KS",20043,"Doniphan","KS","Doniphan, KS"]
["Douglas, KS",20045,"Douglas","KS","Douglas, KS"]
["Edwards, KS",20047,"Edwards","KS","Edwards, KS"]
["Elk, KS",20049,"Elk","KS","Elk, KS"]
["Ellis, KS",20051,"Ellis","KS","Ellis, KS"]
["Ellsworth, KS",20053,"Ellsworth","KS","Ellsworth, KS"]
["Finney, KS",20055,"Finney","KS","Finney, KS"]
["Ford, KS",20057,"Ford","KS","Ford, KS"]
["Franklin, KS",20059,"Franklin","KS","Franklin, KS"]
["Geary, KS",20061,"Geary","KS","Geary, KS"]
["Gove, KS",20063,"Gove","KS","Gove, KS"]
["Graham, KS",20065,"Graham","KS","Graham, KS"]
["Grant, KS",20067,"Grant","KS","Grant, KS"]
["Gray, KS",20069,"Gray","KS","Gray, KS"]
["Greeley, KS",20071,"Greeley","KS","Greeley, KS"]
["Greenwood, KS",20073,"Greenwood","KS","Greenwood, KS"]
["Hamilton, KS",20075,"Hamilton","KS","Hamilton, KS"]
["Harper, KS",20077,"Harper","KS","Harper, KS"]
["Harvey, KS",20079,"Harvey","KS","Harvey, KS"]
["Haskell, KS",20081,"Haskell","KS","Haskell, KS"]
["Hodgeman, KS",20083,"Hodgeman","KS","Hodgeman, KS"]
["Jackson, KS",20085,"Jackson","KS","Jackson, KS"]
["Jefferson, KS",20087,"Jefferson","KS","Jefferson, KS"]
["Jewell, KS",20089,"Jewell","KS","Jewell, KS"]
["Johnson, KS",20091,"Johnson","KS","Johnson, KS"]
["Kearny, KS",20093,"Kearny","KS","Kearny, KS"]
["Kingman, KS",20095,"Kingman","KS","Kingman, KS"]
["Kiowa, KS",20097,"Kiowa","KS","Kiowa, KS"]
["Labette, KS",20099,"Labette","KS","Labette, KS"]
["Lane, KS",20101,"Lane","KS","Lane, KS"]
["Leavenworth, KS",20103,"Leavenworth","KS","Leavenworth, KS"]
["Lincoln, KS",20105,"Lincoln","KS","Lincoln, KS"]
["Linn, KS",20107,"Linn","KS","Linn, KS"]
["Logan, KS",20109,"Logan","KS","Logan, KS"]
["Lyon, KS",20111,"Lyon","KS","Lyon, KS"]
["McPherson, KS",20113,"McPherson","KS","McPherson, KS"]
["Marion, KS",20115,"Marion","KS","Marion, KS"]
["Marshall, KS",20117,"Marshall","KS","Marshall, KS"]
["Meade, KS",20119,"Meade","KS","Meade, KS"]
["Miami, KS",20121,"Miami","KS","Miami, KS"]
["Mitchell, KS",20123,"Mitchell","KS","Mitchell, KS"]
["Montgomery, KS",20125,"Montgomery","KS","Montgomery, KS"]
["Morris, KS",20127,"Morris","KS","Morris, KS"]
["Morton, KS",20129,"Morton","KS","Morton, KS"]
["Nemaha, KS",20131,"Nemaha","KS","Nemaha, KS"]
["Neosho, KS",20133,"Neosho","KS","Neosho, KS"]
["Ness, KS",20135,"Ness","KS","Ness, KS"]
["Norton, KS",20137,"Norton","KS","Norton, KS"]
["Osage, KS",20139,"Osage","KS","Osage, KS"]
["Osborne, KS",20141,"Osborne","KS","Osborne, KS"]
["Ottawa, KS",20143,"Ottawa","KS","Ottawa, KS"]
["Pawnee, KS",20145,"Pawnee","KS","Pawnee, KS"]
[{"$f":"E963","v":"Phillips, KS"},20147,"Phillips","KS",{"$f":"C963&\", \"&D963","v":"Phillips, KS"}]
["Pottawatomie, KS",20149,"Pottawatomie","KS","Pottawatomie, KS"]
["Pratt, KS",20151,"Pratt","KS","Pratt, KS"]
["Rawlins, KS",20153,"Rawlins","KS","Rawlins, KS"]
["Reno, KS",20155,"Reno","KS","Reno, KS"]
["Republic, KS",20157,"Republic","KS","Republic, KS"]
["Rice, KS",20159,"Rice","KS","Rice, KS"]
["Riley, KS",20161,"Riley","KS","Riley, KS"]
["Rooks, KS",20163,"Rooks","KS","Rooks, KS"]
["Rush, KS",20165,"Rush","KS","Rush, KS"]
["Russell, KS",20167,"Russell","KS","Russell, KS"]
["Saline, KS",20169,"Saline","KS","Saline, KS"]
["Scott, KS",20171,"Scott","KS","Scott, KS"]
["Sedgwick, KS",20173,"Sedgwick","KS","Sedgwick, KS"]
["Seward, KS",20175,"Seward","KS","Seward, KS"]
["Shawnee, KS",20177,"Shawnee","KS","Shawnee, KS"]
["Sheridan, KS",20179,"Sheridan","KS","Sheridan, KS"]
["Sherman, KS",20181,"Sherman","KS","Sherman, KS"]
["Smith, KS",20183,"Smith","KS","Smith, KS"]
["Stafford, KS",20185,"Stafford","KS","Stafford, KS"]
["Stanton, KS",20187,"Stanton","KS","Stanton, KS"]
["Stevens, KS",20189,"Stevens","KS","Stevens, KS"]
["Sumner, KS",20191,"Sumner","KS","Sumner, KS"]
["Thomas, KS",20193,"Thomas","KS","Thomas, KS"]
["Trego, KS",20195,"Trego","KS","Trego, KS"]
["Wabaunsee, KS",20197,"Wabaunsee","KS","Wabaunsee, KS"]
["Wallace, KS",20199,"Wallace","KS","Wallace, KS"]
["Washington, KS",20201,"Washington","KS","Washington, KS"]
["Wichita, KS",20203,"Wichita","KS","Wichita, KS"]
["Wilson, KS",20205,"Wilson","KS","Wilson, KS"]
["Woodson, KS",20207,"Woodson","KS","Woodson, KS"]
["Wyandotte, KS",20209,"Wyandotte","KS","Wyandotte, KS"]
["Adair, KY",21001,"Adair","KY","Adair, KY"]
["Allen, KY",21003,"Allen","KY","Allen, KY"]
["Anderson, KY",21005,"Anderson","KY","Anderson, KY"]
["Ballard, KY",21007,"Ballard","KY","Ballard, KY"]
["Barren, KY",21009,"Barren","KY","Barren, KY"]
["Bath, KY",21011,"Bath","KY","Bath, KY"]
["Bell, KY",21013,"Bell","KY","Bell, KY"]
["Boone, KY",21015,"Boone","KY","Boone, KY"]
["Bourbon, KY",21017,"Bourbon","KY","Bourbon, KY"]
["Boyd, KY",21019,"Boyd","KY","Boyd, KY"]
["Boyle, KY",21021,"Boyle","KY","Boyle, KY"]
["Bracken, KY",21023,"Bracken","KY","Bracken, KY"]
["Breathitt, KY",21025,"Breathitt","KY","Breathitt, KY"]
["Breckinridge, KY",21027,"Breckinridge","KY","Breckinridge, KY"]
["Bullitt, KY",21029,"Bullitt","KY","Bullitt, KY"]
["Butler, KY",21031,"Butler","KY","Butler, KY"]
["Caldwell, KY",21033,"Caldwell","KY","Caldwell, KY"]
["Calloway, KY",21035,"Calloway","KY","Calloway, KY"]
["Campbell, KY",21037,"Campbell","KY","Campbell, KY"]
["Carlisle, KY",21039,"Carlisle","KY","Carlisle, KY"]
["Carroll, KY",21041,"Carroll","KY","Carroll, KY"]
["Carter, KY",21043,"Carter","KY","Carter, KY"]
["Casey, KY",21045,"Casey","KY","Casey, KY"]
["Christian, KY",21047,"Christian","KY","Christian, KY"]
["Clark, KY",21049,"Clark","KY","Clark, KY"]
["Clay, KY",21051,"Clay","KY","Clay, KY"]
["Clinton, KY",21053,"Clinton","KY","Clinton, KY"]
["Crittenden, KY",21055,"Crittenden","KY","Crittenden, KY"]
["Cumberland, KY",21057,"Cumberland","KY","Cumberland, KY"]
["Daviess, KY",21059,"Daviess","KY","Daviess, KY"]
["Edmonson, KY",21061,"Edmonson","KY","Edmonson, KY"]
["Elliott, KY",21063,"Elliott","KY","Elliott, KY"]
[{"$f":"E1027","v":"Estill, KY"},21065,"Estill","KY",{"$f":"C1027&\", \"&D1027","v":"Estill, KY"}]
["Fayette, KY",21067,"Fayette","KY","Fayette, KY"]
["Fleming, KY",21069,"Fleming","KY","Fleming, KY"]
["Floyd, KY",21071,"Floyd","KY","Floyd, KY"]
["Franklin, KY",21073,"Franklin","KY","Franklin, KY"]
["Fulton, KY",21075,"Fulton","KY","Fulton, KY"]
["Gallatin, KY",21077,"Gallatin","KY","Gallatin, KY"]
["Garrard, KY",21079,"Garrard","KY","Garrard, KY"]
["Grant, KY",21081,"Grant","KY","Grant, KY"]
["Graves, KY",21083,"Graves","KY","Graves, KY"]
["Grayson, KY",21085,"Grayson","KY","Grayson, KY"]
["Green, KY",21087,"Green","KY","Green, KY"]
["Greenup, KY",21089,"Greenup","KY","Greenup, KY"]
["Hancock, KY",21091,"Hancock","KY","Hancock, KY"]
["Hardin, KY",21093,"Hardin","KY","Hardin, KY"]
["Harlan, KY",21095,"Harlan","KY","Harlan, KY"]
["Harrison, KY",21097,"Harrison","KY","Harrison, KY"]
["Hart, KY",21099,"Hart","KY","Hart, KY"]
["Henderson, KY",21101,"Henderson","KY","Henderson, KY"]
["Henry, KY",21103,"Henry","KY","Henry, KY"]
["Hickman, KY",21105,"Hickman","KY","Hickman, KY"]
["Hopkins, KY",21107,"Hopkins","KY","Hopkins, KY"]
["Jackson, KY",21109,"Jackson","KY","Jackson, KY"]
["Jefferson, KY",21111,"Jefferson","KY","Jefferson, KY"]
["Jessamine, KY",21113,"Jessamine","KY","Jessamine, KY"]
["Johnson, KY",21115,"Johnson","KY","Johnson, KY"]
["Kenton, KY",21117,"Kenton","KY","Kenton, KY"]
["Knott, KY",21119,"Knott","KY","Knott, KY"]
["Knox, KY",21121,"Knox","KY","Knox, KY"]
["Larue, KY",21123,"Larue","KY","Larue, KY"]
["Laurel, KY",21125,"Laurel","KY","Laurel, KY"]
["Lawrence, KY",21127,"Lawrence","KY","Lawrence, KY"]
["Lee, KY",21129,"Lee","KY","Lee, KY"]
["Leslie, KY",21131,"Leslie","KY","Leslie, KY"]
["Letcher, KY",21133,"Letcher","KY","Letcher, KY"]
["Lewis, KY",21135,"Lewis","KY","Lewis, KY"]
["Lincoln, KY",21137,"Lincoln","KY","Lincoln, KY"]
["Livingston, KY",21139,"Livingston","KY","Livingston, KY"]
["Logan, KY",21141,"Logan","KY","Logan, KY"]
["Lyon, KY",21143,"Lyon","KY","Lyon, KY"]
["McCracken, KY",21145,"McCracken","KY","McCracken, KY"]
["McCreary, KY",21147,"McCreary","KY","McCreary, KY"]
["McLean, KY",21149,"McLean","KY","McLean, KY"]
["Madison, KY",21151,"Madison","KY","Madison, KY"]
["Magoffin, KY",21153,"Magoffin","KY","Magoffin, KY"]
["Marion, KY",21155,"Marion","KY","Marion, KY"]
["Marshall, KY",21157,"Marshall","KY","Marshall, KY"]
["Martin, KY",21159,"Martin","KY","Martin, KY"]
["Mason, KY",21161,"Mason","KY","Mason, KY"]
["Meade, KY",21163,"Meade","KY","Meade, KY"]
["Menifee, KY",21165,"Menifee","KY","Menifee, KY"]
["Mercer, KY",21167,"Mercer","KY","Mercer, KY"]
["Metcalfe, KY",21169,"Metcalfe","KY","Metcalfe, KY"]
["Monroe, KY",21171,"Monroe","KY","Monroe, KY"]
["Montgomery, KY",21173,"Montgomery","KY","Montgomery, KY"]
["Morgan, KY",21175,"Morgan","KY","Morgan, KY"]
["Muhlenberg, KY",21177,"Muhlenberg","KY","Muhlenberg, KY"]
["Nelson, KY",21179,"Nelson","KY","Nelson, KY"]
["Nicholas, KY",21181,"Nicholas","KY","Nicholas, KY"]
["Ohio, KY",21183,"Ohio","KY","Ohio, KY"]
["Oldham, KY",21185,"Oldham","KY","Oldham, KY"]
["Owen, KY",21187,"Owen","KY","Owen, KY"]
["Owsley, KY",21189,"Owsley","KY","Owsley, KY"]
["Pendleton, KY",21191,"Pendleton","KY","Pendleton, KY"]
[{"$f":"E1091","v":"Perry, KY"},21193,"Perry","KY",{"$f":"C1091&\", \"&D1091","v":"Perry, KY"}]
["Pike, KY",21195,"Pike","KY","Pike, KY"]
["Powell, KY",21197,"Powell","KY","Powell, KY"]
["Pulaski, KY",21199,"Pulaski","KY","Pulaski, KY"]
["Robertson, KY",21201,"Robertson","KY","Robertson, KY"]
["Rockcastle, KY",21203,"Rockcastle","KY","Rockcastle, KY"]
["Rowan, KY",21205,"Rowan","KY","Rowan, KY"]
["Russell, KY",21207,"Russell","KY","Russell, KY"]
["Scott, KY",21209,"Scott","KY","Scott, KY"]
["Shelby, KY",21211,"Shelby","KY","Shelby, KY"]
["Simpson, KY",21213,"Simpson","KY","Simpson, KY"]
["Spencer, KY",21215,"Spencer","KY","Spencer, KY"]
["Taylor, KY",21217,"Taylor","KY","Taylor, KY"]
["Todd, KY",21219,"Todd","KY","Todd, KY"]
["Trigg, KY",21221,"Trigg","KY","Trigg, KY"]
["Trimble, KY",21223,"Trimble","KY","Trimble, KY"]
["Union, KY",21225,"Union","KY","Union, KY"]
["Warren, KY",21227,"Warren","KY","Warren, KY"]
["Washington, KY",21229,"Washington","KY","Washington, KY"]
["Wayne, KY",21231,"Wayne","KY","Wayne, KY"]
["Webster, KY",21233,"Webster","KY","Webster, KY"]
["Whitley, KY",21235,"Whitley","KY","Whitley, KY"]
["Wolfe, KY",21237,"Wolfe","KY","Wolfe, KY"]
["Woodford, KY",21239,"Woodford","KY","Woodford, KY"]
["Acadia, LA",22001,"Acadia","LA","Acadia, LA"]
["Allen, LA",22003,"Allen","LA","Allen, LA"]
["Ascension, LA",22005,"Ascension","LA","Ascension, LA"]
["Assumption, LA",22007,"Assumption","LA","Assumption, LA"]
["Avoyelles, LA",22009,"Avoyelles","LA","Avoyelles, LA"]
["Beauregard, LA",22011,"Beauregard","LA","Beauregard, LA"]
["Bienville, LA",22013,"Bienville","LA","Bienville, LA"]
["Bossier, LA",22015,"Bossier","LA","Bossier, LA"]
["Caddo, LA",22017,"Caddo","LA","Caddo, LA"]
["Calcasieu, LA",22019,"Calcasieu","LA","Calcasieu, LA"]
["Caldwell, LA",22021,"Caldwell","LA","Caldwell, LA"]
["Cameron, LA",22023,"Cameron","LA","Cameron, LA"]
["Catahoula, LA",22025,"Catahoula","LA","Catahoula, LA"]
["Claiborne, LA",22027,"Claiborne","LA","Claiborne, LA"]
["Concordia, LA",22029,"Concordia","LA","Concordia, LA"]
["De Soto, LA",22031,"De Soto","LA","De Soto, LA"]
["East Baton Rouge, LA",22033,"East Baton Rouge","LA","East Baton Rouge, LA"]
["East Carroll, LA",22035,"East Carroll","LA","East Carroll, LA"]
["East Feliciana, LA",22037,"East Feliciana","LA","East Feliciana, LA"]
["Evangeline, LA",22039,"Evangeline","LA","Evangeline, LA"]
["Franklin, LA",22041,"Franklin","LA","Franklin, LA"]
["Grant, LA",22043,"Grant","LA","Grant, LA"]
["Iberia, LA",22045,"Iberia","LA","Iberia, LA"]
["Iberville, LA",22047,"Iberville","LA","Iberville, LA"]
["Jackson, LA",22049,"Jackson","LA","Jackson, LA"]
["Jefferson, LA",22051,"Jefferson","LA","Jefferson, LA"]
["Jefferson Davis, LA",22053,"Jefferson Davis","LA","Jefferson Davis, LA"]
["Lafayette, LA",22055,"Lafayette","LA","Lafayette, LA"]
["Lafourche, LA",22057,"Lafourche","LA","Lafourche, LA"]
["LaSalle, LA",22059,"LaSalle","LA","LaSalle, LA"]
["Lincoln, LA",22061,"Lincoln","LA","Lincoln, LA"]
["Livingston, LA",22063,"Livingston","LA","Livingston, LA"]
["Madison, LA",22065,"Madison","LA","Madison, LA"]
["Morehouse, LA",22067,"Morehouse","LA","Morehouse, LA"]
["Natchitoches, LA",22069,"Natchitoches","LA","Natchitoches, LA"]
["Orleans, LA",22071,"Orleans","LA","Orleans, LA"]
["Ouachita, LA",22073,"Ouachita","LA","Ouachita, LA"]
["Plaquemines, LA",22075,"Plaquemines","LA","Plaquemines, LA"]
["Pointe Coupee, LA",22077,"Pointe Coupee","LA","Pointe Coupee, LA"]
["Rapides, LA",22079,"Rapides","LA","Rapides, LA"]
[{"$f":"E1155","v":"Red River, LA"},22081,"Red River","LA",{"$f":"C1155&\", \"&D1155","v":"Red River, LA"}]
["Richland, LA",22083,"Richland","LA","Richland, LA"]
["Sabine, LA",22085,"Sabine","LA","Sabine, LA"]
["St. Bernard, LA",22087,"St. Bernard","LA","St. Bernard, LA"]
["St. Charles, LA",22089,"St. Charles","LA","St. Charles, LA"]
["St. Helena, LA",22091,"St. Helena","LA","St. Helena, LA"]
["St. James, LA",22093,"St. James","LA","St. James, LA"]
["St. John the Baptist, LA",22095,"St. John the Baptist","LA","St. John the Baptist, LA"]
["St. Landry, LA",22097,"St. Landry","LA","St. Landry, LA"]
["St. Martin, LA",22099,"St. Martin","LA","St. Martin, LA"]
["St. Mary, LA",22101,"St. Mary","LA","St. Mary, LA"]
["St. Tammany, LA",22103,"St. Tammany","LA","St. Tammany, LA"]
["Tangipahoa, LA",22105,"Tangipahoa","LA","Tangipahoa, LA"]
["Tensas, LA",22107,"Tensas","LA","Tensas, LA"]
["Terrebonne, LA",22109,"Terrebonne","LA","Terrebonne, LA"]
["Union, LA",22111,"Union","LA","Union, LA"]
["Vermilion, LA",22113,"Vermilion","LA","Vermilion, LA"]
["Vernon, LA",22115,"Vernon","LA","Vernon, LA"]
["Washington, LA",22117,"Washington","LA","Washington, LA"]
["Webster, LA",22119,"Webster","LA","Webster, LA"]
["West Baton Rouge, LA",22121,"West Baton Rouge","LA","West Baton Rouge, LA"]
["West Carroll, LA",22123,"West Carroll","LA","West Carroll, LA"]
["West Feliciana, LA",22125,"West Feliciana","LA","West Feliciana, LA"]
["Winn, LA",22127,"Winn","LA","Winn, LA"]
["Androscoggin, ME",23001,"Androscoggin","ME","Androscoggin, ME"]
["Aroostook, ME",23003,"Aroostook","ME","Aroostook, ME"]
["Cumberland, ME",23005,"Cumberland","ME","Cumberland, ME"]
["Franklin, ME",23007,"Franklin","ME","Franklin, ME"]
["Hancock, ME",23009,"Hancock","ME","Hancock, ME"]
["Kennebec, ME",23011,"Kennebec","ME","Kennebec, ME"]
["Knox, ME",23013,"Knox","ME","Knox, ME"]
["Lincoln, ME",23015,"Lincoln","ME","Lincoln, ME"]
["Oxford, ME",23017,"Oxford","ME","Oxford, ME"]
["Penobscot, ME",23019,"Penobscot","ME","Penobscot, ME"]
["Piscataquis, ME",23021,"Piscataquis","ME","Piscataquis, ME"]
["Sagadahoc, ME",23023,"Sagadahoc","ME","Sagadahoc, ME"]
["Somerset, ME",23025,"Somerset","ME","Somerset, ME"]
["Waldo, ME",23027,"Waldo","ME","Waldo, ME"]
["Washington, ME",23029,"Washington","ME","Washington, ME"]
["York, ME",23031,"York","ME","York, ME"]
["Allegany, MD",24001,"Allegany","MD","Allegany, MD"]
["Anne Arundel, MD",24003,"Anne Arundel","MD","Anne Arundel, MD"]
["Baltimore, MD",24005,"Baltimore","MD","Baltimore, MD"]
["Calvert, MD",24009,"Calvert","MD","Calvert, MD"]
["Caroline, MD",24011,"Caroline","MD","Caroline, MD"]
["Carroll, MD",24013,"Carroll","MD","Carroll, MD"]
["Cecil, MD",24015,"Cecil","MD","Cecil, MD"]
["Charles, MD",24017,"Charles","MD","Charles, MD"]
["Dorchester, MD",24019,"Dorchester","MD","Dorchester, MD"]
["Frederick, MD",24021,"Frederick","MD","Frederick, MD"]
["Garrett, MD",24023,"Garrett","MD","Garrett, MD"]
["Harford, MD",24025,"Harford","MD","Harford, MD"]
["Howard, MD",24027,"Howard","MD","Howard, MD"]
["Kent, MD",24029,"Kent","MD","Kent, MD"]
["Montgomery, MD",24031,"Montgomery","MD","Montgomery, MD"]
["Prince George's, MD",24033,"Prince George's","MD","Prince George's, MD"]
["Queen Anne's, MD",24035,"Queen Anne's","MD","Queen Anne's, MD"]
["St. Mary's, MD",24037,"St. Mary's","MD","St. Mary's, MD"]
["Somerset, MD",24039,"Somerset","MD","Somerset, MD"]
["Talbot, MD",24041,"Talbot","MD","Talbot, MD"]
["Washington, MD",24043,"Washington","MD","Washington, MD"]
["Wicomico, MD",24045,"Wicomico","MD","Wicomico, MD"]
["Worcester, MD",24047,"Worcester","MD","Worcester, MD"]
["Baltimore, MD",24510,"Baltimore","MD","Baltimore, MD"]
[{"$f":"E1219","v":"Barnstable, MA"},25001,"Barnstable","MA",{"$f":"C1219&\", \"&D1219","v":"Barnstable, MA"}]
["Berkshire, MA",25003,"Berkshire","MA","Berkshire, MA"]
["Bristol, MA",25005,"Bristol","MA","Bristol, MA"]
["Dukes, MA",25007,"Dukes","MA","Dukes, MA"]
["Essex, MA",25009,"Essex","MA","Essex, MA"]
["Franklin, MA",25011,"Franklin","MA","Franklin, MA"]
["Hampden, MA",25013,"Hampden","MA","Hampden, MA"]
["Hampshire, MA",25015,"Hampshire","MA","Hampshire, MA"]
["Middlesex, MA",25017,"Middlesex","MA","Middlesex, MA"]
["Nantucket, MA",25019,"Nantucket","MA","Nantucket, MA"]
["Norfolk, MA",25021,"Norfolk","MA","Norfolk, MA"]
["Plymouth, MA",25023,"Plymouth","MA","Plymouth, MA"]
["Suffolk, MA",25025,"Suffolk","MA","Suffolk, MA"]
["Worcester, MA",25027,"Worcester","MA","Worcester, MA"]
["Alcona, MI",26001,"Alcona","MI","Alcona, MI"]
["Alger, MI",26003,"Alger","MI","Alger, MI"]
["Allegan, MI",26005,"Allegan","MI","Allegan, MI"]
["Alpena, MI",26007,"Alpena","MI","Alpena, MI"]
["Antrim, MI",26009,"Antrim","MI","Antrim, MI"]
["Arenac, MI",26011,"Arenac","MI","Arenac, MI"]
["Baraga, MI",26013,"Baraga","MI","Baraga, MI"]
["Barry, MI",26015,"Barry","MI","Barry, MI"]
["Bay, MI",26017,"Bay","MI","Bay, MI"]
["Benzie, MI",26019,"Benzie","MI","Benzie, MI"]
["Berrien, MI",26021,"Berrien","MI","Berrien, MI"]
["Branch, MI",26023,"Branch","MI","Branch, MI"]
["Calhoun, MI",26025,"Calhoun","MI","Calhoun, MI"]
["Cass, MI",26027,"Cass","MI","Cass, MI"]
["Charlevoix, MI",26029,"Charlevoix","MI","Charlevoix, MI"]
["Cheboygan, MI",26031,"Cheboygan","MI","Cheboygan, MI"]
["Chippewa, MI",26033,"Chippewa","MI","Chippewa, MI"]
["Clare, MI",26035,"Clare","MI","Clare, MI"]
["Clinton, MI",26037,"Clinton","MI","Clinton, MI"]
["Crawford, MI",26039,"Crawford","MI","Crawford, MI"]
["Delta, MI",26041,"Delta","MI","Delta, MI"]
["Dickinson, MI",26043,"Dickinson","MI","Dickinson, MI"]
["Eaton, MI",26045,"Eaton","MI","Eaton, MI"]
["Emmet, MI",26047,"Emmet","MI","Emmet, MI"]
["Genesee, MI",26049,"Genesee","MI","Genesee, MI"]
["Gladwin, MI",26051,"Gladwin","MI","Gladwin, MI"]
["Gogebic, MI",26053,"Gogebic","MI","Gogebic, MI"]
["Grand Traverse, MI",26055,"Grand Traverse","MI","Grand Traverse, MI"]
["Gratiot, MI",26057,"Gratiot","MI","Gratiot, MI"]
["Hillsdale, MI",26059,"Hillsdale","MI","Hillsdale, MI"]
["Houghton, MI",26061,"Houghton","MI","Houghton, MI"]
["Huron, MI",26063,"Huron","MI","Huron, MI"]
["Ingham, MI",26065,"Ingham","MI","Ingham, MI"]
["Ionia, MI",26067,"Ionia","MI","Ionia, MI"]
["Iosco, MI",26069,"Iosco","MI","Iosco, MI"]
["Iron, MI",26071,"Iron","MI","Iron, MI"]
["Isabella, MI",26073,"Isabella","MI","Isabella, MI"]
["Jackson, MI",26075,"Jackson","MI","Jackson, MI"]
["Kalamazoo, MI",26077,"Kalamazoo","MI","Kalamazoo, MI"]
["Kalkaska, MI",26079,"Kalkaska","MI","Kalkaska, MI"]
["Kent, MI",26081,"Kent","MI","Kent, MI"]
["Keweenaw, MI",26083,"Keweenaw","MI","Keweenaw, MI"]
["Lake, MI",26085,"Lake","MI","Lake, MI"]
["Lapeer, MI",26087,"Lapeer","MI","Lapeer, MI"]
["Leelanau, MI",26089,"Leelanau","MI","Leelanau, MI"]
["Lenawee, MI",26091,"Lenawee","MI","Lenawee, MI"]
["Livingston, MI",26093,"Livingston","MI","Livingston, MI"]
["Luce, MI",26095,"Luce","MI","Luce, MI"]
["Mackinac, MI",26097,"Mackinac","MI","Mackinac, MI"]
["Macomb, MI",26099,"Macomb","MI","Macomb, MI"]
[{"$f":"E1283","v":"Manistee, MI"},26101,"Manistee","MI",{"$f":"C1283&\", \"&D1283","v":"Manistee, MI"}]
["Marquette, MI",26103,"Marquette","MI","Marquette, MI"]
["Mason, MI",26105,"Mason","MI","Mason, MI"]
["Mecosta, MI",26107,"Mecosta","MI","Mecosta, MI"]
["Menominee, MI",26109,"Menominee","MI","Menominee, MI"]
["Midland, MI",26111,"Midland","MI","Midland, MI"]
["Missaukee, MI",26113,"Missaukee","MI","Missaukee, MI"]
["Monroe, MI",26115,"Monroe","MI","Monroe, MI"]
["Montcalm, MI",26117,"Montcalm","MI","Montcalm, MI"]
["Montmorency, MI",26119,"Montmorency","MI","Montmorency, MI"]
["Muskegon, MI",26121,"Muskegon","MI","Muskegon, MI"]
["Newaygo, MI",26123,"Newaygo","MI","Newaygo, MI"]
["Oakland, MI",26125,"Oakland","MI","Oakland, MI"]
["Oceana, MI",26127,"Oceana","MI","Oceana, MI"]
["Ogemaw, MI",26129,"Ogemaw","MI","Ogemaw, MI"]
["Ontonagon, MI",26131,"Ontonagon","MI","Ontonagon, MI"]
["Osceola, MI",26133,"Osceola","MI","Osceola, MI"]
["Oscoda, MI",26135,"Oscoda","MI","Oscoda, MI"]
["Otsego, MI",26137,"Otsego","MI","Otsego, MI"]
["Ottawa, MI",26139,"Ottawa","MI","Ottawa, MI"]
["Presque Isle, MI",26141,"Presque Isle","MI","Presque Isle, MI"]
["Roscommon, MI",26143,"Roscommon","MI","Roscommon, MI"]
["Saginaw, MI",26145,"Saginaw","MI","Saginaw, MI"]
["St. Clair, MI",26147,"St. Clair","MI","St. Clair, MI"]
["St. Joseph, MI",26149,"St. Joseph","MI","St. Joseph, MI"]
["Sanilac, MI",26151,"Sanilac","MI","Sanilac, MI"]
["Schoolcraft, MI",26153,"Schoolcraft","MI","Schoolcraft, MI"]
["Shiawassee, MI",26155,"Shiawassee","MI","Shiawassee, MI"]
["Tuscola, MI",26157,"Tuscola","MI","Tuscola, MI"]
["Van Buren, MI",26159,"Van Buren","MI","Van Buren, MI"]
["Washtenaw, MI",26161,"Washtenaw","MI","Washtenaw, MI"]
["Wayne, MI",26163,"Wayne","MI","Wayne, MI"]
["Wexford, MI",26165,"Wexford","MI","Wexford, MI"]
["Aitkin, MN",27001,"Aitkin","MN","Aitkin, MN"]
["Anoka, MN",27003,"Anoka","MN","Anoka, MN"]
["Becker, MN",27005,"Becker","MN","Becker, MN"]
["Beltrami, MN",27007,"Beltrami","MN","Beltrami, MN"]
["Benton, MN",27009,"Benton","MN","Benton, MN"]
["Big Stone, MN",27011,"Big Stone","MN","Big Stone, MN"]
["Blue Earth, MN",27013,"Blue Earth","MN","Blue Earth, MN"]
["Brown, MN",27015,"Brown","MN","Brown, MN"]
["Carlton, MN",27017,"Carlton","MN","Carlton, MN"]
["Carver, MN",27019,"Carver","MN","Carver, MN"]
["Cass, MN",27021,"Cass","MN","Cass, MN"]
["Chippewa, MN",27023,"Chippewa","MN","Chippewa, MN"]
["Chisago, MN",27025,"Chisago","MN","Chisago, MN"]
["Clay, MN",27027,"Clay","MN","Clay, MN"]
["Clearwater, MN",27029,"Clearwater","MN","Clearwater, MN"]
["Cook, MN",27031,"Cook","MN","Cook, MN"]
["Cottonwood, MN",27033,"Cottonwood","MN","Cottonwood, MN"]
["Crow Wing, MN",27035,"Crow Wing","MN","Crow Wing, MN"]
["Dakota, MN",27037,"Dakota","MN","Dakota, MN"]
["Dodge, MN",27039,"Dodge","MN","Dodge, MN"]
["Douglas, MN",27041,"Douglas","MN","Douglas, MN"]
["Faribault, MN",27043,"Faribault","MN","Faribault, MN"]
["Fillmore, MN",27045,"Fillmore","MN","Fillmore, MN"]
["Freeborn, MN",27047,"Freeborn","MN","Freeborn, MN"]
["Goodhue, MN",27049,"Goodhue","MN","Goodhue, MN"]
["Grant, MN",27051,"Grant","MN","Grant, MN"]
["Hennepin, MN",27053,"Hennepin","MN","Hennepin, MN"]
["Houston, MN",27055,"Houston","MN","Houston, MN"]
["Hubbard, MN",27057,"Hubbard","MN","Hubbard, MN"]
["Isanti, MN",27059,"Isanti","MN","Isanti, MN"]
["Itasca, MN",27061,"Itasca","MN","Itasca, MN"]
[{"$f":"E1347","v":"Jackson, MN"},27063,"Jackson","MN",{"$f":"C1347&\", \"&D1347","v":"Jackson, MN"}]
["Kanabec, MN",27065,"Kanabec","MN","Kanabec, MN"]
["Kandiyohi, MN",27067,"Kandiyohi","MN","Kandiyohi, MN"]
["Kittson, MN",27069,"Kittson","MN","Kittson, MN"]
["Koochiching, MN",27071,"Koochiching","MN","Koochiching, MN"]
["Lac qui Parle, MN",27073,"Lac qui Parle","MN","Lac qui Parle, MN"]
["Lake, MN",27075,"Lake","MN","Lake, MN"]
["Lake of the Woods, MN",27077,"Lake of the Woods","MN","Lake of the Woods, MN"]
["Le Sueur, MN",27079,"Le Sueur","MN","Le Sueur, MN"]
["Lincoln, MN",27081,"Lincoln","MN","Lincoln, MN"]
["Lyon, MN",27083,"Lyon","MN","Lyon, MN"]
["McLeod, MN",27085,"McLeod","MN","McLeod, MN"]
["Mahnomen, MN",27087,"Mahnomen","MN","Mahnomen, MN"]
["Marshall, MN",27089,"Marshall","MN","Marshall, MN"]
["Martin, MN",27091,"Martin","MN","Martin, MN"]
["Meeker, MN",27093,"Meeker","MN","Meeker, MN"]
["Mille Lacs, MN",27095,"Mille Lacs","MN","Mille Lacs, MN"]
["Morrison, MN",27097,"Morrison","MN","Morrison, MN"]
["Mower, MN",27099,"Mower","MN","Mower, MN"]
["Murray, MN",27101,"Murray","MN","Murray, MN"]
["Nicollet, MN",27103,"Nicollet","MN","Nicollet, MN"]
["Nobles, MN",27105,"Nobles","MN","Nobles, MN"]
["Norman, MN",27107,"Norman","MN","Norman, MN"]
["Olmsted, MN",27109,"Olmsted","MN","Olmsted, MN"]
["Otter Tail, MN",27111,"Otter Tail","MN","Otter Tail, MN"]
["Pennington, MN",27113,"Pennington","MN","Pennington, MN"]
["Pine, MN",27115,"Pine","MN","Pine, MN"]
["Pipestone, MN",27117,"Pipestone","MN","Pipestone, MN"]
["Polk, MN",27119,"Polk","MN","Polk, MN"]
["Pope, MN",27121,"Pope","MN","Pope, MN"]
["Ramsey, MN",27123,"Ramsey","MN","Ramsey, MN"]
["Red Lake, MN",27125,"Red Lake","MN","Red Lake, MN"]
["Redwood, MN",27127,"Redwood","MN","Redwood, MN"]
["Renville, MN",27129,"Renville","MN","Renville, MN"]
["Rice, MN",27131,"Rice","MN","Rice, MN"]
["Rock, MN",27133,"Rock","MN","Rock, MN"]
["Roseau, MN",27135,"Roseau","MN","Roseau, MN"]
["St. Louis, MN",27137,"St. Louis","MN","St. Louis, MN"]
["Scott, MN",27139,"Scott","MN","Scott, MN"]
["Sherburne, MN",27141,"Sherburne","MN","Sherburne, MN"]
["Sibley, MN",27143,"Sibley","MN","Sibley, MN"]
["Stearns, MN",27145,"Stearns","MN","Stearns, MN"]
["Steele, MN",27147,"Steele","MN","Steele, MN"]
["Stevens, MN",27149,"Stevens","MN","Stevens, MN"]
["Swift, MN",27151,"Swift","MN","Swift, MN"]
["Todd, MN",27153,"Todd","MN","Todd, MN"]
["Traverse, MN",27155,"Traverse","MN","Traverse, MN"]
["Wabasha, MN",27157,"Wabasha","MN","Wabasha, MN"]
["Wadena, MN",27159,"Wadena","MN","Wadena, MN"]
["Waseca, MN",27161,"Waseca","MN","Waseca, MN"]
["Washington, MN",27163,"Washington","MN","Washington, MN"]
["Watonwan, MN",27165,"Watonwan","MN","Watonwan, MN"]
["Wilkin, MN",27167,"Wilkin","MN","Wilkin, MN"]
["Winona, MN",27169,"Winona","MN","Winona, MN"]
["Wright, MN",27171,"Wright","MN","Wright, MN"]
["Yellow Medicine, MN",27173,"Yellow Medicine","MN","Yellow Medicine, MN"]
["Adams, MS",28001,"Adams","MS","Adams, MS"]
["Alcorn, MS",28003,"Alcorn","MS","Alcorn, MS"]
["Amite, MS",28005,"Amite","MS","Amite, MS"]
["Attala, MS",28007,"Attala","MS","Attala, MS"]
["Benton, MS",28009,"Benton","MS","Benton, MS"]
["Bolivar, MS",28011,"Bolivar","MS","Bolivar, MS"]
["Calhoun, MS",28013,"Calhoun","MS","Calhoun, MS"]
["Carroll, MS",28015,"Carroll","MS","Carroll, MS"]
[{"$f":"E1411","v":"Chickasaw, MS"},28017,"Chickasaw","MS",{"$f":"C1411&\", \"&D1411","v":"Chickasaw, MS"}]
["Choctaw, MS",28019,"Choctaw","MS","Choctaw, MS"]
["Claiborne, MS",28021,"Claiborne","MS","Claiborne, MS"]
["Clarke, MS",28023,"Clarke","MS","Clarke, MS"]
["Clay, MS",28025,"Clay","MS","Clay, MS"]
["Coahoma, MS",28027,"Coahoma","MS","Coahoma, MS"]
["Copiah, MS",28029,"Copiah","MS","Copiah, MS"]
["Covington, MS",28031,"Covington","MS","Covington, MS"]
["DeSoto, MS",28033,"DeSoto","MS","DeSoto, MS"]
["Forrest, MS",28035,"Forrest","MS","Forrest, MS"]
["Franklin, MS",28037,"Franklin","MS","Franklin, MS"]
["George, MS",28039,"George","MS","George, MS"]
["Greene, MS",28041,"Greene","MS","Greene, MS"]
["Grenada, MS",28043,"Grenada","MS","Grenada, MS"]
["Hancock, MS",28045,"Hancock","MS","Hancock, MS"]
["Harrison, MS",28047,"Harrison","MS","Harrison, MS"]
["Hinds, MS",28049,"Hinds","MS","Hinds, MS"]
["Holmes, MS",28051,"Holmes","MS","Holmes, MS"]
["Humphreys, MS",28053,"Humphreys","MS","Humphreys, MS"]
["Issaquena, MS",28055,"Issaquena","MS","Issaquena, MS"]
["Itawamba, MS",28057,"Itawamba","MS","Itawamba, MS"]
["Jackson, MS",28059,"Jackson","MS","Jackson, MS"]
["Jasper, MS",28061,"Jasper","MS","Jasper, MS"]
["Jefferson, MS",28063,"Jefferson","MS","Jefferson, MS"]
["Jefferson Davis, MS",28065,"Jefferson Davis","MS","Jefferson Davis, MS"]
["Jones, MS",28067,"Jones","MS","Jones, MS"]
["Kemper, MS",28069,"Kemper","MS","Kemper, MS"]
["Lafayette, MS",28071,"Lafayette","MS","Lafayette, MS"]
["Lamar, MS",28073,"Lamar","MS","Lamar, MS"]
["Lauderdale, MS",28075,"Lauderdale","MS","Lauderdale, MS"]
["Lawrence, MS",28077,"Lawrence","MS","Lawrence, MS"]
["Leake, MS",28079,"Leake","MS","Leake, MS"]
["Lee, MS",28081,"Lee","MS","Lee, MS"]
["Leflore, MS",28083,"Leflore","MS","Leflore, MS"]
["Lincoln, MS",28085,"Lincoln","MS","Lincoln, MS"]
["Lowndes, MS",28087,"Lowndes","MS","Lowndes, MS"]
["Madison, MS",28089,"Madison","MS","Madison, MS"]
["Marion, MS",28091,"Marion","MS","Marion, MS"]
["Marshall, MS",28093,"Marshall","MS","Marshall, MS"]
["Monroe, MS",28095,"Monroe","MS","Monroe, MS"]
["Montgomery, MS",28097,"Montgomery","MS","Montgomery, MS"]
["Neshoba, MS",28099,"Neshoba","MS","Neshoba, MS"]
["Newton, MS",28101,"Newton","MS","Newton, MS"]
["Noxubee, MS",28103,"Noxubee","MS","Noxubee, MS"]
["Oktibbeha, MS",28105,"Oktibbeha","MS","Oktibbeha, MS"]
["Panola, MS",28107,"Panola","MS","Panola, MS"]
["Pearl River, MS",28109,"Pearl River","MS","Pearl River, MS"]
["Perry, MS",28111,"Perry","MS","Perry, MS"]
["Pike, MS",28113,"Pike","MS","Pike, MS"]
["Pontotoc, MS",28115,"Pontotoc","MS","Pontotoc, MS"]
["Prentiss, MS",28117,"Prentiss","MS","Prentiss, MS"]
["Quitman, MS",28119,"Quitman","MS","Quitman, MS"]
["Rankin, MS",28121,"Rankin","MS","Rankin, MS"]
["Scott, MS",28123,"Scott","MS","Scott, MS"]
["Sharkey, MS",28125,"Sharkey","MS","Sharkey, MS"]
["Simpson, MS",28127,"Simpson","MS","Simpson, MS"]
["Smith, MS",28129,"Smith","MS","Smith, MS"]
["Stone, MS",28131,"Stone","MS","Stone, MS"]
["Sunflower, MS",28133,"Sunflower","MS","Sunflower, MS"]
["Tallahatchie, MS",28135,"Tallahatchie","MS","Tallahatchie, MS"]
["Tate, MS",28137,"Tate","MS","Tate, MS"]
["Tippah, MS",28139,"Tippah","MS","Tippah, MS"]
["Tishomingo, MS",28141,"Tishomingo","MS","Tishomingo, MS"]
["Tunica, MS",28143,"Tunica","MS","Tunica, MS"]
[{"$f":"E1475","v":"Union, MS"},28145,"Union","MS",{"$f":"C1475&\", \"&D1475","v":"Union, MS"}]
["Walthall, MS",28147,"Walthall","MS","Walthall, MS"]
["Warren, MS",28149,"Warren","MS","Warren, MS"]
["Washington, MS",28151,"Washington","MS","Washington, MS"]
["Wayne, MS",28153,"Wayne","MS","Wayne, MS"]
["Webster, MS",28155,"Webster","MS","Webster, MS"]
["Wilkinson, MS",28157,"Wilkinson","MS","Wilkinson, MS"]
["Winston, MS",28159,"Winston","MS","Winston, MS"]
["Yalobusha, MS",28161,"Yalobusha","MS","Yalobusha, MS"]
["Yazoo, MS",28163,"Yazoo","MS","Yazoo, MS"]
["Adair, MO",29001,"Adair","MO","Adair, MO"]
["Andrew, MO",29003,"Andrew","MO","Andrew, MO"]
["Atchison, MO",29005,"Atchison","MO","Atchison, MO"]
["Audrain, MO",29007,"Audrain","MO","Audrain, MO"]
["Barry, MO",29009,"Barry","MO","Barry, MO"]
["Barton, MO",29011,"Barton","MO","Barton, MO"]
["Bates, MO",29013,"Bates","MO","Bates, MO"]
["Benton, MO",29015,"Benton","MO","Benton, MO"]
["Bollinger, MO",29017,"Bollinger","MO","Bollinger, MO"]
["Boone, MO",29019,"Boone","MO","Boone, MO"]
["Buchanan, MO",29021,"Buchanan","MO","Buchanan, MO"]
["Butler, MO",29023,"Butler","MO","Butler, MO"]
["Caldwell, MO",29025,"Caldwell","MO","Caldwell, MO"]
["Callaway, MO",29027,"Callaway","MO","Callaway, MO"]
["Camden, MO",29029,"Camden","MO","Camden, MO"]
["Cape Girardeau, MO",29031,"Cape Girardeau","MO","Cape Girardeau, MO"]
["Carroll, MO",29033,"Carroll","MO","Carroll, MO"]
["Carter, MO",29035,"Carter","MO","Carter, MO"]
["Cass, MO",29037,"Cass","MO","Cass, MO"]
["Cedar, MO",29039,"Cedar","MO","Cedar, MO"]
["Chariton, MO",29041,"Chariton","MO","Chariton, MO"]
["Christian, MO",29043,"Christian","MO","Christian, MO"]
["Clark, MO",29045,"Clark","MO","Clark, MO"]
["Clay, MO",29047,"Clay","MO","Clay, MO"]
["Clinton, MO",29049,"Clinton","MO","Clinton, MO"]
["Cole, MO",29051,"Cole","MO","Cole, MO"]
["Cooper, MO",29053,"Cooper","MO","Cooper, MO"]
["Crawford, MO",29055,"Crawford","MO","Crawford, MO"]
["Dade, MO",29057,"Dade","MO","Dade, MO"]
["Dallas, MO",29059,"Dallas","MO","Dallas, MO"]
["Daviess, MO",29061,"Daviess","MO","Daviess, MO"]
["DeKalb, MO",29063,"DeKalb","MO","DeKalb, MO"]
["Dent, MO",29065,"Dent","MO","Dent, MO"]
["Douglas, MO",29067,"Douglas","MO","Douglas, MO"]
["Dunklin, MO",29069,"Dunklin","MO","Dunklin, MO"]
["Franklin, MO",29071,"Franklin","MO","Franklin, MO"]
["Gasconade, MO",29073,"Gasconade","MO","Gasconade, MO"]
["Gentry, MO",29075,"Gentry","MO","Gentry, MO"]
["Greene, MO",29077,"Greene","MO","Greene, MO"]
["Grundy, MO",29079,"Grundy","MO","Grundy, MO"]
["Harrison, MO",29081,"Harrison","MO","Harrison, MO"]
["Henry, MO",29083,"Henry","MO","Henry, MO"]
["Hickory, MO",29085,"Hickory","MO","Hickory, MO"]
["Holt, MO",29087,"Holt","MO","Holt, MO"]
["Howard, MO",29089,"Howard","MO","Howard, MO"]
["Howell, MO",29091,"Howell","MO","Howell, MO"]
["Iron, MO",29093,"Iron","MO","Iron, MO"]
["Jackson, MO",29095,"Jackson","MO","Jackson, MO"]
["Jasper, MO",29097,"Jasper","MO","Jasper, MO"]
["Jefferson, MO",29099,"Jefferson","MO","Jefferson, MO"]
["Johnson, MO",29101,"Johnson","MO","Johnson, MO"]
["Knox, MO",29103,"Knox","MO","Knox, MO"]
["Laclede, MO",29105,"Laclede","MO","Laclede, MO"]
["Lafayette, MO",29107,"Lafayette","MO","Lafayette, MO"]
[{"$f":"E1539","v":"Lawrence, MO"},29109,"Lawrence","MO",{"$f":"C1539&\", \"&D1539","v":"Lawrence, MO"}]
["Lewis, MO",29111,"Lewis","MO","Lewis, MO"]
["Lincoln, MO",29113,"Lincoln","MO","Lincoln, MO"]
["Linn, MO",29115,"Linn","MO","Linn, MO"]
["Livingston, MO",29117,"Livingston","MO","Livingston, MO"]
["McDonald, MO",29119,"McDonald","MO","McDonald, MO"]
["Macon, MO",29121,"Macon","MO","Macon, MO"]
["Madison, MO",29123,"Madison","MO","Madison, MO"]
["Maries, MO",29125,"Maries","MO","Maries, MO"]
["Marion, MO",29127,"Marion","MO","Marion, MO"]
["Mercer, MO",29129,"Mercer","MO","Mercer, MO"]
["Miller, MO",29131,"Miller","MO","Miller, MO"]
["Mississippi, MO",29133,"Mississippi","MO","Mississippi, MO"]
["Moniteau, MO",29135,"Moniteau","MO","Moniteau, MO"]
["Monroe, MO",29137,"Monroe","MO","Monroe, MO"]
["Montgomery, MO",29139,"Montgomery","MO","Montgomery, MO"]
["Morgan, MO",29141,"Morgan","MO","Morgan, MO"]
["New Madrid, MO",29143,"New Madrid","MO","New Madrid, MO"]
["Newton, MO",29145,"Newton","MO","Newton, MO"]
["Nodaway, MO",29147,"Nodaway","MO","Nodaway, MO"]
["Oregon, MO",29149,"Oregon","MO","Oregon, MO"]
["Osage, MO",29151,"Osage","MO","Osage, MO"]
["Ozark, MO",29153,"Ozark","MO","Ozark, MO"]
["Pemiscot, MO",29155,"Pemiscot","MO","Pemiscot, MO"]
["Perry, MO",29157,"Perry","MO","Perry, MO"]
["Pettis, MO",29159,"Pettis","MO","Pettis, MO"]
["Phelps, MO",29161,"Phelps","MO","Phelps, MO"]
["Pike, MO",29163,"Pike","MO","Pike, MO"]
["Platte, MO",29165,"Platte","MO","Platte, MO"]
["Polk, MO",29167,"Polk","MO","Polk, MO"]
["Pulaski, MO",29169,"Pulaski","MO","Pulaski, MO"]
["Putnam, MO",29171,"Putnam","MO","Putnam, MO"]
["Ralls, MO",29173,"Ralls","MO","Ralls, MO"]
["Randolph, MO",29175,"Randolph","MO","Randolph, MO"]
["Ray, MO",29177,"Ray","MO","Ray, MO"]
["Reynolds, MO",29179,"Reynolds","MO","Reynolds, MO"]
["Ripley, MO",29181,"Ripley","MO","Ripley, MO"]
["St. Charles, MO",29183,"St. Charles","MO","St. Charles, MO"]
["St. Clair, MO",29185,"St. Clair","MO","St. Clair, MO"]
["Ste. Genevieve, MO",29186,"Ste. Genevieve","MO","Ste. Genevieve, MO"]
["St. Francois, MO",29187,"St. Francois","MO","St. Francois, MO"]
["St. Louis, MO",29189,"St. Louis","MO","St. Louis, MO"]
["Saline, MO",29195,"Saline","MO","Saline, MO"]
["Schuyler, MO",29197,"Schuyler","MO","Schuyler, MO"]
["Scotland, MO",29199,"Scotland","MO","Scotland, MO"]
["Scott, MO",29201,"Scott","MO","Scott, MO"]
["Shannon, MO",29203,"Shannon","MO","Shannon, MO"]
["Shelby, MO",29205,"Shelby","MO","Shelby, MO"]
["Stoddard, MO",29207,"Stoddard","MO","Stoddard, MO"]
["Stone, MO",29209,"Stone","MO","Stone, MO"]
["Sullivan, MO",29211,"Sullivan","MO","Sullivan, MO"]
["Taney, MO",29213,"Taney","MO","Taney, MO"]
["Texas, MO",29215,"Texas","MO","Texas, MO"]
["Vernon, MO",29217,"Vernon","MO","Vernon, MO"]
["Warren, MO",29219,"Warren","MO","Warren, MO"]
["Washington, MO",29221,"Washington","MO","Washington, MO"]
["Wayne, MO",29223,"Wayne","MO","Wayne, MO"]
["Webster, MO",29225,"Webster","MO","Webster, MO"]
["Worth, MO",29227,"Worth","MO","Worth, MO"]
["Wright, MO",29229,"Wright","MO","Wright, MO"]
["St. Louis, MO",29510,"St. Louis","MO","St. Louis, MO"]
["Beaverhead, MT",30001,"Beaverhead","MT","Beaverhead, MT"]
["Big Horn, MT",30003,"Big Horn","MT","Big Horn, MT"]
["Blaine, MT",30005,"Blaine","MT","Blaine, MT"]
[{"$f":"E1603","v":"Broadwater, MT"},30007,"Broadwater","MT",{"$f":"C1603&\", \"&D1603","v":"Broadwater, MT"}]
["Carbon, MT",30009,"Carbon","MT","Carbon, MT"]
["Carter, MT",30011,"Carter","MT","Carter, MT"]
["Cascade, MT",30013,"Cascade","MT","Cascade, MT"]
["Chouteau, MT",30015,"Chouteau","MT","Chouteau, MT"]
["Custer, MT",30017,"Custer","MT","Custer, MT"]
["Daniels, MT",30019,"Daniels","MT","Daniels, MT"]
["Dawson, MT",30021,"Dawson","MT","Dawson, MT"]
["Deer Lodge, MT",30023,"Deer Lodge","MT","Deer Lodge, MT"]
["Fallon, MT",30025,"Fallon","MT","Fallon, MT"]
["Fergus, MT",30027,"Fergus","MT","Fergus, MT"]
["Flathead, MT",30029,"Flathead","MT","Flathead, MT"]
["Gallatin, MT",30031,"Gallatin","MT","Gallatin, MT"]
["Garfield, MT",30033,"Garfield","MT","Garfield, MT"]
["Glacier, MT",30035,"Glacier","MT","Glacier, MT"]
["Golden Valley, MT",30037,"Golden Valley","MT","Golden Valley, MT"]
["Granite, MT",30039,"Granite","MT","Granite, MT"]
["Hill, MT",30041,"Hill","MT","Hill, MT"]
["Jefferson, MT",30043,"Jefferson","MT","Jefferson, MT"]
["Judith Basin, MT",30045,"Judith Basin","MT","Judith Basin, MT"]
["Lake, MT",30047,"Lake","MT","Lake, MT"]
["Lewis and Clark, MT",30049,"Lewis and Clark","MT","Lewis and Clark, MT"]
["Liberty, MT",30051,"Liberty","MT","Liberty, MT"]
["Lincoln, MT",30053,"Lincoln","MT","Lincoln, MT"]
["McCone, MT",30055,"McCone","MT","McCone, MT"]
["Madison, MT",30057,"Madison","MT","Madison, MT"]
["Meagher, MT",30059,"Meagher","MT","Meagher, MT"]
["Mineral, MT",30061,"Mineral","MT","Mineral, MT"]
["Missoula, MT",30063,"Missoula","MT","Missoula, MT"]
["Musselshell, MT",30065,"Musselshell","MT","Musselshell, MT"]
["Park, MT",30067,"Park","MT","Park, MT"]
["Petroleum, MT",30069,"Petroleum","MT","Petroleum, MT"]
["Phillips, MT",30071,"Phillips","MT","Phillips, MT"]
["Pondera, MT",30073,"Pondera","MT","Pondera, MT"]
["Powder River, MT",30075,"Powder River","MT","Powder River, MT"]
["Powell, MT",30077,"Powell","MT","Powell, MT"]
["Prairie, MT",30079,"Prairie","MT","Prairie, MT"]
["Ravalli, MT",30081,"Ravalli","MT","Ravalli, MT"]
["Richland, MT",30083,"Richland","MT","Richland, MT"]
["Roosevelt, MT",30085,"Roosevelt","MT","Roosevelt, MT"]
["Rosebud, MT",30087,"Rosebud","MT","Rosebud, MT"]
["Sanders, MT",30089,"Sanders","MT","Sanders, MT"]
["Sheridan, MT",30091,"Sheridan","MT","Sheridan, MT"]
["Silver Bow, MT",30093,"Silver Bow","MT","Silver Bow, MT"]
["Stillwater, MT",30095,"Stillwater","MT","Stillwater, MT"]
["Sweet Grass, MT",30097,"Sweet Grass","MT","Sweet Grass, MT"]
["Teton, MT",30099,"Teton","MT","Teton, MT"]
["Toole, MT",30101,"Toole","MT","Toole, MT"]
["Treasure, MT",30103,"Treasure","MT","Treasure, MT"]
["Valley, MT",30105,"Valley","MT","Valley, MT"]
["Wheatland, MT",30107,"Wheatland","MT","Wheatland, MT"]
["Wibaux, MT",30109,"Wibaux","MT","Wibaux, MT"]
["Yellowstone, MT",30111,"Yellowstone","MT","Yellowstone, MT"]
["Adams, NE",31001,"Adams","NE","Adams, NE"]
["Antelope, NE",31003,"Antelope","NE","Antelope, NE"]
["Arthur, NE",31005,"Arthur","NE","Arthur, NE"]
["Banner, NE",31007,"Banner","NE","Banner, NE"]
["Blaine, NE",31009,"Blaine","NE","Blaine, NE"]
["Boone, NE",31011,"Boone","NE","Boone, NE"]
["Box Butte, NE",31013,"Box Butte","NE","Box Butte, NE"]
["Boyd, NE",31015,"Boyd","NE","Boyd, NE"]
["Brown, NE",31017,"Brown","NE","Brown, NE"]
["Buffalo, NE",31019,"Buffalo","NE","Buffalo, NE"]
["Burt, NE",31021,"Burt","NE","Burt, NE"]
[{"$f":"E1667","v":"Butler, NE"},31023,"Butler","NE",{"$f":"C1667&\", \"&D1667","v":"Butler, NE"}]
["Cass, NE",31025,"Cass","NE","Cass, NE"]
["Cedar, NE",31027,"Cedar","NE","Cedar, NE"]
["Chase, NE",31029,"Chase","NE","Chase, NE"]
["Cherry, NE",31031,"Cherry","NE","Cherry, NE"]
["Cheyenne, NE",31033,"Cheyenne","NE","Cheyenne, NE"]
["Clay, NE",31035,"Clay","NE","Clay, NE"]
["Colfax, NE",31037,"Colfax","NE","Colfax, NE"]
["Cuming, NE",31039,"Cuming","NE","Cuming, NE"]
["Custer, NE",31041,"Custer","NE","Custer, NE"]
["Dakota, NE",31043,"Dakota","NE","Dakota, NE"]
["Dawes, NE",31045,"Dawes","NE","Dawes, NE"]
["Dawson, NE",31047,"Dawson","NE","Dawson, NE"]
["Deuel, NE",31049,"Deuel","NE","Deuel, NE"]
["Dixon, NE",31051,"Dixon","NE","Dixon, NE"]
["Dodge, NE",31053,"Dodge","NE","Dodge, NE"]
["Douglas, NE",31055,"Douglas","NE","Douglas, NE"]
["Dundy, NE",31057,"Dundy","NE","Dundy, NE"]
["Fillmore, NE",31059,"Fillmore","NE","Fillmore, NE"]
["Franklin, NE",31061,"Franklin","NE","Franklin, NE"]
["Frontier, NE",31063,"Frontier","NE","Frontier, NE"]
["Furnas, NE",31065,"Furnas","NE","Furnas, NE"]
["Gage, NE",31067,"Gage","NE","Gage, NE"]
["Garden, NE",31069,"Garden","NE","Garden, NE"]
["Garfield, NE",31071,"Garfield","NE","Garfield, NE"]
["Gosper, NE",31073,"Gosper","NE","Gosper, NE"]
["Grant, NE",31075,"Grant","NE","Grant, NE"]
["Greeley, NE",31077,"Greeley","NE","Greeley, NE"]
["Hall, NE",31079,"Hall","NE","Hall, NE"]
["Hamilton, NE",31081,"Hamilton","NE","Hamilton, NE"]
["Harlan, NE",31083,"Harlan","NE","Harlan, NE"]
["Hayes, NE",31085,"Hayes","NE","Hayes, NE"]
["Hitchcock, NE",31087,"Hitchcock","NE","Hitchcock, NE"]
["Holt, NE",31089,"Holt","NE","Holt, NE"]
["Hooker, NE",31091,"Hooker","NE","Hooker, NE"]
["Howard, NE",31093,"Howard","NE","Howard, NE"]
["Jefferson, NE",31095,"Jefferson","NE","Jefferson, NE"]
["Johnson, NE",31097,"Johnson","NE","Johnson, NE"]
["Kearney, NE",31099,"Kearney","NE","Kearney, NE"]
["Keith, NE",31101,"Keith","NE","Keith, NE"]
["Keya Paha, NE",31103,"Keya Paha","NE","Keya Paha, NE"]
["Kimball, NE",31105,"Kimball","NE","Kimball, NE"]
["Knox, NE",31107,"Knox","NE","Knox, NE"]
["Lancaster, NE",31109,"Lancaster","NE","Lancaster, NE"]
["Lincoln, NE",31111,"Lincoln","NE","Lincoln, NE"]
["Logan, NE",31113,"Logan","NE","Logan, NE"]
["Loup, NE",31115,"Loup","NE","Loup, NE"]
["McPherson, NE",31117,"McPherson","NE","McPherson, NE"]
["Madison, NE",31119,"Madison","NE","Madison, NE"]
["Merrick, NE",31121,"Merrick","NE","Merrick, NE"]
["Morrill, NE",31123,"Morrill","NE","Morrill, NE"]
["Nance, NE",31125,"Nance","NE","Nance, NE"]
["Nemaha, NE",31127,"Nemaha","NE","Nemaha, NE"]
["Nuckolls, NE",31129,"Nuckolls","NE","Nuckolls, NE"]
["Otoe, NE",31131,"Otoe","NE","Otoe, NE"]
["Pawnee, NE",31133,"Pawnee","NE","Pawnee, NE"]
["Perkins, NE",31135,"Perkins","NE","Perkins, NE"]
["Phelps, NE",31137,"Phelps","NE","Phelps, NE"]
["Pierce, NE",31139,"Pierce","NE","Pierce, NE"]
["Platte, NE",31141,"Platte","NE","Platte, NE"]
["Polk, NE",31143,"Polk","NE","Polk, NE"]
["Red Willow, NE",31145,"Red Willow","NE","Red Willow, NE"]
["Richardson, NE",31147,"Richardson","NE","Richardson, NE"]
["Rock, NE",31149,"Rock","NE","Rock, NE"]
[{"$f":"E1731","v":"Saline, NE"},31151,"Saline","NE",{"$f":"C1731&\", \"&D1731","v":"Saline, NE"}]
["Sarpy, NE",31153,"Sarpy","NE","Sarpy, NE"]
["Saunders, NE",31155,"Saunders","NE","Saunders, NE"]
["Scotts Bluff, NE",31157,"Scotts Bluff","NE","Scotts Bluff, NE"]
["Seward, NE",31159,"Seward","NE","Seward, NE"]
["Sheridan, NE",31161,"Sheridan","NE","Sheridan, NE"]
["Sherman, NE",31163,"Sherman","NE","Sherman, NE"]
["Sioux, NE",31165,"Sioux","NE","Sioux, NE"]
["Stanton, NE",31167,"Stanton","NE","Stanton, NE"]
["Thayer, NE",31169,"Thayer","NE","Thayer, NE"]
["Thomas, NE",31171,"Thomas","NE","Thomas, NE"]
["Thurston, NE",31173,"Thurston","NE","Thurston, NE"]
["Valley, NE",31175,"Valley","NE","Valley, NE"]
["Washington, NE",31177,"Washington","NE","Washington, NE"]
["Wayne, NE",31179,"Wayne","NE","Wayne, NE"]
["Webster, NE",31181,"Webster","NE","Webster, NE"]
["Wheeler, NE",31183,"Wheeler","NE","Wheeler, NE"]
["York, NE",31185,"York","NE","York, NE"]
["Churchill, NV",32001,"Churchill","NV","Churchill, NV"]
["Clark, NV",32003,"Clark","NV","Clark, NV"]
["Douglas, NV",32005,"Douglas","NV","Douglas, NV"]
["Elko, NV",32007,"Elko","NV","Elko, NV"]
["Esmeralda, NV",32009,"Esmeralda","NV","Esmeralda, NV"]
["Eureka, NV",32011,"Eureka","NV","Eureka, NV"]
["Humboldt, NV",32013,"Humboldt","NV","Humboldt, NV"]
["Lander, NV",32015,"Lander","NV","Lander, NV"]
["Lincoln, NV",32017,"Lincoln","NV","Lincoln, NV"]
["Lyon, NV",32019,"Lyon","NV","Lyon, NV"]
["Mineral, NV",32021,"Mineral","NV","Mineral, NV"]
["Nye, NV",32023,"Nye","NV","Nye, NV"]
["Pershing, NV",32027,"Pershing","NV","Pershing, NV"]
["Storey, NV",32029,"Storey","NV","Storey, NV"]
["Washoe, NV",32031,"Washoe","NV","Washoe, NV"]
["White Pine, NV",32033,"White Pine","NV","White Pine, NV"]
["Carson City, NV",32510,"Carson City","NV","Carson City, NV"]
["Belknap, NH",33001,"Belknap","NH","Belknap, NH"]
["Carroll, NH",33003,"Carroll","NH","Carroll, NH"]
["Cheshire, NH",33005,"Cheshire","NH","Cheshire, NH"]
["Coos, NH",33007,"Coos","NH","Coos, NH"]
["Grafton, NH",33009,"Grafton","NH","Grafton, NH"]
["Hillsborough, NH",33011,"Hillsborough","NH","Hillsborough, NH"]
["Merrimack, NH",33013,"Merrimack","NH","Merrimack, NH"]
["Rockingham, NH",33015,"Rockingham","NH","Rockingham, NH"]
["Strafford, NH",33017,"Strafford","NH","Strafford, NH"]
["Sullivan, NH",33019,"Sullivan","NH","Sullivan, NH"]
["Atlantic, NJ",34001,"Atlantic","NJ","Atlantic, NJ"]
["Bergen, NJ",34003,"Bergen","NJ","Bergen, NJ"]
["Burlington, NJ",34005,"Burlington","NJ","Burlington, NJ"]
["Camden, NJ",34007,"Camden","NJ","Camden, NJ"]
["Cape May, NJ",34009,"Cape May","NJ","Cape May, NJ"]
["Cumberland, NJ",34011,"Cumberland","NJ","Cumberland, NJ"]
["Essex, NJ",34013,"Essex","NJ","Essex, NJ"]
["Gloucester, NJ",34015,"Gloucester","NJ","Gloucester, NJ"]
["Hudson, NJ",34017,"Hudson","NJ","Hudson, NJ"]
["Hunterdon, NJ",34019,"Hunterdon","NJ","Hunterdon, NJ"]
["Mercer, NJ",34021,"Mercer","NJ","Mercer, NJ"]
["Middlesex, NJ",34023,"Middlesex","NJ","Middlesex, NJ"]
["Monmouth, NJ",34025,"Monmouth","NJ","Monmouth, NJ"]
["Morris, NJ",34027,"Morris","NJ","Morris, NJ"]
["Ocean, NJ",34029,"Ocean","NJ","Ocean, NJ"]
["Passaic, NJ",34031,"Passaic","NJ","Passaic, NJ"]
["Salem, NJ",34033,"Salem","NJ","Salem, NJ"]
["Somerset, NJ",34035,"Somerset","NJ","Somerset, NJ"]
["Sussex, NJ",34037,"Sussex","NJ","Sussex, NJ"]
[{"$f":"E1795","v":"Union, NJ"},34039,"Union","NJ",{"$f":"C1795&\", \"&D1795","v":"Union, NJ"}]
["Warren, NJ",34041,"Warren","NJ","Warren, NJ"]
["Bernalillo, NM",35001,"Bernalillo","NM","Bernalillo, NM"]
["Catron, NM",35003,"Catron","NM","Catron, NM"]
["Chaves, NM",35005,"Chaves","NM","Chaves, NM"]
["Cibola, NM",35006,"Cibola","NM","Cibola, NM"]
["Colfax, NM",35007,"Colfax","NM","Colfax, NM"]
["Curry, NM",35009,"Curry","NM","Curry, NM"]
["De Baca, NM",35011,"De Baca","NM","De Baca, NM"]
["Doña Ana, NM",35013,"Doña Ana","NM","Doña Ana, NM"]
["Eddy, NM",35015,"Eddy","NM","Eddy, NM"]
["Grant, NM",35017,"Grant","NM","Grant, NM"]
["Guadalupe, NM",35019,"Guadalupe","NM","Guadalupe, NM"]
["Harding, NM",35021,"Harding","NM","Harding, NM"]
["Hidalgo, NM",35023,"Hidalgo","NM","Hidalgo, NM"]
["Lea, NM",35025,"Lea","NM","Lea, NM"]
["Lincoln, NM",35027,"Lincoln","NM","Lincoln, NM"]
["Los Alamos, NM",35028,"Los Alamos","NM","Los Alamos, NM"]
["Luna, NM",35029,"Luna","NM","Luna, NM"]
["McKinley, NM",35031,"McKinley","NM","McKinley, NM"]
["Mora, NM",35033,"Mora","NM","Mora, NM"]
["Otero, NM",35035,"Otero","NM","Otero, NM"]
["Quay, NM",35037,"Quay","NM","Quay, NM"]
["Rio Arriba, NM",35039,"Rio Arriba","NM","Rio Arriba, NM"]
["Roosevelt, NM",35041,"Roosevelt","NM","Roosevelt, NM"]
["Sandoval, NM",35043,"Sandoval","NM","Sandoval, NM"]
["San Juan, NM",35045,"San Juan","NM","San Juan, NM"]
["San Miguel, NM",35047,"San Miguel","NM","San Miguel, NM"]
["Santa Fe, NM",35049,"Santa Fe","NM","Santa Fe, NM"]
["Sierra, NM",35051,"Sierra","NM","Sierra, NM"]
["Socorro, NM",35053,"Socorro","NM","Socorro, NM"]
["Taos, NM",35055,"Taos","NM","Taos, NM"]
["Torrance, NM",35057,"Torrance","NM","Torrance, NM"]
["Union, NM",35059,"Union","NM","Union, NM"]
["Valencia, NM",35061,"Valencia","NM","Valencia, NM"]
["Albany, NY",36001,"Albany","NY","Albany, NY"]
["Allegany, NY",36003,"Allegany","NY","Allegany, NY"]
["Bronx, NY",36005,"Bronx","NY","Bronx, NY"]
["Broome, NY",36007,"Broome","NY","Broome, NY"]
["Cattaraugus, NY",36009,"Cattaraugus","NY","Cattaraugus, NY"]
["Cayuga, NY",36011,"Cayuga","NY","Cayuga, NY"]
["Chautauqua, NY",36013,"Chautauqua","NY","Chautauqua, NY"]
["Chemung, NY",36015,"Chemung","NY","Chemung, NY"]
["Chenango, NY",36017,"Chenango","NY","Chenango, NY"]
["Clinton, NY",36019,"Clinton","NY","Clinton, NY"]
["Columbia, NY",36021,"Columbia","NY","Columbia, NY"]
["Cortland, NY",36023,"Cortland","NY","Cortland, NY"]
["Delaware, NY",36025,"Delaware","NY","Delaware, NY"]
["Dutchess, NY",36027,"Dutchess","NY","Dutchess, NY"]
["Erie, NY",36029,"Erie","NY","Erie, NY"]
["Essex, NY",36031,"Essex","NY","Essex, NY"]
["Franklin, NY",36033,"Franklin","NY","Franklin, NY"]
["Fulton, NY",36035,"Fulton","NY","Fulton, NY"]
["Genesee, NY",36037,"Genesee","NY","Genesee, NY"]
["Greene, NY",36039,"Greene","NY","Greene, NY"]
["Hamilton, NY",36041,"Hamilton","NY","Hamilton, NY"]
["Herkimer, NY",36043,"Herkimer","NY","Herkimer, NY"]
["Jefferson, NY",36045,"Jefferson","NY","Jefferson, NY"]
["Kings, NY",36047,"Kings","NY","Kings, NY"]
["Lewis, NY",36049,"Lewis","NY","Lewis, NY"]
["Livingston, NY",36051,"Livingston","NY","Livingston, NY"]
["Madison, NY",36053,"Madison","NY","Madison, NY"]
["Monroe, NY",36055,"Monroe","NY","Monroe, NY"]
["Montgomery, NY",36057,"Montgomery","NY","Montgomery, NY"]
[{"$f":"E1859","v":"Nassau, NY"},36059,"Nassau","NY",{"$f":"C1859&\", \"&D1859","v":"Nassau, NY"}]
["New York, NY",36061,"New York","NY","New York, NY"]
["Niagara, NY",36063,"Niagara","NY","Niagara, NY"]
["Oneida, NY",36065,"Oneida","NY","Oneida, NY"]
["Onondaga, NY",36067,"Onondaga","NY","Onondaga, NY"]
["Ontario, NY",36069,"Ontario","NY","Ontario, NY"]
["Orange, NY",36071,"Orange","NY","Orange, NY"]
["Orleans, NY",36073,"Orleans","NY","Orleans, NY"]
["Oswego, NY",36075,"Oswego","NY","Oswego, NY"]
["Otsego, NY",36077,"Otsego","NY","Otsego, NY"]
["Putnam, NY",36079,"Putnam","NY","Putnam, NY"]
["Queens, NY",36081,"Queens","NY","Queens, NY"]
["Rensselaer, NY",36083,"Rensselaer","NY","Rensselaer, NY"]
["Richmond, NY",36085,"Richmond","NY","Richmond, NY"]
["Rockland, NY",36087,"Rockland","NY","Rockland, NY"]
["St. Lawrence, NY",36089,"St. Lawrence","NY","St. Lawrence, NY"]
["Saratoga, NY",36091,"Saratoga","NY","Saratoga, NY"]
["Schenectady, NY",36093,"Schenectady","NY","Schenectady, NY"]
["Schoharie, NY",36095,"Schoharie","NY","Schoharie, NY"]
["Schuyler, NY",36097,"Schuyler","NY","Schuyler, NY"]
["Seneca, NY",36099,"Seneca","NY","Seneca, NY"]
["Steuben, NY",36101,"Steuben","NY","Steuben, NY"]
["Suffolk, NY",36103,"Suffolk","NY","Suffolk, NY"]
["Sullivan, NY",36105,"Sullivan","NY","Sullivan, NY"]
["Tioga, NY",36107,"Tioga","NY","Tioga, NY"]
["Tompkins, NY",36109,"Tompkins","NY","Tompkins, NY"]
["Ulster, NY",36111,"Ulster","NY","Ulster, NY"]
["Warren, NY",36113,"Warren","NY","Warren, NY"]
["Washington, NY",36115,"Washington","NY","Washington, NY"]
["Wayne, NY",36117,"Wayne","NY","Wayne, NY"]
["Westchester, NY",36119,"Westchester","NY","Westchester, NY"]
["Wyoming, NY",36121,"Wyoming","NY","Wyoming, NY"]
["Yates, NY",36123,"Yates","NY","Yates, NY"]
["Alamance, NC",37001,"Alamance","NC","Alamance, NC"]
["Alexander, NC",37003,"Alexander","NC","Alexander, NC"]
["Alleghany, NC",37005,"Alleghany","NC","Alleghany, NC"]
["Anson, NC",37007,"Anson","NC","Anson, NC"]
["Ashe, NC",37009,"Ashe","NC","Ashe, NC"]
["Avery, NC",37011,"Avery","NC","Avery, NC"]
["Beaufort, NC",37013,"Beaufort","NC","Beaufort, NC"]
["Bertie, NC",37015,"Bertie","NC","Bertie, NC"]
["Bladen, NC",37017,"Bladen","NC","Bladen, NC"]
["Brunswick, NC",37019,"Brunswick","NC","Brunswick, NC"]
["Buncombe, NC",37021,"Buncombe","NC","Buncombe, NC"]
["Burke, NC",37023,"Burke","NC","Burke, NC"]
["Cabarrus, NC",37025,"Cabarrus","NC","Cabarrus, NC"]
["Caldwell, NC",37027,"Caldwell","NC","Caldwell, NC"]
["Camden, NC",37029,"Camden","NC","Camden, NC"]
["Carteret, NC",37031,"Carteret","NC","Carteret, NC"]
["Caswell, NC",37033,"Caswell","NC","Caswell, NC"]
["Catawba, NC",37035,"Catawba","NC","Catawba, NC"]
["Chatham, NC",37037,"Chatham","NC","Chatham, NC"]
["Cherokee, NC",37039,"Cherokee","NC","Cherokee, NC"]
["Chowan, NC",37041,"Chowan","NC","Chowan, NC"]
["Clay, NC",37043,"Clay","NC","Clay, NC"]
["Cleveland, NC",37045,"Cleveland","NC","Cleveland, NC"]
["Columbus, NC",37047,"Columbus","NC","Columbus, NC"]
["Craven, NC",37049,"Craven","NC","Craven, NC"]
["Cumberland, NC",37051,"Cumberland","NC","Cumberland, NC"]
["Currituck, NC",37053,"Currituck","NC","Currituck, NC"]
["Dare, NC",37055,"Dare","NC","Dare, NC"]
["Davidson, NC",37057,"Davidson","NC","Davidson, NC"]
["Davie, NC",37059,"Davie","NC","Davie, NC"]
["Duplin, NC",37061,"Duplin","NC","Duplin, NC"]
[{"$f":"E1923","v":"Durham, NC"},37063,"Durham","NC",{"$f":"C1923&\", \"&D1923","v":"Durham, NC"}]
["Edgecombe, NC",37065,"Edgecombe","NC","Edgecombe, NC"]
["Forsyth, NC",37067,"Forsyth","NC","Forsyth, NC"]
["Franklin, NC",37069,"Franklin","NC","Franklin, NC"]
["Gaston, NC",37071,"Gaston","NC","Gaston, NC"]
["Gates, NC",37073,"Gates","NC","Gates, NC"]
["Graham, NC",37075,"Graham","NC","Graham, NC"]
["Granville, NC",37077,"Granville","NC","Granville, NC"]
["Greene, NC",37079,"Greene","NC","Greene, NC"]
["Guilford, NC",37081,"Guilford","NC","Guilford, NC"]
["Halifax, NC",37083,"Halifax","NC","Halifax, NC"]
["Harnett, NC",37085,"Harnett","NC","Harnett, NC"]
["Haywood, NC",37087,"Haywood","NC","Haywood, NC"]
["Henderson, NC",37089,"Henderson","NC","Henderson, NC"]
["Hertford, NC",37091,"Hertford","NC","Hertford, NC"]
["Hoke, NC",37093,"Hoke","NC","Hoke, NC"]
["Hyde, NC",37095,"Hyde","NC","Hyde, NC"]
["Iredell, NC",37097,"Iredell","NC","Iredell, NC"]
["Jackson, NC",37099,"Jackson","NC","Jackson, NC"]
["Johnston, NC",37101,"Johnston","NC","Johnston, NC"]
["Jones, NC",37103,"Jones","NC","Jones, NC"]
["Lee, NC",37105,"Lee","NC","Lee, NC"]
["Lenoir, NC",37107,"Lenoir","NC","Lenoir, NC"]
["Lincoln, NC",37109,"Lincoln","NC","Lincoln, NC"]
["McDowell, NC",37111,"McDowell","NC","McDowell, NC"]
["Macon, NC",37113,"Macon","NC","Macon, NC"]
["Madison, NC",37115,"Madison","NC","Madison, NC"]
["Martin, NC",37117,"Martin","NC","Martin, NC"]
["Mecklenburg, NC",37119,"Mecklenburg","NC","Mecklenburg, NC"]
["Mitchell, NC",37121,"Mitchell","NC","Mitchell, NC"]
["Montgomery, NC",37123,"Montgomery","NC","Montgomery, NC"]
["Moore, NC",37125,"Moore","NC","Moore, NC"]
["Nash, NC",37127,"Nash","NC","Nash, NC"]
["New Hanover, NC",37129,"New Hanover","NC","New Hanover, NC"]
["Northampton, NC",37131,"Northampton","NC","Northampton, NC"]
["Onslow, NC",37133,"Onslow","NC","Onslow, NC"]
["Orange, NC",37135,"Orange","NC","Orange, NC"]
["Pamlico, NC",37137,"Pamlico","NC","Pamlico, NC"]
["Pasquotank, NC",37139,"Pasquotank","NC","Pasquotank, NC"]
["Pender, NC",37141,"Pender","NC","Pender, NC"]
["Perquimans, NC",37143,"Perquimans","NC","Perquimans, NC"]
["Person, NC",37145,"Person","NC","Person, NC"]
["Pitt, NC",37147,"Pitt","NC","Pitt, NC"]
["Polk, NC",37149,"Polk","NC","Polk, NC"]
["Randolph, NC",37151,"Randolph","NC","Randolph, NC"]
["Richmond, NC",37153,"Richmond","NC","Richmond, NC"]
["Robeson, NC",37155,"Robeson","NC","Robeson, NC"]
["Rockingham, NC",37157,"Rockingham","NC","Rockingham, NC"]
["Rowan, NC",37159,"Rowan","NC","Rowan, NC"]
["Rutherford, NC",37161,"Rutherford","NC","Rutherford, NC"]
["Sampson, NC",37163,"Sampson","NC","Sampson, NC"]
["Scotland, NC",37165,"Scotland","NC","Scotland, NC"]
["Stanly, NC",37167,"Stanly","NC","Stanly, NC"]
["Stokes, NC",37169,"Stokes","NC","Stokes, NC"]
["Surry, NC",37171,"Surry","NC","Surry, NC"]
["Swain, NC",37173,"Swain","NC","Swain, NC"]
["Transylvania, NC",37175,"Transylvania","NC","Transylvania, NC"]
["Tyrrell, NC",37177,"Tyrrell","NC","Tyrrell, NC"]
["Union, NC",37179,"Union","NC","Union, NC"]
["Vance, NC",37181,"Vance","NC","Vance, NC"]
["Wake, NC",37183,"Wake","NC","Wake, NC"]
["Warren, NC",37185,"Warren","NC","Warren, NC"]
["Washington, NC",37187,"Washington","NC","Washington, NC"]
["Watauga, NC",37189,"Watauga","NC","Watauga, NC"]
[{"$f":"E1987","v":"Wayne, NC"},37191,"Wayne","NC",{"$f":"C1987&\", \"&D1987","v":"Wayne, NC"}]
["Wilkes, NC",37193,"Wilkes","NC","Wilkes, NC"]
["Wilson, NC",37195,"Wilson","NC","Wilson, NC"]
["Yadkin, NC",37197,"Yadkin","NC","Yadkin, NC"]
["Yancey, NC",37199,"Yancey","NC","Yancey, NC"]
["Adams, ND",38001,"Adams","ND","Adams, ND"]
["Barnes, ND",38003,"Barnes","ND","Barnes, ND"]
["Benson, ND",38005,"Benson","ND","Benson, ND"]
["Billings, ND",38007,"Billings","ND","Billings, ND"]
["Bottineau, ND",38009,"Bottineau","ND","Bottineau, ND"]
["Bowman, ND",38011,"Bowman","ND","Bowman, ND"]
["Burke, ND",38013,"Burke","ND","Burke, ND"]
["Burleigh, ND",38015,"Burleigh","ND","Burleigh, ND"]
["Cass, ND",38017,"Cass","ND","Cass, ND"]
["Cavalier, ND",38019,"Cavalier","ND","Cavalier, ND"]
["Dickey, ND",38021,"Dickey","ND","Dickey, ND"]
["Divide, ND",38023,"Divide","ND","Divide, ND"]
["Dunn, ND",38025,"Dunn","ND","Dunn, ND"]
["Eddy, ND",38027,"Eddy","ND","Eddy, ND"]
["Emmons, ND",38029,"Emmons","ND","Emmons, ND"]
["Foster, ND",38031,"Foster","ND","Foster, ND"]
["Golden Valley, ND",38033,"Golden Valley","ND","Golden Valley, ND"]
["Grand Forks, ND",38035,"Grand Forks","ND","Grand Forks, ND"]
["Grant, ND",38037,"Grant","ND","Grant, ND"]
["Griggs, ND",38039,"Griggs","ND","Griggs, ND"]
["Hettinger, ND",38041,"Hettinger","ND","Hettinger, ND"]
["Kidder, ND",38043,"Kidder","ND","Kidder, ND"]
["LaMoure, ND",38045,"LaMoure","ND","LaMoure, ND"]
["Logan, ND",38047,"Logan","ND","Logan, ND"]
["McHenry, ND",38049,"McHenry","ND","McHenry, ND"]
["McIntosh, ND",38051,"McIntosh","ND","McIntosh, ND"]
["McKenzie, ND",38053,"McKenzie","ND","McKenzie, ND"]
["McLean, ND",38055,"McLean","ND","McLean, ND"]
["Mercer, ND",38057,"Mercer","ND","Mercer, ND"]
["Morton, ND",38059,"Morton","ND","Morton, ND"]
["Mountrail, ND",38061,"Mountrail","ND","Mountrail, ND"]
["Nelson, ND",38063,"Nelson","ND","Nelson, ND"]
["Oliver, ND",38065,"Oliver","ND","Oliver, ND"]
["Pembina, ND",38067,"Pembina","ND","Pembina, ND"]
["Pierce, ND",38069,"Pierce","ND","Pierce, ND"]
["Ramsey, ND",38071,"Ramsey","ND","Ramsey, ND"]
["Ransom, ND",38073,"Ransom","ND","Ransom, ND"]
["Renville, ND",38075,"Renville","ND","Renville, ND"]
["Richland, ND",38077,"Richland","ND","Richland, ND"]
["Rolette, ND",38079,"Rolette","ND","Rolette, ND"]
["Sargent, ND",38081,"Sargent","ND","Sargent, ND"]
["Sheridan, ND",38083,"Sheridan","ND","Sheridan, ND"]
["Sioux, ND",38085,"Sioux","ND","Sioux, ND"]
["Slope, ND",38087,"Slope","ND","Slope, ND"]
["Stark, ND",38089,"Stark","ND","Stark, ND"]
["Steele, ND",38091,"Steele","ND","Steele, ND"]
["Stutsman, ND",38093,"Stutsman","ND","Stutsman, ND"]
["Towner, ND",38095,"Towner","ND","Towner, ND"]
["Traill, ND",38097,"Traill","ND","Traill, ND"]
["Walsh, ND",38099,"Walsh","ND","Walsh, ND"]
["Ward, ND",38101,"Ward","ND","Ward, ND"]
["Wells, ND",38103,"Wells","ND","Wells, ND"]
["Williams, ND",38105,"Williams","ND","Williams, ND"]
["Adams, OH",39001,"Adams","OH","Adams, OH"]
["Allen, OH",39003,"Allen","OH","Allen, OH"]
["Ashland, OH",39005,"Ashland","OH","Ashland, OH"]
["Ashtabula, OH",39007,"Ashtabula","OH","Ashtabula, OH"]
["Athens, OH",39009,"Athens","OH","Athens, OH"]
["Auglaize, OH",39011,"Auglaize","OH","Auglaize, OH"]
[{"$f":"E2051","v":"Belmont, OH"},39013,"Belmont","OH",{"$f":"C2051&\", \"&D2051","v":"Belmont, OH"}]
["Brown, OH",39015,"Brown","OH","Brown, OH"]
["Butler, OH",39017,"Butler","OH","Butler, OH"]
["Carroll, OH",39019,"Carroll","OH","Carroll, OH"]
["Champaign, OH",39021,"Champaign","OH","Champaign, OH"]
["Clark, OH",39023,"Clark","OH","Clark, OH"]
["Clermont, OH",39025,"Clermont","OH","Clermont, OH"]
["Clinton, OH",39027,"Clinton","OH","Clinton, OH"]
["Columbiana, OH",39029,"Columbiana","OH","Columbiana, OH"]
["Coshocton, OH",39031,"Coshocton","OH","Coshocton, OH"]
["Crawford, OH",39033,"Crawford","OH","Crawford, OH"]
["Cuyahoga, OH",39035,"Cuyahoga","OH","Cuyahoga, OH"]
["Darke, OH",39037,"Darke","OH","Darke, OH"]
["Defiance, OH",39039,"Defiance","OH","Defiance, OH"]
["Delaware, OH",39041,"Delaware","OH","Delaware, OH"]
["Erie, OH",39043,"Erie","OH","Erie, OH"]
["Fairfield, OH",39045,"Fairfield","OH","Fairfield, OH"]
["Fayette, OH",39047,"Fayette","OH","Fayette, OH"]
["Franklin, OH",39049,"Franklin","OH","Franklin, OH"]
["Fulton, OH",39051,"Fulton","OH","Fulton, OH"]
["Gallia, OH",39053,"Gallia","OH","Gallia, OH"]
["Geauga, OH",39055,"Geauga","OH","Geauga, OH"]
["Greene, OH",39057,"Greene","OH","Greene, OH"]
["Guernsey, OH",39059,"Guernsey","OH","Guernsey, OH"]
["Hamilton, OH",39061,"Hamilton","OH","Hamilton, OH"]
["Hancock, OH",39063,"Hancock","OH","Hancock, OH"]
["Hardin, OH",39065,"Hardin","OH","Hardin, OH"]
["Harrison, OH",39067,"Harrison","OH","Harrison, OH"]
["Henry, OH",39069,"Henry","OH","Henry, OH"]
["Highland, OH",39071,"Highland","OH","Highland, OH"]
["Hocking, OH",39073,"Hocking","OH","Hocking, OH"]
["Holmes, OH",39075,"Holmes","OH","Holmes, OH"]
["Huron, OH",39077,"Huron","OH","Huron, OH"]
["Jackson, OH",39079,"Jackson","OH","Jackson, OH"]
["Jefferson, OH",39081,"Jefferson","OH","Jefferson, OH"]
["Knox, OH",39083,"Knox","OH","Knox, OH"]
["Lake, OH",39085,"Lake","OH","Lake, OH"]
["Lawrence, OH",39087,"Lawrence","OH","Lawrence, OH"]
["Licking, OH",39089,"Licking","OH","Licking, OH"]
["Logan, OH",39091,"Logan","OH","Logan, OH"]
["Lorain, OH",39093,"Lorain","OH","Lorain, OH"]
["Lucas, OH",39095,"Lucas","OH","Lucas, OH"]
["Madison, OH",39097,"Madison","OH","Madison, OH"]
["Mahoning, OH",39099,"Mahoning","OH","Mahoning, OH"]
["Marion, OH",39101,"Marion","OH","Marion, OH"]
["Medina, OH",39103,"Medina","OH","Medina, OH"]
["Meigs, OH",39105,"Meigs","OH","Meigs, OH"]
["Mercer, OH",39107,"Mercer","OH","Mercer, OH"]
["Miami, OH",39109,"Miami","OH","Miami, OH"]
["Monroe, OH",39111,"Monroe","OH","Monroe, OH"]
["Montgomery, OH",39113,"Montgomery","OH","Montgomery, OH"]
["Morgan, OH",39115,"Morgan","OH","Morgan, OH"]
["Morrow, OH",39117,"Morrow","OH","Morrow, OH"]
["Muskingum, OH",39119,"Muskingum","OH","Muskingum, OH"]
["Noble, OH",39121,"Noble","OH","Noble, OH"]
["Ottawa, OH",39123,"Ottawa","OH","Ottawa, OH"]
["Paulding, OH",39125,"Paulding","OH","Paulding, OH"]
["Perry, OH",39127,"Perry","OH","Perry, OH"]
["Pickaway, OH",39129,"Pickaway","OH","Pickaway, OH"]
["Pike, OH",39131,"Pike","OH","Pike, OH"]
["Portage, OH",39133,"Portage","OH","Portage, OH"]
["Preble, OH",39135,"Preble","OH","Preble, OH"]
["Putnam, OH",39137,"Putnam","OH","Putnam, OH"]
["Richland, OH",39139,"Richland","OH","Richland, OH"]
[{"$f":"E2115","v":"Ross, OH"},39141,"Ross","OH",{"$f":"C2115&\", \"&D2115","v":"Ross, OH"}]
["Sandusky, OH",39143,"Sandusky","OH","Sandusky, OH"]
["Scioto, OH",39145,"Scioto","OH","Scioto, OH"]
["Seneca, OH",39147,"Seneca","OH","Seneca, OH"]
["Shelby, OH",39149,"Shelby","OH","Shelby, OH"]
["Stark, OH",39151,"Stark","OH","Stark, OH"]
["Summit, OH",39153,"Summit","OH","Summit, OH"]
["Trumbull, OH",39155,"Trumbull","OH","Trumbull, OH"]
["Tuscarawas, OH",39157,"Tuscarawas","OH","Tuscarawas, OH"]
["Union, OH",39159,"Union","OH","Union, OH"]
["Van Wert, OH",39161,"Van Wert","OH","Van Wert, OH"]
["Vinton, OH",39163,"Vinton","OH","Vinton, OH"]
["Warren, OH",39165,"Warren","OH","Warren, OH"]
["Washington, OH",39167,"Washington","OH","Washington, OH"]
["Wayne, OH",39169,"Wayne","OH","Wayne, OH"]
["Williams, OH",39171,"Williams","OH","Williams, OH"]
["Wood, OH",39173,"Wood","OH","Wood, OH"]
["Wyandot, OH",39175,"Wyandot","OH","Wyandot, OH"]
["Adair, OK",40001,"Adair","OK","Adair, OK"]
["Alfalfa, OK",40003,"Alfalfa","OK","Alfalfa, OK"]
["Atoka, OK",40005,"Atoka","OK","Atoka, OK"]
["Beaver, OK",40007,"Beaver","OK","Beaver, OK"]
["Beckham, OK",40009,"Beckham","OK","Beckham, OK"]
["Blaine, OK",40011,"Blaine","OK","Blaine, OK"]
["Bryan, OK",40013,"Bryan","OK","Bryan, OK"]
["Caddo, OK",40015,"Caddo","OK","Caddo, OK"]
["Canadian, OK",40017,"Canadian","OK","Canadian, OK"]
["Carter, OK",40019,"Carter","OK","Carter, OK"]
["Cherokee, OK",40021,"Cherokee","OK","Cherokee, OK"]
["Choctaw, OK",40023,"Choctaw","OK","Choctaw, OK"]
["Cimarron, OK",40025,"Cimarron","OK","Cimarron, OK"]
["Cleveland, OK",40027,"Cleveland","OK","Cleveland, OK"]
["Coal, OK",40029,"Coal","OK","Coal, OK"]
["Comanche, OK",40031,"Comanche","OK","Comanche, OK"]
["Cotton, OK",40033,"Cotton","OK","Cotton, OK"]
["Craig, OK",40035,"Craig","OK","Craig, OK"]
["Creek, OK",40037,"Creek","OK","Creek, OK"]
["Custer, OK",40039,"Custer","OK","Custer, OK"]
["Delaware, OK",40041,"Delaware","OK","Delaware, OK"]
["Dewey, OK",40043,"Dewey","OK","Dewey, OK"]
["Ellis, OK",40045,"Ellis","OK","Ellis, OK"]
["Garfield, OK",40047,"Garfield","OK","Garfield, OK"]
["Garvin, OK",40049,"Garvin","OK","Garvin, OK"]
["Grady, OK",40051,"Grady","OK","Grady, OK"]
["Grant, OK",40053,"Grant","OK","Grant, OK"]
["Greer, OK",40055,"Greer","OK","Greer, OK"]
["Harmon, OK",40057,"Harmon","OK","Harmon, OK"]
["Harper, OK",40059,"Harper","OK","Harper, OK"]
["Haskell, OK",40061,"Haskell","OK","Haskell, OK"]
["Hughes, OK",40063,"Hughes","OK","Hughes, OK"]
["Jackson, OK",40065,"Jackson","OK","Jackson, OK"]
["Jefferson, OK",40067,"Jefferson","OK","Jefferson, OK"]
["Johnston, OK",40069,"Johnston","OK","Johnston, OK"]
["Kay, OK",40071,"Kay","OK","Kay, OK"]
["Kingfisher, OK",40073,"Kingfisher","OK","Kingfisher, OK"]
["Kiowa, OK",40075,"Kiowa","OK","Kiowa, OK"]
["Latimer, OK",40077,"Latimer","OK","Latimer, OK"]
["Le Flore, OK",40079,"Le Flore","OK","Le Flore, OK"]
["Lincoln, OK",40081,"Lincoln","OK","Lincoln, OK"]
["Logan, OK",40083,"Logan","OK","Logan, OK"]
["Love, OK",40085,"Love","OK","Love, OK"]
["McClain, OK",40087,"McClain","OK","McClain, OK"]
["McCurtain, OK",40089,"McCurtain","OK","McCurtain, OK"]
["McIntosh, OK",40091,"McIntosh","OK","McIntosh, OK"]
[{"$f":"E2179","v":"Major, OK"},40093,"Major","OK",{"$f":"C2179&\", \"&D2179","v":"Major, OK"}]
["Marshall, OK",40095,"Marshall","OK","Marshall, OK"]
["Mayes, OK",40097,"Mayes","OK","Mayes, OK"]
["Murray, OK",40099,"Murray","OK","Murray, OK"]
["Muskogee, OK",40101,"Muskogee","OK","Muskogee, OK"]
["Noble, OK",40103,"Noble","OK","Noble, OK"]
["Nowata, OK",40105,"Nowata","OK","Nowata, OK"]
["Okfuskee, OK",40107,"Okfuskee","OK","Okfuskee, OK"]
["Oklahoma, OK",40109,"Oklahoma","OK","Oklahoma, OK"]
["Okmulgee, OK",40111,"Okmulgee","OK","Okmulgee, OK"]
["Osage, OK",40113,"Osage","OK","Osage, OK"]
["Ottawa, OK",40115,"Ottawa","OK","Ottawa, OK"]
["Pawnee, OK",40117,"Pawnee","OK","Pawnee, OK"]
["Payne, OK",40119,"Payne","OK","Payne, OK"]
["Pittsburg, OK",40121,"Pittsburg","OK","Pittsburg, OK"]
["Pontotoc, OK",40123,"Pontotoc","OK","Pontotoc, OK"]
["Pottawatomie, OK",40125,"Pottawatomie","OK","Pottawatomie, OK"]
["Pushmataha, OK",40127,"Pushmataha","OK","Pushmataha, OK"]
["Roger Mills, OK",40129,"Roger Mills","OK","Roger Mills, OK"]
["Rogers, OK",40131,"Rogers","OK","Rogers, OK"]
["Seminole, OK",40133,"Seminole","OK","Seminole, OK"]
["Sequoyah, OK",40135,"Sequoyah","OK","Sequoyah, OK"]
["Stephens, OK",40137,"Stephens","OK","Stephens, OK"]
["Texas, OK",40139,"Texas","OK","Texas, OK"]
["Tillman, OK",40141,"Tillman","OK","Tillman, OK"]
["Tulsa, OK",40143,"Tulsa","OK","Tulsa, OK"]
["Wagoner, OK",40145,"Wagoner","OK","Wagoner, OK"]
["Washington, OK",40147,"Washington","OK","Washington, OK"]
["Washita, OK",40149,"Washita","OK","Washita, OK"]
["Woods, OK",40151,"Woods","OK","Woods, OK"]
["Woodward, OK",40153,"Woodward","OK","Woodward, OK"]
["Baker, OR",41001,"Baker","OR","Baker, OR"]
["Benton, OR",41003,"Benton","OR","Benton, OR"]
["Clackamas, OR",41005,"Clackamas","OR","Clackamas, OR"]
["Clatsop, OR",41007,"Clatsop","OR","Clatsop, OR"]
["Columbia, OR",41009,"Columbia","OR","Columbia, OR"]
["Coos, OR",41011,"Coos","OR","Coos, OR"]
["Crook, OR",41013,"Crook","OR","Crook, OR"]
["Curry, OR",41015,"Curry","OR","Curry, OR"]
["Deschutes, OR",41017,"Deschutes","OR","Deschutes, OR"]
["Douglas, OR",41019,"Douglas","OR","Douglas, OR"]
["Gilliam, OR",41021,"Gilliam","OR","Gilliam, OR"]
["Grant, OR",41023,"Grant","OR","Grant, OR"]
["Harney, OR",41025,"Harney","OR","Harney, OR"]
["Hood River, OR",41027,"Hood River","OR","Hood River, OR"]
["Jackson, OR",41029,"Jackson","OR","Jackson, OR"]
["Jefferson, OR",41031,"Jefferson","OR","Jefferson, OR"]
["Josephine, OR",41033,"Josephine","OR","Josephine, OR"]
["Klamath, OR",41035,"Klamath","OR","Klamath, OR"]
["Lake, OR",41037,"Lake","OR","Lake, OR"]
["Lane, OR",41039,"Lane","OR","Lane, OR"]
["Lincoln, OR",41041,"Lincoln","OR","Lincoln, OR"]
["Linn, OR",41043,"Linn","OR","Linn, OR"]
["Malheur, OR",41045,"Malheur","OR","Malheur, OR"]
["Marion, OR",41047,"Marion","OR","Marion, OR"]
["Morrow, OR",41049,"Morrow","OR","Morrow, OR"]
["Multnomah, OR",41051,"Multnomah","OR","Multnomah, OR"]
["Polk, OR",41053,"Polk","OR","Polk, OR"]
["Sherman, OR",41055,"Sherman","OR","Sherman, OR"]
["Tillamook, OR",41057,"Tillamook","OR","Tillamook, OR"]
["Umatilla, OR",41059,"Umatilla","OR","Umatilla, OR"]
["Union, OR",41061,"Union","OR","Union, OR"]
["Wallowa, OR",41063,"Wallowa","OR","Wallowa, OR"]
["Wasco, OR",41065,"Wasco","OR","Wasco, OR"]
[{"$f":"E2243","v":"Washington, OR"},41067,"Washington","OR",{"$f":"C2243&\", \"&D2243","v":"Washington, OR"}]
["Wheeler, OR",41069,"Wheeler","OR","Wheeler, OR"]
["Yamhill, OR",41071,"Yamhill","OR","Yamhill, OR"]
["Adams, PA",42001,"Adams","PA","Adams, PA"]
["Allegheny, PA",42003,"Allegheny","PA","Allegheny, PA"]
["Armstrong, PA",42005,"Armstrong","PA","Armstrong, PA"]
["Beaver, PA",42007,"Beaver","PA","Beaver, PA"]
["Bedford, PA",42009,"Bedford","PA","Bedford, PA"]
["Berks, PA",42011,"Berks","PA","Berks, PA"]
["Blair, PA",42013,"Blair","PA","Blair, PA"]
["Bradford, PA",42015,"Bradford","PA","Bradford, PA"]
["Bucks, PA",42017,"Bucks","PA","Bucks, PA"]
["Butler, PA",42019,"Butler","PA","Butler, PA"]
["Cambria, PA",42021,"Cambria","PA","Cambria, PA"]
["Cameron, PA",42023,"Cameron","PA","Cameron, PA"]
["Carbon, PA",42025,"Carbon","PA","Carbon, PA"]
["Centre, PA",42027,"Centre","PA","Centre, PA"]
["Chester, PA",42029,"Chester","PA","Chester, PA"]
["Clarion, PA",42031,"Clarion","PA","Clarion, PA"]
["Clearfield, PA",42033,"Clearfield","PA","Clearfield, PA"]
["Clinton, PA",42035,"Clinton","PA","Clinton, PA"]
["Columbia, PA",42037,"Columbia","PA","Columbia, PA"]
["Crawford, PA",42039,"Crawford","PA","Crawford, PA"]
["Cumberland, PA",42041,"Cumberland","PA","Cumberland, PA"]
["Dauphin, PA",42043,"Dauphin","PA","Dauphin, PA"]
["Delaware, PA",42045,"Delaware","PA","Delaware, PA"]
["Elk, PA",42047,"Elk","PA","Elk, PA"]
["Erie, PA",42049,"Erie","PA","Erie, PA"]
["Fayette, PA",42051,"Fayette","PA","Fayette, PA"]
["Forest, PA",42053,"Forest","PA","Forest, PA"]
["Franklin, PA",42055,"Franklin","PA","Franklin, PA"]
["Fulton, PA",42057,"Fulton","PA","Fulton, PA"]
["Greene, PA",42059,"Greene","PA","Greene, PA"]
["Huntingdon, PA",42061,"Huntingdon","PA","Huntingdon, PA"]
["Indiana, PA",42063,"Indiana","PA","Indiana, PA"]
["Jefferson, PA",42065,"Jefferson","PA","Jefferson, PA"]
["Juniata, PA",42067,"Juniata","PA","Juniata, PA"]
["Lackawanna, PA",42069,"Lackawanna","PA","Lackawanna, PA"]
["Lancaster, PA",42071,"Lancaster","PA","Lancaster, PA"]
["Lawrence, PA",42073,"Lawrence","PA","Lawrence, PA"]
["Lebanon, PA",42075,"Lebanon","PA","Lebanon, PA"]
["Lehigh, PA",42077,"Lehigh","PA","Lehigh, PA"]
["Luzerne, PA",42079,"Luzerne","PA","Luzerne, PA"]
["Lycoming, PA",42081,"Lycoming","PA","Lycoming, PA"]
["McKean, PA",42083,"McKean","PA","McKean, PA"]
["Mercer, PA",42085,"Mercer","PA","Mercer, PA"]
["Mifflin, PA",42087,"Mifflin","PA","Mifflin, PA"]
["Monroe, PA",42089,"Monroe","PA","Monroe, PA"]
["Montgomery, PA",42091,"Montgomery","PA","Montgomery, PA"]
["Montour, PA",42093,"Montour","PA","Montour, PA"]
["Northampton, PA",42095,"Northampton","PA","Northampton, PA"]
["Northumberland, PA",42097,"Northumberland","PA","Northumberland, PA"]
["Perry, PA",42099,"Perry","PA","Perry, PA"]
["Philadelphia, PA",42101,"Philadelphia","PA","Philadelphia, PA"]
["Pike, PA",42103,"Pike","PA","Pike, PA"]
["Potter, PA",42105,"Potter","PA","Potter, PA"]
["Schuylkill, PA",42107,"Schuylkill","PA","Schuylkill, PA"]
["Snyder, PA",42109,"Snyder","PA","Snyder, PA"]
["Somerset, PA",42111,"Somerset","PA","Somerset, PA"]
["Sullivan, PA",42113,"Sullivan","PA","Sullivan, PA"]
["Susquehanna, PA",42115,"Susquehanna","PA","Susquehanna, PA"]
["Tioga, PA",42117,"Tioga","PA","Tioga, PA"]
["Union, PA",42119,"Union","PA","Union, PA"]
["Venango, PA",42121,"Venango","PA","Venango, PA"]
[{"$f":"E2307","v":"Warren, PA"},42123,"Warren","PA",{"$f":"C2307&\", \"&D2307","v":"Warren, PA"}]
["Washington, PA",42125,"Washington","PA","Washington, PA"]
["Wayne, PA",42127,"Wayne","PA","Wayne, PA"]
["Westmoreland, PA",42129,"Westmoreland","PA","Westmoreland, PA"]
["Wyoming, PA",42131,"Wyoming","PA","Wyoming, PA"]
["York, PA",42133,"York","PA","York, PA"]
["Bristol, RI",44001,"Bristol","RI","Bristol, RI"]
["Kent, RI",44003,"Kent","RI","Kent, RI"]
["Newport, RI",44005,"Newport","RI","Newport, RI"]
["Providence, RI",44007,"Providence","RI","Providence, RI"]
["Washington, RI",44009,"Washington","RI","Washington, RI"]
["Abbeville, SC",45001,"Abbeville","SC","Abbeville, SC"]
["Aiken, SC",45003,"Aiken","SC","Aiken, SC"]
["Allendale, SC",45005,"Allendale","SC","Allendale, SC"]
["Anderson, SC",45007,"Anderson","SC","Anderson, SC"]
["Bamberg, SC",45009,"Bamberg","SC","Bamberg, SC"]
["Barnwell, SC",45011,"Barnwell","SC","Barnwell, SC"]
["Beaufort, SC",45013,"Beaufort","SC","Beaufort, SC"]
["Berkeley, SC",45015,"Berkeley","SC","Berkeley, SC"]
["Calhoun, SC",45017,"Calhoun","SC","Calhoun, SC"]
["Charleston, SC",45019,"Charleston","SC","Charleston, SC"]
["Cherokee, SC",45021,"Cherokee","SC","Cherokee, SC"]
["Chester, SC",45023,"Chester","SC","Chester, SC"]
["Chesterfield, SC",45025,"Chesterfield","SC","Chesterfield, SC"]
["Clarendon, SC",45027,"Clarendon","SC","Clarendon, SC"]
["Colleton, SC",45029,"Colleton","SC","Colleton, SC"]
["Darlington, SC",45031,"Darlington","SC","Darlington, SC"]
["Dillon, SC",45033,"Dillon","SC","Dillon, SC"]
["Dorchester, SC",45035,"Dorchester","SC","Dorchester, SC"]
["Edgefield, SC",45037,"Edgefield","SC","Edgefield, SC"]
["Fairfield, SC",45039,"Fairfield","SC","Fairfield, SC"]
["Florence, SC",45041,"Florence","SC","Florence, SC"]
["Georgetown, SC",45043,"Georgetown","SC","Georgetown, SC"]
["Greenville, SC",45045,"Greenville","SC","Greenville, SC"]
["Greenwood, SC",45047,"Greenwood","SC","Greenwood, SC"]
["Hampton, SC",45049,"Hampton","SC","Hampton, SC"]
["Horry, SC",45051,"Horry","SC","Horry, SC"]
["Jasper, SC",45053,"Jasper","SC","Jasper, SC"]
["Kershaw, SC",45055,"Kershaw","SC","Kershaw, SC"]
["Lancaster, SC",45057,"Lancaster","SC","Lancaster, SC"]
["Laurens, SC",45059,"Laurens","SC","Laurens, SC"]
["Lee, SC",45061,"Lee","SC","Lee, SC"]
["Lexington, SC",45063,"Lexington","SC","Lexington, SC"]
["McCormick, SC",45065,"McCormick","SC","McCormick, SC"]
["Marion, SC",45067,"Marion","SC","Marion, SC"]
["Marlboro, SC",45069,"Marlboro","SC","Marlboro, SC"]
["Newberry, SC",45071,"Newberry","SC","Newberry, SC"]
["Oconee, SC",45073,"Oconee","SC","Oconee, SC"]
["Orangeburg, SC",45075,"Orangeburg","SC","Orangeburg, SC"]
["Pickens, SC",45077,"Pickens","SC","Pickens, SC"]
["Richland, SC",45079,"Richland","SC","Richland, SC"]
["Saluda, SC",45081,"Saluda","SC","Saluda, SC"]
["Spartanburg, SC",45083,"Spartanburg","SC","Spartanburg, SC"]
["Sumter, SC",45085,"Sumter","SC","Sumter, SC"]
["Union, SC",45087,"Union","SC","Union, SC"]
["Williamsburg, SC",45089,"Williamsburg","SC","Williamsburg, SC"]
["York, SC",45091,"York","SC","York, SC"]
["Aurora, SD",46003,"Aurora","SD","Aurora, SD"]
["Beadle, SD",46005,"Beadle","SD","Beadle, SD"]
["Bennett, SD",46007,"Bennett","SD","Bennett, SD"]
["Bon Homme, SD",46009,"Bon Homme","SD","Bon Homme, SD"]
["Brookings, SD",46011,"Brookings","SD","Brookings, SD"]
["Brown, SD",46013,"Brown","SD","Brown, SD"]
["Brule, SD",46015,"Brule","SD","Brule, SD"]
[{"$f":"E2371","v":"Buffalo, SD"},46017,"Buffalo","SD",{"$f":"C2371&\", \"&D2371","v":"Buffalo, SD"}]
["Butte, SD",46019,"Butte","SD","Butte, SD"]
["Campbell, SD",46021,"Campbell","SD","Campbell, SD"]
["Charles Mix, SD",46023,"Charles Mix","SD","Charles Mix, SD"]
["Clark, SD",46025,"Clark","SD","Clark, SD"]
["Clay, SD",46027,"Clay","SD","Clay, SD"]
["Codington, SD",46029,"Codington","SD","Codington, SD"]
["Corson, SD",46031,"Corson","SD","Corson, SD"]
["Custer, SD",46033,"Custer","SD","Custer, SD"]
["Davison, SD",46035,"Davison","SD","Davison, SD"]
["Day, SD",46037,"Day","SD","Day, SD"]
["Deuel, SD",46039,"Deuel","SD","Deuel, SD"]
["Dewey, SD",46041,"Dewey","SD","Dewey, SD"]
["Douglas, SD",46043,"Douglas","SD","Douglas, SD"]
["Edmunds, SD",46045,"Edmunds","SD","Edmunds, SD"]
["Fall River, SD",46047,"Fall River","SD","Fall River, SD"]
["Faulk, SD",46049,"Faulk","SD","Faulk, SD"]
["Grant, SD",46051,"Grant","SD","Grant, SD"]
["Gregory, SD",46053,"Gregory","SD","Gregory, SD"]
["Haakon, SD",46055,"Haakon","SD","Haakon, SD"]
["Hamlin, SD",46057,"Hamlin","SD","Hamlin, SD"]
["Hand, SD",46059,"Hand","SD","Hand, SD"]
["Hanson, SD",46061,"Hanson","SD","Hanson, SD"]
["Harding, SD",46063,"Harding","SD","Harding, SD"]
["Hughes, SD",46065,"Hughes","SD","Hughes, SD"]
["Hutchinson, SD",46067,"Hutchinson","SD","Hutchinson, SD"]
["Hyde, SD",46069,"Hyde","SD","Hyde, SD"]
["Jackson, SD",46071,"Jackson","SD","Jackson, SD"]
["Jerauld, SD",46073,"Jerauld","SD","Jerauld, SD"]
["Jones, SD",46075,"Jones","SD","Jones, SD"]
["Kingsbury, SD",46077,"Kingsbury","SD","Kingsbury, SD"]
["Lake, SD",46079,"Lake","SD","Lake, SD"]
["Lawrence, SD",46081,"Lawrence","SD","Lawrence, SD"]
["Lincoln, SD",46083,"Lincoln","SD","Lincoln, SD"]
["Lyman, SD",46085,"Lyman","SD","Lyman, SD"]
["McCook, SD",46087,"McCook","SD","McCook, SD"]
["McPherson, SD",46089,"McPherson","SD","McPherson, SD"]
["Marshall, SD",46091,"Marshall","SD","Marshall, SD"]
["Meade, SD",46093,"Meade","SD","Meade, SD"]
["Mellette, SD",46095,"Mellette","SD","Mellette, SD"]
["Miner, SD",46097,"Miner","SD","Miner, SD"]
["Minnehaha, SD",46099,"Minnehaha","SD","Minnehaha, SD"]
["Moody, SD",46101,"Moody","SD","Moody, SD"]
["Oglala Lakota, SD",46102,"Oglala Lakota","SD","Oglala Lakota, SD"]
["Pennington, SD",46103,"Pennington","SD","Pennington, SD"]
["Perkins, SD",46105,"Perkins","SD","Perkins, SD"]
["Potter, SD",46107,"Potter","SD","Potter, SD"]
["Roberts, SD",46109,"Roberts","SD","Roberts, SD"]
["Sanborn, SD",46111,"Sanborn","SD","Sanborn, SD"]
["Spink, SD",46115,"Spink","SD","Spink, SD"]
["Stanley, SD",46117,"Stanley","SD","Stanley, SD"]
["Sully, SD",46119,"Sully","SD","Sully, SD"]
["Todd, SD",46121,"Todd","SD","Todd, SD"]
["Tripp, SD",46123,"Tripp","SD","Tripp, SD"]
["Turner, SD",46125,"Turner","SD","Turner, SD"]
["Union, SD",46127,"Union","SD","Union, SD"]
["Walworth, SD",46129,"Walworth","SD","Walworth, SD"]
["Yankton, SD",46135,"Yankton","SD","Yankton, SD"]
["Ziebach, SD",46137,"Ziebach","SD","Ziebach, SD"]
["Anderson, TN",47001,"Anderson","TN","Anderson, TN"]
["Bedford, TN",47003,"Bedford","TN","Bedford, TN"]
["Benton, TN",47005,"Benton","TN","Benton, TN"]
["Bledsoe, TN",47007,"Bledsoe","TN","Bledsoe, TN"]
["Blount, TN",47009,"Blount","TN","Blount, TN"]
[{"$f":"E2435","v":"Bradley, TN"},47011,"Bradley","TN",{"$f":"C2435&\", \"&D2435","v":"Bradley, TN"}]
["Campbell, TN",47013,"Campbell","TN","Campbell, TN"]
["Cannon, TN",47015,"Cannon","TN","Cannon, TN"]
["Carroll, TN",47017,"Carroll","TN","Carroll, TN"]
["Carter, TN",47019,"Carter","TN","Carter, TN"]
["Cheatham, TN",47021,"Cheatham","TN","Cheatham, TN"]
["Chester, TN",47023,"Chester","TN","Chester, TN"]
["Claiborne, TN",47025,"Claiborne","TN","Claiborne, TN"]
["Clay, TN",47027,"Clay","TN","Clay, TN"]
["Cocke, TN",47029,"Cocke","TN","Cocke, TN"]
["Coffee, TN",47031,"Coffee","TN","Coffee, TN"]
["Crockett, TN",47033,"Crockett","TN","Crockett, TN"]
["Cumberland, TN",47035,"Cumberland","TN","Cumberland, TN"]
["Davidson, TN",47037,"Davidson","TN","Davidson, TN"]
["Decatur, TN",47039,"Decatur","TN","Decatur, TN"]
["DeKalb, TN",47041,"DeKalb","TN","DeKalb, TN"]
["Dickson, TN",47043,"Dickson","TN","Dickson, TN"]
["Dyer, TN",47045,"Dyer","TN","Dyer, TN"]
["Fayette, TN",47047,"Fayette","TN","Fayette, TN"]
["Fentress, TN",47049,"Fentress","TN","Fentress, TN"]
["Franklin, TN",47051,"Franklin","TN","Franklin, TN"]
["Gibson, TN",47053,"Gibson","TN","Gibson, TN"]
["Giles, TN",47055,"Giles","TN","Giles, TN"]
["Grainger, TN",47057,"Grainger","TN","Grainger, TN"]
["Greene, TN",47059,"Greene","TN","Greene, TN"]
["Grundy, TN",47061,"Grundy","TN","Grundy, TN"]
["Hamblen, TN",47063,"Hamblen","TN","Hamblen, TN"]
["Hamilton, TN",47065,"Hamilton","TN","Hamilton, TN"]
["Hancock, TN",47067,"Hancock","TN","Hancock, TN"]
["Hardeman, TN",47069,"Hardeman","TN","Hardeman, TN"]
["Hardin, TN",47071,"Hardin","TN","Hardin, TN"]
["Hawkins, TN",47073,"Hawkins","TN","Hawkins, TN"]
["Haywood, TN",47075,"Haywood","TN","Haywood, TN"]
["Henderson, TN",47077,"Henderson","TN","Henderson, TN"]
["Henry, TN",47079,"Henry","TN","Henry, TN"]
["Hickman, TN",47081,"Hickman","TN","Hickman, TN"]
["Houston, TN",47083,"Houston","TN","Houston, TN"]
["Humphreys, TN",47085,"Humphreys","TN","Humphreys, TN"]
["Jackson, TN",47087,"Jackson","TN","Jackson, TN"]
["Jefferson, TN",47089,"Jefferson","TN","Jefferson, TN"]
["Johnson, TN",47091,"Johnson","TN","Johnson, TN"]
["Knox, TN",47093,"Knox","TN","Knox, TN"]
["Lake, TN",47095,"Lake","TN","Lake, TN"]
["Lauderdale, TN",47097,"Lauderdale","TN","Lauderdale, TN"]
["Lawrence, TN",47099,"Lawrence","TN","Lawrence, TN"]
["Lewis, TN",47101,"Lewis","TN","Lewis, TN"]
["Lincoln, TN",47103,"Lincoln","TN","Lincoln, TN"]
["Loudon, TN",47105,"Loudon","TN","Loudon, TN"]
["McMinn, TN",47107,"McMinn","TN","McMinn, TN"]
["McNairy, TN",47109,"McNairy","TN","McNairy, TN"]
["Macon, TN",47111,"Macon","TN","Macon, TN"]
["Madison, TN",47113,"Madison","TN","Madison, TN"]
["Marion, TN",47115,"Marion","TN","Marion, TN"]
["Marshall, TN",47117,"Marshall","TN","Marshall, TN"]
["Maury, TN",47119,"Maury","TN","Maury, TN"]
["Meigs, TN",47121,"Meigs","TN","Meigs, TN"]
["Monroe, TN",47123,"Monroe","TN","Monroe, TN"]
["Montgomery, TN",47125,"Montgomery","TN","Montgomery, TN"]
["Moore, TN",47127,"Moore","TN","Moore, TN"]
["Morgan, TN",47129,"Morgan","TN","Morgan, TN"]
["Obion, TN",47131,"Obion","TN","Obion, TN"]
["Overton, TN",47133,"Overton","TN","Overton, TN"]
["Perry, TN",47135,"Perry","TN","Perry, TN"]
["Pickett, TN",47137,"Pickett","TN","Pickett, TN"]
[{"$f":"E2499","v":"Polk, TN"},47139,"Polk","TN",{"$f":"C2499&\", \"&D2499","v":"Polk, TN"}]
["Putnam, TN",47141,"Putnam","TN","Putnam, TN"]
["Rhea, TN",47143,"Rhea","TN","Rhea, TN"]
["Roane, TN",47145,"Roane","TN","Roane, TN"]
["Robertson, TN",47147,"Robertson","TN","Robertson, TN"]
["Rutherford, TN",47149,"Rutherford","TN","Rutherford, TN"]
["Scott, TN",47151,"Scott","TN","Scott, TN"]
["Sequatchie, TN",47153,"Sequatchie","TN","Sequatchie, TN"]
["Sevier, TN",47155,"Sevier","TN","Sevier, TN"]
["Shelby, TN",47157,"Shelby","TN","Shelby, TN"]
["Smith, TN",47159,"Smith","TN","Smith, TN"]
["Stewart, TN",47161,"Stewart","TN","Stewart, TN"]
["Sullivan, TN",47163,"Sullivan","TN","Sullivan, TN"]
["Sumner, TN",47165,"Sumner","TN","Sumner, TN"]
["Tipton, TN",47167,"Tipton","TN","Tipton, TN"]
["Trousdale, TN",47169,"Trousdale","TN","Trousdale, TN"]
["Unicoi, TN",47171,"Unicoi","TN","Unicoi, TN"]
["Union, TN",47173,"Union","TN","Union, TN"]
["Van Buren, TN",47175,"Van Buren","TN","Van Buren, TN"]
["Warren, TN",47177,"Warren","TN","Warren, TN"]
["Washington, TN",47179,"Washington","TN","Washington, TN"]
["Wayne, TN",47181,"Wayne","TN","Wayne, TN"]
["Weakley, TN",47183,"Weakley","TN","Weakley, TN"]
["White, TN",47185,"White","TN","White, TN"]
["Williamson, TN",47187,"Williamson","TN","Williamson, TN"]
["Wilson, TN",47189,"Wilson","TN","Wilson, TN"]
["Anderson, TX",48001,"Anderson","TX","Anderson, TX"]
["Andrews, TX",48003,"Andrews","TX","Andrews, TX"]
["Angelina, TX",48005,"Angelina","TX","Angelina, TX"]
["Aransas, TX",48007,"Aransas","TX","Aransas, TX"]
["Archer, TX",48009,"Archer","TX","Archer, TX"]
["Armstrong, TX",48011,"Armstrong","TX","Armstrong, TX"]
["Atascosa, TX",48013,"Atascosa","TX","Atascosa, TX"]
["Austin, TX",48015,"Austin","TX","Austin, TX"]
["Bailey, TX",48017,"Bailey","TX","Bailey, TX"]
["Bandera, TX",48019,"Bandera","TX","Bandera, TX"]
["Bastrop, TX",48021,"Bastrop","TX","Bastrop, TX"]
["Baylor, TX",48023,"Baylor","TX","Baylor, TX"]
["Bee, TX",48025,"Bee","TX","Bee, TX"]
["Bell, TX",48027,"Bell","TX","Bell, TX"]
["Bexar, TX",48029,"Bexar","TX","Bexar, TX"]
["Blanco, TX",48031,"Blanco","TX","Blanco, TX"]
["Borden, TX",48033,"Borden","TX","Borden, TX"]
["Bosque, TX",48035,"Bosque","TX","Bosque, TX"]
["Bowie, TX",48037,"Bowie","TX","Bowie, TX"]
["Brazoria, TX",48039,"Brazoria","TX","Brazoria, TX"]
["Brazos, TX",48041,"Brazos","TX","Brazos, TX"]
["Brewster, TX",48043,"Brewster","TX","Brewster, TX"]
["Briscoe, TX",48045,"Briscoe","TX","Briscoe, TX"]
["Brooks, TX",48047,"Brooks","TX","Brooks, TX"]
["Brown, TX",48049,"Brown","TX","Brown, TX"]
["Burleson, TX",48051,"Burleson","TX","Burleson, TX"]
["Burnet, TX",48053,"Burnet","TX","Burnet, TX"]
["Caldwell, TX",48055,"Caldwell","TX","Caldwell, TX"]
["Calhoun, TX",48057,"Calhoun","TX","Calhoun, TX"]
["Callahan, TX",48059,"Callahan","TX","Callahan, TX"]
["Cameron, TX",48061,"Cameron","TX","Cameron, TX"]
["Camp, TX",48063,"Camp","TX","Camp, TX"]
["Carson, TX",48065,"Carson","TX","Carson, TX"]
["Cass, TX",48067,"Cass","TX","Cass, TX"]
["Castro, TX",48069,"Castro","TX","Castro, TX"]
["Chambers, TX",48071,"Chambers","TX","Chambers, TX"]
["Cherokee, TX",48073,"Cherokee","TX","Cherokee, TX"]
["Childress, TX",48075,"Childress","TX","Childress, TX"]
[{"$f":"E2563","v":"Clay, TX"},48077,"Clay","TX",{"$f":"C2563&\", \"&D2563","v":"Clay, TX"}]
["Cochran, TX",48079,"Cochran","TX","Cochran, TX"]
["Coke, TX",48081,"Coke","TX","Coke, TX"]
["Coleman, TX",48083,"Coleman","TX","Coleman, TX"]
["Collin, TX",48085,"Collin","TX","Collin, TX"]
["Collingsworth, TX",48087,"Collingsworth","TX","Collingsworth, TX"]
["Colorado, TX",48089,"Colorado","TX","Colorado, TX"]
["Comal, TX",48091,"Comal","TX","Comal, TX"]
["Comanche, TX",48093,"Comanche","TX","Comanche, TX"]
["Concho, TX",48095,"Concho","TX","Concho, TX"]
["Cooke, TX",48097,"Cooke","TX","Cooke, TX"]
["Coryell, TX",48099,"Coryell","TX","Coryell, TX"]
["Cottle, TX",48101,"Cottle","TX","Cottle, TX"]
["Crane, TX",48103,"Crane","TX","Crane, TX"]
["Crockett, TX",48105,"Crockett","TX","Crockett, TX"]
["Crosby, TX",48107,"Crosby","TX","Crosby, TX"]
["Culberson, TX",48109,"Culberson","TX","Culberson, TX"]
["Dallam, TX",48111,"Dallam","TX","Dallam, TX"]
["Dallas, TX",48113,"Dallas","TX","Dallas, TX"]
["Dawson, TX",48115,"Dawson","TX","Dawson, TX"]
["Deaf Smith, TX",48117,"Deaf Smith","TX","Deaf Smith, TX"]
["Delta, TX",48119,"Delta","TX","Delta, TX"]
["Denton, TX",48121,"Denton","TX","Denton, TX"]
["DeWitt, TX",48123,"DeWitt","TX","DeWitt, TX"]
["Dickens, TX",48125,"Dickens","TX","Dickens, TX"]
["Dimmit, TX",48127,"Dimmit","TX","Dimmit, TX"]
["Donley, TX",48129,"Donley","TX","Donley, TX"]
["Duval, TX",48131,"Duval","TX","Duval, TX"]
["Eastland, TX",48133,"Eastland","TX","Eastland, TX"]
["Ector, TX",48135,"Ector","TX","Ector, TX"]
["Edwards, TX",48137,"Edwards","TX","Edwards, TX"]
["Ellis, TX",48139,"Ellis","TX","Ellis, TX"]
["El Paso, TX",48141,"El Paso","TX","El Paso, TX"]
["Erath, TX",48143,"Erath","TX","Erath, TX"]
["Falls, TX",48145,"Falls","TX","Falls, TX"]
["Fannin, TX",48147,"Fannin","TX","Fannin, TX"]
["Fayette, TX",48149,"Fayette","TX","Fayette, TX"]
["Fisher, TX",48151,"Fisher","TX","Fisher, TX"]
["Floyd, TX",48153,"Floyd","TX","Floyd, TX"]
["Foard, TX",48155,"Foard","TX","Foard, TX"]
["Fort Bend, TX",48157,"Fort Bend","TX","Fort Bend, TX"]
["Franklin, TX",48159,"Franklin","TX","Franklin, TX"]
["Freestone, TX",48161,"Freestone","TX","Freestone, TX"]
["Frio, TX",48163,"Frio","TX","Frio, TX"]
["Gaines, TX",48165,"Gaines","TX","Gaines, TX"]
["Galveston, TX",48167,"Galveston","TX","Galveston, TX"]
["Garza, TX",48169,"Garza","TX","Garza, TX"]
["Gillespie, TX",48171,"Gillespie","TX","Gillespie, TX"]
["Glasscock, TX",48173,"Glasscock","TX","Glasscock, TX"]
["Goliad, TX",48175,"Goliad","TX","Goliad, TX"]
["Gonzales, TX",48177,"Gonzales","TX","Gonzales, TX"]
["Gray, TX",48179,"Gray","TX","Gray, TX"]
["Grayson, TX",48181,"Grayson","TX","Grayson, TX"]
["Gregg, TX",48183,"Gregg","TX","Gregg, TX"]
["Grimes, TX",48185,"Grimes","TX","Grimes, TX"]
["Guadalupe, TX",48187,"Guadalupe","TX","Guadalupe, TX"]
["Hale, TX",48189,"Hale","TX","Hale, TX"]
["Hall, TX",48191,"Hall","TX","Hall, TX"]
["Hamilton, TX",48193,"Hamilton","TX","Hamilton, TX"]
["Hansford, TX",48195,"Hansford","TX","Hansford, TX"]
["Hardeman, TX",48197,"Hardeman","TX","Hardeman, TX"]
["Hardin, TX",48199,"Hardin","TX","Hardin, TX"]
["Harris, TX",48201,"Harris","TX","Harris, TX"]
["Harrison, TX",48203,"Harrison","TX","Harrison, TX"]
[{"$f":"E2627","v":"Hartley, TX"},48205,"Hartley","TX",{"$f":"C2627&\", \"&D2627","v":"Hartley, TX"}]
["Haskell, TX",48207,"Haskell","TX","Haskell, TX"]
["Hays, TX",48209,"Hays","TX","Hays, TX"]
["Hemphill, TX",48211,"Hemphill","TX","Hemphill, TX"]
["Henderson, TX",48213,"Henderson","TX","Henderson, TX"]
["Hidalgo, TX",48215,"Hidalgo","TX","Hidalgo, TX"]
["Hill, TX",48217,"Hill","TX","Hill, TX"]
["Hockley, TX",48219,"Hockley","TX","Hockley, TX"]
["Hood, TX",48221,"Hood","TX","Hood, TX"]
["Hopkins, TX",48223,"Hopkins","TX","Hopkins, TX"]
["Houston, TX",48225,"Houston","TX","Houston, TX"]
["Howard, TX",48227,"Howard","TX","Howard, TX"]
["Hudspeth, TX",48229,"Hudspeth","TX","Hudspeth, TX"]
["Hunt, TX",48231,"Hunt","TX","Hunt, TX"]
["Hutchinson, TX",48233,"Hutchinson","TX","Hutchinson, TX"]
["Irion, TX",48235,"Irion","TX","Irion, TX"]
["Jack, TX",48237,"Jack","TX","Jack, TX"]
["Jackson, TX",48239,"Jackson","TX","Jackson, TX"]
["Jasper, TX",48241,"Jasper","TX","Jasper, TX"]
["Jeff Davis, TX",48243,"Jeff Davis","TX","Jeff Davis, TX"]
["Jefferson, TX",48245,"Jefferson","TX","Jefferson, TX"]
["Jim Hogg, TX",48247,"Jim Hogg","TX","Jim Hogg, TX"]
["Jim Wells, TX",48249,"Jim Wells","TX","Jim Wells, TX"]
["Johnson, TX",48251,"Johnson","TX","Johnson, TX"]
["Jones, TX",48253,"Jones","TX","Jones, TX"]
["Karnes, TX",48255,"Karnes","TX","Karnes, TX"]
["Kaufman, TX",48257,"Kaufman","TX","Kaufman, TX"]
["Kendall, TX",48259,"Kendall","TX","Kendall, TX"]
["Kenedy, TX",48261,"Kenedy","TX","Kenedy, TX"]
["Kent, TX",48263,"Kent","TX","Kent, TX"]
["Kerr, TX",48265,"Kerr","TX","Kerr, TX"]
["Kimble, TX",48267,"Kimble","TX","Kimble, TX"]
["King, TX",48269,"King","TX","King, TX"]
["Kinney, TX",48271,"Kinney","TX","Kinney, TX"]
["Kleberg, TX",48273,"Kleberg","TX","Kleberg, TX"]
["Knox, TX",48275,"Knox","TX","Knox, TX"]
["Lamar, TX",48277,"Lamar","TX","Lamar, TX"]
["Lamb, TX",48279,"Lamb","TX","Lamb, TX"]
["Lampasas, TX",48281,"Lampasas","TX","Lampasas, TX"]
["La Salle, TX",48283,"La Salle","TX","La Salle, TX"]
["Lavaca, TX",48285,"Lavaca","TX","Lavaca, TX"]
["Lee, TX",48287,"Lee","TX","Lee, TX"]
["Leon, TX",48289,"Leon","TX","Leon, TX"]
["Liberty, TX",48291,"Liberty","TX","Liberty, TX"]
["Limestone, TX",48293,"Limestone","TX","Limestone, TX"]
["Lipscomb, TX",48295,"Lipscomb","TX","Lipscomb, TX"]
["Live Oak, TX",48297,"Live Oak","TX","Live Oak, TX"]
["Llano, TX",48299,"Llano","TX","Llano, TX"]
["Loving, TX",48301,"Loving","TX","Loving, TX"]
["Lubbock, TX",48303,"Lubbock","TX","Lubbock, TX"]
["Lynn, TX",48305,"Lynn","TX","Lynn, TX"]
["McCulloch, TX",48307,"McCulloch","TX","McCulloch, TX"]
["McLennan, TX",48309,"McLennan","TX","McLennan, TX"]
["McMullen, TX",48311,"McMullen","TX","McMullen, TX"]
["Madison, TX",48313,"Madison","TX","Madison, TX"]
["Marion, TX",48315,"Marion","TX","Marion, TX"]
["Martin, TX",48317,"Martin","TX","Martin, TX"]
["Mason, TX",48319,"Mason","TX","Mason, TX"]
["Matagorda, TX",48321,"Matagorda","TX","Matagorda, TX"]
["Maverick, TX",48323,"Maverick","TX","Maverick, TX"]
["Medina, TX",48325,"Medina","TX","Medina, TX"]
["Menard, TX",48327,"Menard","TX","Menard, TX"]
["Midland, TX",48329,"Midland","TX","Midland, TX"]
["Milam, TX",48331,"Milam","TX","Milam, TX"]
[{"$f":"E2691","v":"Mills, TX"},48333,"Mills","TX",{"$f":"C2691&\", \"&D2691","v":"Mills, TX"}]
["Mitchell, TX",48335,"Mitchell","TX","Mitchell, TX"]
["Montague, TX",48337,"Montague","TX","Montague, TX"]
["Montgomery, TX",48339,"Montgomery","TX","Montgomery, TX"]
["Moore, TX",48341,"Moore","TX","Moore, TX"]
["Morris, TX",48343,"Morris","TX","Morris, TX"]
["Motley, TX",48345,"Motley","TX","Motley, TX"]
["Nacogdoches, TX",48347,"Nacogdoches","TX","Nacogdoches, TX"]
["Navarro, TX",48349,"Navarro","TX","Navarro, TX"]
["Newton, TX",48351,"Newton","TX","Newton, TX"]
["Nolan, TX",48353,"Nolan","TX","Nolan, TX"]
["Nueces, TX",48355,"Nueces","TX","Nueces, TX"]
["Ochiltree, TX",48357,"Ochiltree","TX","Ochiltree, TX"]
["Oldham, TX",48359,"Oldham","TX","Oldham, TX"]
["Orange, TX",48361,"Orange","TX","Orange, TX"]
["Palo Pinto, TX",48363,"Palo Pinto","TX","Palo Pinto, TX"]
["Panola, TX",48365,"Panola","TX","Panola, TX"]
["Parker, TX",48367,"Parker","TX","Parker, TX"]
["Parmer, TX",48369,"Parmer","TX","Parmer, TX"]
["Pecos, TX",48371,"Pecos","TX","Pecos, TX"]
["Polk, TX",48373,"Polk","TX","Polk, TX"]
["Potter, TX",48375,"Potter","TX","Potter, TX"]
["Presidio, TX",48377,"Presidio","TX","Presidio, TX"]
["Rains, TX",48379,"Rains","TX","Rains, TX"]
["Randall, TX",48381,"Randall","TX","Randall, TX"]
["Reagan, TX",48383,"Reagan","TX","Reagan, TX"]
["Real, TX",48385,"Real","TX","Real, TX"]
["Red River, TX",48387,"Red River","TX","Red River, TX"]
["Reeves, TX",48389,"Reeves","TX","Reeves, TX"]
["Refugio, TX",48391,"Refugio","TX","Refugio, TX"]
["Roberts, TX",48393,"Roberts","TX","Roberts, TX"]
["Robertson, TX",48395,"Robertson","TX","Robertson, TX"]
["Rockwall, TX",48397,"Rockwall","TX","Rockwall, TX"]
["Runnels, TX",48399,"Runnels","TX","Runnels, TX"]
["Rusk, TX",48401,"Rusk","TX","Rusk, TX"]
["Sabine, TX",48403,"Sabine","TX","Sabine, TX"]
["San Augustine, TX",48405,"San Augustine","TX","San Augustine, TX"]
["San Jacinto, TX",48407,"San Jacinto","TX","San Jacinto, TX"]
["San Patricio, TX",48409,"San Patricio","TX","San Patricio, TX"]
["San Saba, TX",48411,"San Saba","TX","San Saba, TX"]
["Schleicher, TX",48413,"Schleicher","TX","Schleicher, TX"]
["Scurry, TX",48415,"Scurry","TX","Scurry, TX"]
["Shackelford, TX",48417,"Shackelford","TX","Shackelford, TX"]
["Shelby, TX",48419,"Shelby","TX","Shelby, TX"]
["Sherman, TX",48421,"Sherman","TX","Sherman, TX"]
["Smith, TX",48423,"Smith","TX","Smith, TX"]
["Somervell, TX",48425,"Somervell","TX","Somervell, TX"]
["Starr, TX",48427,"Starr","TX","Starr, TX"]
["Stephens, TX",48429,"Stephens","TX","Stephens, TX"]
["Sterling, TX",48431,"Sterling","TX","Sterling, TX"]
["Stonewall, TX",48433,"Stonewall","TX","Stonewall, TX"]
["Sutton, TX",48435,"Sutton","TX","Sutton, TX"]
["Swisher, TX",48437,"Swisher","TX","Swisher, TX"]
["Tarrant, TX",48439,"Tarrant","TX","Tarrant, TX"]
["Taylor, TX",48441,"Taylor","TX","Taylor, TX"]
["Terrell, TX",48443,"Terrell","TX","Terrell, TX"]
["Terry, TX",48445,"Terry","TX","Terry, TX"]
["Throckmorton, TX",48447,"Throckmorton","TX","Throckmorton, TX"]
["Titus, TX",48449,"Titus","TX","Titus, TX"]
["Tom Green, TX",48451,"Tom Green","TX","Tom Green, TX"]
["Travis, TX",48453,"Travis","TX","Travis, TX"]
["Trinity, TX",48455,"Trinity","TX","Trinity, TX"]
["Tyler, TX",48457,"Tyler","TX","Tyler, TX"]
["Upshur, TX",48459,"Upshur","TX","Upshur, TX"]
[{"$f":"E2755","v":"Upton, TX"},48461,"Upton","TX",{"$f":"C2755&\", \"&D2755","v":"Upton, TX"}]
["Uvalde, TX",48463,"Uvalde","TX","Uvalde, TX"]
["Val Verde, TX",48465,"Val Verde","TX","Val Verde, TX"]
["Van Zandt, TX",48467,"Van Zandt","TX","Van Zandt, TX"]
["Victoria, TX",48469,"Victoria","TX","Victoria, TX"]
["Walker, TX",48471,"Walker","TX","Walker, TX"]
["Waller, TX",48473,"Waller","TX","Waller, TX"]
["Ward, TX",48475,"Ward","TX","Ward, TX"]
["Washington, TX",48477,"Washington","TX","Washington, TX"]
["Webb, TX",48479,"Webb","TX","Webb, TX"]
["Wharton, TX",48481,"Wharton","TX","Wharton, TX"]
["Wheeler, TX",48483,"Wheeler","TX","Wheeler, TX"]
["Wichita, TX",48485,"Wichita","TX","Wichita, TX"]
["Wilbarger, TX",48487,"Wilbarger","TX","Wilbarger, TX"]
["Willacy, TX",48489,"Willacy","TX","Willacy, TX"]
["Williamson, TX",48491,"Williamson","TX","Williamson, TX"]
["Wilson, TX",48493,"Wilson","TX","Wilson, TX"]
["Winkler, TX",48495,"Winkler","TX","Winkler, TX"]
["Wise, TX",48497,"Wise","TX","Wise, TX"]
["Wood, TX",48499,"Wood","TX","Wood, TX"]
["Yoakum, TX",48501,"Yoakum","TX","Yoakum, TX"]
["Young, TX",48503,"Young","TX","Young, TX"]
["Zapata, TX",48505,"Zapata","TX","Zapata, TX"]
["Zavala, TX",48507,"Zavala","TX","Zavala, TX"]
["Beaver, UT",49001,"Beaver","UT","Beaver, UT"]
["Box Elder, UT",49003,"Box Elder","UT","Box Elder, UT"]
["Cache, UT",49005,"Cache","UT","Cache, UT"]
["Carbon, UT",49007,"Carbon","UT","Carbon, UT"]
["Daggett, UT",49009,"Daggett","UT","Daggett, UT"]
["Davis, UT",49011,"Davis","UT","Davis, UT"]
["Duchesne, UT",49013,"Duchesne","UT","Duchesne, UT"]
["Emery, UT",49015,"Emery","UT","Emery, UT"]
["Garfield, UT",49017,"Garfield","UT","Garfield, UT"]
["Grand, UT",49019,"Grand","UT","Grand, UT"]
["Iron, UT",49021,"Iron","UT","Iron, UT"]
["Juab, UT",49023,"Juab","UT","Juab, UT"]
["Kane, UT",49025,"Kane","UT","Kane, UT"]
["Millard, UT",49027,"Millard","UT","Millard, UT"]
["Morgan, UT",49029,"Morgan","UT","Morgan, UT"]
["Piute, UT",49031,"Piute","UT","Piute, UT"]
["Rich, UT",49033,"Rich","UT","Rich, UT"]
["Salt Lake, UT",49035,"Salt Lake","UT","Salt Lake, UT"]
["San Juan, UT",49037,"San Juan","UT","San Juan, UT"]
["Sanpete, UT",49039,"Sanpete","UT","Sanpete, UT"]
["Sevier, UT",49041,"Sevier","UT","Sevier, UT"]
["Summit, UT",49043,"Summit","UT","Summit, UT"]
["Tooele, UT",49045,"Tooele","UT","Tooele, UT"]
["Uintah, UT",49047,"Uintah","UT","Uintah, UT"]
["Utah, UT",49049,"Utah","UT","Utah, UT"]
["Wasatch, UT",49051,"Wasatch","UT","Wasatch, UT"]
["Washington, UT",49053,"Washington","UT","Washington, UT"]
["Wayne, UT",49055,"Wayne","UT","Wayne, UT"]
["Weber, UT",49057,"Weber","UT","Weber, UT"]
["Addison, VT",50001,"Addison","VT","Addison, VT"]
["Bennington, VT",50003,"Bennington","VT","Bennington, VT"]
["Caledonia, VT",50005,"Caledonia","VT","Caledonia, VT"]
["Chittenden, VT",50007,"Chittenden","VT","Chittenden, VT"]
["Essex, VT",50009,"Essex","VT","Essex, VT"]
["Franklin, VT",50011,"Franklin","VT","Franklin, VT"]
["Grand Isle, VT",50013,"Grand Isle","VT","Grand Isle, VT"]
["Lamoille, VT",50015,"Lamoille","VT","Lamoille, VT"]
["Orange, VT",50017,"Orange","VT","Orange, VT"]
["Orleans, VT",50019,"Orleans","VT","Orleans, VT"]
["Rutland, VT",50021,"Rutland","VT","Rutland, VT"]
[{"$f":"E2819","v":"Washington, VT"},50023,"Washington","VT",{"$f":"C2819&\", \"&D2819","v":"Washington, VT"}]
["Windham, VT",50025,"Windham","VT","Windham, VT"]
["Windsor, VT",50027,"Windsor","VT","Windsor, VT"]
["Accomack, VA",51001,"Accomack","VA","Accomack, VA"]
["Albemarle, VA",51003,"Albemarle","VA","Albemarle, VA"]
["Alleghany, VA",51005,"Alleghany","VA","Alleghany, VA"]
["Amelia, VA",51007,"Amelia","VA","Amelia, VA"]
["Amherst, VA",51009,"Amherst","VA","Amherst, VA"]
["Appomattox, VA",51011,"Appomattox","VA","Appomattox, VA"]
["Arlington, VA",51013,"Arlington","VA","Arlington, VA"]
["Augusta, VA",51015,"Augusta","VA","Augusta, VA"]
["Bath, VA",51017,"Bath","VA","Bath, VA"]
["Bedford, VA",51019,"Bedford","VA","Bedford, VA"]
["Bland, VA",51021,"Bland","VA","Bland, VA"]
["Botetourt, VA",51023,"Botetourt","VA","Botetourt, VA"]
["Brunswick, VA",51025,"Brunswick","VA","Brunswick, VA"]
["Buchanan, VA",51027,"Buchanan","VA","Buchanan, VA"]
["Buckingham, VA",51029,"Buckingham","VA","Buckingham, VA"]
["Campbell, VA",51031,"Campbell","VA","Campbell, VA"]
["Caroline, VA",51033,"Caroline","VA","Caroline, VA"]
["Carroll, VA",51035,"Carroll","VA","Carroll, VA"]
["Charles City, VA",51036,"Charles City","VA","Charles City, VA"]
["Charlotte, VA",51037,"Charlotte","VA","Charlotte, VA"]
["Chesterfield, VA",51041,"Chesterfield","VA","Chesterfield, VA"]
["Clarke, VA",51043,"Clarke","VA","Clarke, VA"]
["Craig, VA",51045,"Craig","VA","Craig, VA"]
["Culpeper, VA",51047,"Culpeper","VA","Culpeper, VA"]
["Cumberland, VA",51049,"Cumberland","VA","Cumberland, VA"]
["Dickenson, VA",51051,"Dickenson","VA","Dickenson, VA"]
["Dinwiddie, VA",51053,"Dinwiddie","VA","Dinwiddie, VA"]
["Essex, VA",51057,"Essex","VA","Essex, VA"]
["Fairfax, VA",51059,"Fairfax","VA","Fairfax, VA"]
["Fauquier, VA",51061,"Fauquier","VA","Fauquier, VA"]
["Floyd, VA",51063,"Floyd","VA","Floyd, VA"]
["Fluvanna, VA",51065,"Fluvanna","VA","Fluvanna, VA"]
["Franklin, VA",51067,"Franklin","VA","Franklin, VA"]
["Frederick, VA",51069,"Frederick","VA","Frederick, VA"]
["Giles, VA",51071,"Giles","VA","Giles, VA"]
["Gloucester, VA",51073,"Gloucester","VA","Gloucester, VA"]
["Goochland, VA",51075,"Goochland","VA","Goochland, VA"]
["Grayson, VA",51077,"Grayson","VA","Grayson, VA"]
["Greene, VA",51079,"Greene","VA","Greene, VA"]
["Greensville, VA",51081,"Greensville","VA","Greensville, VA"]
["Halifax, VA",51083,"Halifax","VA","Halifax, VA"]
["Hanover, VA",51085,"Hanover","VA","Hanover, VA"]
["Henrico, VA",51087,"Henrico","VA","Henrico, VA"]
["Henry, VA",51089,"Henry","VA","Henry, VA"]
["Highland, VA",51091,"Highland","VA","Highland, VA"]
["Isle of Wight, VA",51093,"Isle of Wight","VA","Isle of Wight, VA"]
["James City, VA",51095,"James City","VA","James City, VA"]
["King and Queen, VA",51097,"King and Queen","VA","King and Queen, VA"]
["King George, VA",51099,"King George","VA","King George, VA"]
["King William, VA",51101,"King William","VA","King William, VA"]
["Lancaster, VA",51103,"Lancaster","VA","Lancaster, VA"]
["Lee, VA",51105,"Lee","VA","Lee, VA"]
["Loudoun, VA",51107,"Loudoun","VA","Loudoun, VA"]
["Louisa, VA",51109,"Louisa","VA","Louisa, VA"]
["Lunenburg, VA",51111,"Lunenburg","VA","Lunenburg, VA"]
["Madison, VA",51113,"Madison","VA","Madison, VA"]
["Mathews, VA",51115,"Mathews","VA","Mathews, VA"]
["Mecklenburg, VA",51117,"Mecklenburg","VA","Mecklenburg, VA"]
["Middlesex, VA",51119,"Middlesex","VA","Middlesex, VA"]
["Montgomery, VA",51121,"Montgomery","VA","Montgomery, VA"]
["Nelson, VA",51125,"Nelson","VA","Nelson, VA"]
[{"$f":"E2883","v":"New Kent, VA"},51127,"New Kent","VA",{"$f":"C2883&\", \"&D2883","v":"New Kent, VA"}]
["Northampton, VA",51131,"Northampton","VA","Northampton, VA"]
["Northumberland, VA",51133,"Northumberland","VA","Northumberland, VA"]
["Nottoway, VA",51135,"Nottoway","VA","Nottoway, VA"]
["Orange, VA",51137,"Orange","VA","Orange, VA"]
["Page, VA",51139,"Page","VA","Page, VA"]
["Patrick, VA",51141,"Patrick","VA","Patrick, VA"]
["Pittsylvania, VA",51143,"Pittsylvania","VA","Pittsylvania, VA"]
["Powhatan, VA",51145,"Powhatan","VA","Powhatan, VA"]
["Prince Edward, VA",51147,"Prince Edward","VA","Prince Edward, VA"]
["Prince George, VA",51149,"Prince George","VA","Prince George, VA"]
["Prince William, VA",51153,"Prince William","VA","Prince William, VA"]
["Pulaski, VA",51155,"Pulaski","VA","Pulaski, VA"]
["Rappahannock, VA",51157,"Rappahannock","VA","Rappahannock, VA"]
["Richmond, VA",51159,"Richmond","VA","Richmond, VA"]
["Roanoke, VA",51161,"Roanoke","VA","Roanoke, VA"]
["Rockbridge, VA",51163,"Rockbridge","VA","Rockbridge, VA"]
["Rockingham, VA",51165,"Rockingham","VA","Rockingham, VA"]
["Russell, VA",51167,"Russell","VA","Russell, VA"]
["Scott, VA",51169,"Scott","VA","Scott, VA"]
["Shenandoah, VA",51171,"Shenandoah","VA","Shenandoah, VA"]
["Smyth, VA",51173,"Smyth","VA","Smyth, VA"]
["Southampton, VA",51175,"Southampton","VA","Southampton, VA"]
["Spotsylvania, VA",51177,"Spotsylvania","VA","Spotsylvania, VA"]
["Stafford, VA",51179,"Stafford","VA","Stafford, VA"]
["Surry, VA",51181,"Surry","VA","Surry, VA"]
["Sussex, VA",51183,"Sussex","VA","Sussex, VA"]
["Tazewell, VA",51185,"Tazewell","VA","Tazewell, VA"]
["Warren, VA",51187,"Warren","VA","Warren, VA"]
["Washington, VA",51191,"Washington","VA","Washington, VA"]
["Westmoreland, VA",51193,"Westmoreland","VA","Westmoreland, VA"]
["Wise, VA",51195,"Wise","VA","Wise, VA"]
["Wythe, VA",51197,"Wythe","VA","Wythe, VA"]
["York, VA",51199,"York","VA","York, VA"]
["Alexandria, VA",51510,"Alexandria","VA","Alexandria, VA"]
["Bristol, VA",51520,"Bristol","VA","Bristol, VA"]
["Buena Vista, VA",51530,"Buena Vista","VA","Buena Vista, VA"]
["Charlottesville, VA",51540,"Charlottesville","VA","Charlottesville, VA"]
["Chesapeake, VA",51550,"Chesapeake","VA","Chesapeake, VA"]
["Colonial Heights, VA",51570,"Colonial Heights","VA","Colonial Heights, VA"]
["Covington, VA",51580,"Covington","VA","Covington, VA"]
["Danville, VA",51590,"Danville","VA","Danville, VA"]
["Emporia, VA",51595,"Emporia","VA","Emporia, VA"]
["Fairfax, VA",51600,"Fairfax","VA","Fairfax, VA"]
["Falls Church, VA",51610,"Falls Church","VA","Falls Church, VA"]
["Franklin, VA",51620,"Franklin","VA","Franklin, VA"]
["Fredericksburg, VA",51630,"Fredericksburg","VA","Fredericksburg, VA"]
["Galax, VA",51640,"Galax","VA","Galax, VA"]
["Hampton, VA",51650,"Hampton","VA","Hampton, VA"]
["Harrisonburg, VA",51660,"Harrisonburg","VA","Harrisonburg, VA"]
["Hopewell, VA",51670,"Hopewell","VA","Hopewell, VA"]
["Lexington, VA",51678,"Lexington","VA","Lexington, VA"]
["Lynchburg, VA",51680,"Lynchburg","VA","Lynchburg, VA"]
["Manassas, VA",51683,"Manassas","VA","Manassas, VA"]
["Manassas Park, VA",51685,"Manassas Park","VA","Manassas Park, VA"]
["Martinsville, VA",51690,"Martinsville","VA","Martinsville, VA"]
["Newport News, VA",51700,"Newport News","VA","Newport News, VA"]
["Norfolk, VA",51710,"Norfolk","VA","Norfolk, VA"]
["Norton, VA",51720,"Norton","VA","Norton, VA"]
["Petersburg, VA",51730,"Petersburg","VA","Petersburg, VA"]
["Poquoson, VA",51735,"Poquoson","VA","Poquoson, VA"]
["Portsmouth, VA",51740,"Portsmouth","VA","Portsmouth, VA"]
["Radford, VA",51750,"Radford","VA","Radford, VA"]
["Richmond, VA",51760,"Richmond","VA","Richmond, VA"]
[{"$f":"E2947","v":"Roanoke, VA"},51770,"Roanoke","VA",{"$f":"C2947&\", \"&D2947","v":"Roanoke, VA"}]
["Salem, VA",51775,"Salem","VA","Salem, VA"]
["Staunton, VA",51790,"Staunton","VA","Staunton, VA"]
["Suffolk, VA",51800,"Suffolk","VA","Suffolk, VA"]
["Virginia Beach, VA",51810,"Virginia Beach","VA","Virginia Beach, VA"]
["Waynesboro, VA",51820,"Waynesboro","VA","Waynesboro, VA"]
["Williamsburg, VA",51830,"Williamsburg","VA","Williamsburg, VA"]
["Winchester, VA",51840,"Winchester","VA","Winchester, VA"]
["Adams, WA",53001,"Adams","WA","Adams, WA"]
["Asotin, WA",53003,"Asotin","WA","Asotin, WA"]
["Benton, WA",53005,"Benton","WA","Benton, WA"]
["Chelan, WA",53007,"Chelan","WA","Chelan, WA"]
["Clallam, WA",53009,"Clallam","WA","Clallam, WA"]
["Clark, WA",53011,"Clark","WA","Clark, WA"]
["Columbia, WA",53013,"Columbia","WA","Columbia, WA"]
["Cowlitz, WA",53015,"Cowlitz","WA","Cowlitz, WA"]
["Douglas, WA",53017,"Douglas","WA","Douglas, WA"]
["Ferry, WA",53019,"Ferry","WA","Ferry, WA"]
["Franklin, WA",53021,"Franklin","WA","Franklin, WA"]
["Garfield, WA",53023,"Garfield","WA","Garfield, WA"]
["Grant, WA",53025,"Grant","WA","Grant, WA"]
["Grays Harbor, WA",53027,"Grays Harbor","WA","Grays Harbor, WA"]
["Island, WA",53029,"Island","WA","Island, WA"]
["Jefferson, WA",53031,"Jefferson","WA","Jefferson, WA"]
["King, WA",53033,"King","WA","King, WA"]
["Kitsap, WA",53035,"Kitsap","WA","Kitsap, WA"]
["Kittitas, WA",53037,"Kittitas","WA","Kittitas, WA"]
["Klickitat, WA",53039,"Klickitat","WA","Klickitat, WA"]
["Lewis, WA",53041,"Lewis","WA","Lewis, WA"]
["Lincoln, WA",53043,"Lincoln","WA","Lincoln, WA"]
["Mason, WA",53045,"Mason","WA","Mason, WA"]
["Okanogan, WA",53047,"Okanogan","WA","Okanogan, WA"]
["Pacific, WA",53049,"Pacific","WA","Pacific, WA"]
["Pend Oreille, WA",53051,"Pend Oreille","WA","Pend Oreille, WA"]
["Pierce, WA",53053,"Pierce","WA","Pierce, WA"]
["San Juan, WA",53055,"San Juan","WA","San Juan, WA"]
["Skagit, WA",53057,"Skagit","WA","Skagit, WA"]
["Skamania, WA",53059,"Skamania","WA","Skamania, WA"]
["Snohomish, WA",53061,"Snohomish","WA","Snohomish, WA"]
["Spokane, WA",53063,"Spokane","WA","Spokane, WA"]
["Stevens, WA",53065,"Stevens","WA","Stevens, WA"]
["Thurston, WA",53067,"Thurston","WA","Thurston, WA"]
["Wahkiakum, WA",53069,"Wahkiakum","WA","Wahkiakum, WA"]
["Walla Walla, WA",53071,"Walla Walla","WA","Walla Walla, WA"]
["Whatcom, WA",53073,"Whatcom","WA","Whatcom, WA"]
["Whitman, WA",53075,"Whitman","WA","Whitman, WA"]
["Yakima, WA",53077,"Yakima","WA","Yakima, WA"]
["Barbour, WV",54001,"Barbour","WV","Barbour, WV"]
["Berkeley, WV",54003,"Berkeley","WV","Berkeley, WV"]
["Boone, WV",54005,"Boone","WV","Boone, WV"]
["Braxton, WV",54007,"Braxton","WV","Braxton, WV"]
["Brooke, WV",54009,"Brooke","WV","Brooke, WV"]
["Cabell, WV",54011,"Cabell","WV","Cabell, WV"]
["Calhoun, WV",54013,"Calhoun","WV","Calhoun, WV"]
["Clay, WV",54015,"Clay","WV","Clay, WV"]
["Doddridge, WV",54017,"Doddridge","WV","Doddridge, WV"]
["Fayette, WV",54019,"Fayette","WV","Fayette, WV"]
["Gilmer, WV",54021,"Gilmer","WV","Gilmer, WV"]
["Grant, WV",54023,"Grant","WV","Grant, WV"]
["Greenbrier, WV",54025,"Greenbrier","WV","Greenbrier, WV"]
["Hampshire, WV",54027,"Hampshire","WV","Hampshire, WV"]
["Hancock, WV",54029,"Hancock","WV","Hancock, WV"]
["Hardy, WV",54031,"Hardy","WV","Hardy, WV"]
["Harrison, WV",54033,"Harrison","WV","Harrison, WV"]
[{"$f":"E3011","v":"Jackson, WV"},54035,"Jackson","WV",{"$f":"C3011&\", \"&D3011","v":"Jackson, WV"}]
["Jefferson, WV",54037,"Jefferson","WV","Jefferson, WV"]
["Kanawha, WV",54039,"Kanawha","WV","Kanawha, WV"]
["Lewis, WV",54041,"Lewis","WV","Lewis, WV"]
["Lincoln, WV",54043,"Lincoln","WV","Lincoln, WV"]
["Logan, WV",54045,"Logan","WV","Logan, WV"]
["McDowell, WV",54047,"McDowell","WV","McDowell, WV"]
["Marion, WV",54049,"Marion","WV","Marion, WV"]
["Marshall, WV",54051,"Marshall","WV","Marshall, WV"]
["Mason, WV",54053,"Mason","WV","Mason, WV"]
["Mercer, WV",54055,"Mercer","WV","Mercer, WV"]
["Mineral, WV",54057,"Mineral","WV","Mineral, WV"]
["Mingo, WV",54059,"Mingo","WV","Mingo, WV"]
["Monongalia, WV",54061,"Monongalia","WV","Monongalia, WV"]
["Monroe, WV",54063,"Monroe","WV","Monroe, WV"]
["Morgan, WV",54065,"Morgan","WV","Morgan, WV"]
["Nicholas, WV",54067,"Nicholas","WV","Nicholas, WV"]
["Ohio, WV",54069,"Ohio","WV","Ohio, WV"]
["Pendleton, WV",54071,"Pendleton","WV","Pendleton, WV"]
["Pleasants, WV",54073,"Pleasants","WV","Pleasants, WV"]
["Pocahontas, WV",54075,"Pocahontas","WV","Pocahontas, WV"]
["Preston, WV",54077,"Preston","WV","Preston, WV"]
["Putnam, WV",54079,"Putnam","WV","Putnam, WV"]
["Raleigh, WV",54081,"Raleigh","WV","Raleigh, WV"]
["Randolph, WV",54083,"Randolph","WV","Randolph, WV"]
["Ritchie, WV",54085,"Ritchie","WV","Ritchie, WV"]
["Roane, WV",54087,"Roane","WV","Roane, WV"]
["Summers, WV",54089,"Summers","WV","Summers, WV"]
["Taylor, WV",54091,"Taylor","WV","Taylor, WV"]
["Tucker, WV",54093,"Tucker","WV","Tucker, WV"]
["Tyler, WV",54095,"Tyler","WV","Tyler, WV"]
["Upshur, WV",54097,"Upshur","WV","Upshur, WV"]
["Wayne, WV",54099,"Wayne","WV","Wayne, WV"]
["Webster, WV",54101,"Webster","WV","Webster, WV"]
["Wetzel, WV",54103,"Wetzel","WV","Wetzel, WV"]
["Wirt, WV",54105,"Wirt","WV","Wirt, WV"]
["Wood, WV",54107,"Wood","WV","Wood, WV"]
["Wyoming, WV",54109,"Wyoming","WV","Wyoming, WV"]
["Adams, WI",55001,"Adams","WI","Adams, WI"]
["Ashland, WI",55003,"Ashland","WI","Ashland, WI"]
["Barron, WI",55005,"Barron","WI","Barron, WI"]
["Bayfield, WI",55007,"Bayfield","WI","Bayfield, WI"]
["Brown, WI",55009,"Brown","WI","Brown, WI"]
["Buffalo, WI",55011,"Buffalo","WI","Buffalo, WI"]
["Burnett, WI",55013,"Burnett","WI","Burnett, WI"]
["Calumet, WI",55015,"Calumet","WI","Calumet, WI"]
["Chippewa, WI",55017,"Chippewa","WI","Chippewa, WI"]
["Clark, WI",55019,"Clark","WI","Clark, WI"]
["Columbia, WI",55021,"Columbia","WI","Columbia, WI"]
["Crawford, WI",55023,"Crawford","WI","Crawford, WI"]
["Dane, WI",55025,"Dane","WI","Dane, WI"]
["Dodge, WI",55027,"Dodge","WI","Dodge, WI"]
["Door, WI",55029,"Door","WI","Door, WI"]
["Douglas, WI",55031,"Douglas","WI","Douglas, WI"]
["Dunn, WI",55033,"Dunn","WI","Dunn, WI"]
["Eau Claire, WI",55035,"Eau Claire","WI","Eau Claire, WI"]
["Florence, WI",55037,"Florence","WI","Florence, WI"]
["Fond du Lac, WI",55039,"Fond du Lac","WI","Fond du Lac, WI"]
["Forest, WI",55041,"Forest","WI","Forest, WI"]
["Grant, WI",55043,"Grant","WI","Grant, WI"]
["Green, WI",55045,"Green","WI","Green, WI"]
["Green Lake, WI",55047,"Green Lake","WI","Green Lake, WI"]
["Iowa, WI",55049,"Iowa","WI","Iowa, WI"]
["Iron, WI",55051,"Iron","WI","Iron, WI"]
[{"$f":"E3075","v":"Jackson, WI"},55053,"Jackson","WI",{"$f":"C3075&\", \"&D3075","v":"Jackson, WI"}]
["Jefferson, WI",55055,"Jefferson","WI","Jefferson, WI"]
["Juneau, WI",55057,"Juneau","WI","Juneau, WI"]
["Kenosha, WI",55059,"Kenosha","WI","Kenosha, WI"]
["Kewaunee, WI",55061,"Kewaunee","WI","Kewaunee, WI"]
["La Crosse, WI",55063,"La Crosse","WI","La Crosse, WI"]
["Lafayette, WI",55065,"Lafayette","WI","Lafayette, WI"]
["Langlade, WI",55067,"Langlade","WI","Langlade, WI"]
["Lincoln, WI",55069,"Lincoln","WI","Lincoln, WI"]
["Manitowoc, WI",55071,"Manitowoc","WI","Manitowoc, WI"]
["Marathon, WI",55073,"Marathon","WI","Marathon, WI"]
["Marinette, WI",55075,"Marinette","WI","Marinette, WI"]
["Marquette, WI",55077,"Marquette","WI","Marquette, WI"]
["Menominee, WI",55078,"Menominee","WI","Menominee, WI"]
["Milwaukee, WI",55079,"Milwaukee","WI","Milwaukee, WI"]
["Monroe, WI",55081,"Monroe","WI","Monroe, WI"]
["Oconto, WI",55083,"Oconto","WI","Oconto, WI"]
["Oneida, WI",55085,"Oneida","WI","Oneida, WI"]
["Outagamie, WI",55087,"Outagamie","WI","Outagamie, WI"]
["Ozaukee, WI",55089,"Ozaukee","WI","Ozaukee, WI"]
["Pepin, WI",55091,"Pepin","WI","Pepin, WI"]
["Pierce, WI",55093,"Pierce","WI","Pierce, WI"]
["Polk, WI",55095,"Polk","WI","Polk, WI"]
["Portage, WI",55097,"Portage","WI","Portage, WI"]
["Price, WI",55099,"Price","WI","Price, WI"]
["Racine, WI",55101,"Racine","WI","Racine, WI"]
["Richland, WI",55103,"Richland","WI","Richland, WI"]
["Rock, WI",55105,"Rock","WI","Rock, WI"]
["Rusk, WI",55107,"Rusk","WI","Rusk, WI"]
["St. Croix, WI",55109,"St. Croix","WI","St. Croix, WI"]
["Sauk, WI",55111,"Sauk","WI","Sauk, WI"]
["Sawyer, WI",55113,"Sawyer","WI","Sawyer, WI"]
["Shawano, WI",55115,"Shawano","WI","Shawano, WI"]
["Sheboygan, WI",55117,"Sheboygan","WI","Sheboygan, WI"]
["Taylor, WI",55119,"Taylor","WI","Taylor, WI"]
["Trempealeau, WI",55121,"Trempealeau","WI","Trempealeau, WI"]
["Vernon, WI",55123,"Vernon","WI","Vernon, WI"]
["Vilas, WI",55125,"Vilas","WI","Vilas, WI"]
["Walworth, WI",55127,"Walworth","WI","Walworth, WI"]
["Washburn, WI",55129,"Washburn","WI","Washburn, WI"]
["Washington, WI",55131,"Washington","WI","Washington, WI"]
["Waukesha, WI",55133,"Waukesha","WI","Waukesha, WI"]
["Waupaca, WI",55135,"Waupaca","WI","Waupaca, WI"]
["Waushara, WI",55137,"Waushara","WI","Waushara, WI"]
["Winnebago, WI",55139,"Winnebago","WI","Winnebago, WI"]
["Wood, WI",55141,"Wood","WI","Wood, WI"]
["Albany, WY",56001,"Albany","WY","Albany, WY"]
["Big Horn, WY",56003,"Big Horn","WY","Big Horn, WY"]
["Campbell, WY",56005,"Campbell","WY","Campbell, WY"]
["Carbon, WY",56007,"Carbon","WY","Carbon, WY"]
["Converse, WY",56009,"Converse","WY","Converse, WY"]
["Crook, WY",56011,"Crook","WY","Crook, WY"]
["Fremont, WY",56013,"Fremont","WY","Fremont, WY"]
["Goshen, WY",56015,"Goshen","WY","Goshen, WY"]
["Hot Springs, WY",56017,"Hot Springs","WY","Hot Springs, WY"]
["Johnson, WY",56019,"Johnson","WY","Johnson, WY"]
["Laramie, WY",56021,"Laramie","WY","Laramie, WY"]
["Lincoln, WY",56023,"Lincoln","WY","Lincoln, WY"]
["Natrona, WY",56025,"Natrona","WY","Natrona, WY"]
["Niobrara, WY",56027,"Niobrara","WY","Niobrara, WY"]
["Park, WY",56029,"Park","WY","Park, WY"]
["Platte, WY",56031,"Platte","WY","Platte, WY"]
["Sheridan, WY",56033,"Sheridan","WY","Sheridan, WY"]
["Sublette, WY",56035,"Sublette","WY","Sublette, WY"]
[{"$f":"E3139","v":"Sweetwater, WY"},56037,"Sweetwater","WY",{"$f":"C3139&\", \"&D3139","v":"Sweetwater, WY"}]
["Teton, WY",56039,"Teton","WY","Teton, WY"]
["Uinta, WY",56041,"Uinta","WY","Uinta, WY"]
["Washakie, WY",56043,"Washakie","WY","Washakie, WY"]
["Weston, WY",56045,"Weston","WY","Weston, WY"]
["Eastern, AS",60010,"Eastern","AS","Eastern, AS"]
["Manu'a, AS",60020,"Manu'a","AS","Manu'a, AS"]
["Rose Island, AS",60030,"Rose Island","AS","Rose Island, AS"]
["Swains Island, AS",60040,"Swains Island","AS","Swains Island, AS"]
["Western, AS",60050,"Western","AS","Western, AS"]
["Guam, GU",66010,"Guam","GU","Guam, GU"]
["Northern Islands, MP",69085,"Northern Islands","MP","Northern Islands, MP"]
["Rota, MP",69100,"Rota","MP","Rota, MP"]
["Saipan, MP",69110,"Saipan","MP","Saipan, MP"]
["Tinian, MP",69120,"Tinian","MP","Tinian, MP"]
["Adjuntas, PR",72001,"Adjuntas","PR","Adjuntas, PR"]
["Aguada, PR",72003,"Aguada","PR","Aguada, PR"]
["Aguadilla, PR",72005,"Aguadilla","PR","Aguadilla, PR"]
["Aguas Buenas, PR",72007,"Aguas Buenas","PR","Aguas Buenas, PR"]
["Aibonito, PR",72009,"Aibonito","PR","Aibonito, PR"]
["Añasco, PR",72011,"Añasco","PR","Añasco, PR"]
["Arecibo, PR",72013,"Arecibo","PR","Arecibo, PR"]
["Arroyo, PR",72015,"Arroyo","PR","Arroyo, PR"]
["Barceloneta, PR",72017,"Barceloneta","PR","Barceloneta, PR"]
["Barranquitas, PR",72019,"Barranquitas","PR","Barranquitas, PR"]
["Bayamón, PR",72021,"Bayamón","PR","Bayamón, PR"]
["Cabo Rojo, PR",72023,"Cabo Rojo","PR","Cabo Rojo, PR"]
["Caguas, PR",72025,"Caguas","PR","Caguas, PR"]
["Camuy, PR",72027,"Camuy","PR","Camuy, PR"]
["Canóvanas, PR",72029,"Canóvanas","PR","Canóvanas, PR"]
["Carolina, PR",72031,"Carolina","PR","Carolina, PR"]
["Cataño, PR",72033,"Cataño","PR","Cataño, PR"]
["Cayey, PR",72035,"Cayey","PR","Cayey, PR"]
["Ceiba, PR",72037,"Ceiba","PR","Ceiba, PR"]
["Ciales, PR",72039,"Ciales","PR","Ciales, PR"]
["Cidra, PR",72041,"Cidra","PR","Cidra, PR"]
["Coamo, PR",72043,"Coamo","PR","Coamo, PR"]
["Comerío, PR",72045,"Comerío","PR","Comerío, PR"]
["Corozal, PR",72047,"Corozal","PR","Corozal, PR"]
["Culebra, PR",72049,"Culebra","PR","Culebra, PR"]
["Dorado, PR",72051,"Dorado","PR","Dorado, PR"]
["Fajardo, PR",72053,"Fajardo","PR","Fajardo, PR"]
["Florida, PR",72054,"Florida","PR","Florida, PR"]
["Guánica, PR",72055,"Guánica","PR","Guánica, PR"]
["Guayama, PR",72057,"Guayama","PR","Guayama, PR"]
["Guayanilla, PR",72059,"Guayanilla","PR","Guayanilla, PR"]
["Guaynabo, PR",72061,"Guaynabo","PR","Guaynabo, PR"]
["Gurabo, PR",72063,"Gurabo","PR","Gurabo, PR"]
["Hatillo, PR",72065,"Hatillo","PR","Hatillo, PR"]
["Hormigueros, PR",72067,"Hormigueros","PR","Hormigueros, PR"]
["Humacao, PR",72069,"Humacao","PR","Humacao, PR"]
["Isabela, PR",72071,"Isabela","PR","Isabela, PR"]
["Jayuya, PR",72073,"Jayuya","PR","Jayuya, PR"]
["Juana Díaz, PR",72075,"Juana Díaz","PR","Juana Díaz, PR"]
["Juncos, PR",72077,"Juncos","PR","Juncos, PR"]
["Lajas, PR",72079,"Lajas","PR","Lajas, PR"]
["Lares, PR",72081,"Lares","PR","Lares, PR"]
["Las Marías, PR",72083,"Las Marías","PR","Las Marías, PR"]
["Las Piedras, PR",72085,"Las Piedras","PR","Las Piedras, PR"]
["Loíza, PR",72087,"Loíza","PR","Loíza, PR"]
["Luquillo, PR",72089,"Luquillo","PR","Luquillo, PR"]
["Manatí, PR",72091,"Manatí","PR","Manatí, PR"]
["Maricao, PR",72093,"Maricao","PR","Maricao, PR"]
["Maunabo, PR",72095,"Maunabo","PR","Maunabo, PR"]
[{"$f":"E3203","v":"Mayagüez, PR"},72097,"Mayagüez","PR",{"$f":"C3203&\", \"&D3203","v":"Mayagüez, PR"}]
["Moca, PR",72099,"Moca","PR","Moca, PR"]
["Morovis, PR",72101,"Morovis","PR","Morovis, PR"]
["Naguabo, PR",72103,"Naguabo","PR","Naguabo, PR"]
["Naranjito, PR",72105,"Naranjito","PR","Naranjito, PR"]
["Orocovis, PR",72107,"Orocovis","PR","Orocovis, PR"]
["Patillas, PR",72109,"Patillas","PR","Patillas, PR"]
["Peñuelas, PR",72111,"Peñuelas","PR","Peñuelas, PR"]
["Ponce, PR",72113,"Ponce","PR","Ponce, PR"]
["Quebradillas, PR",72115,"Quebradillas","PR","Quebradillas, PR"]
["Rincón, PR",72117,"Rincón","PR","Rincón, PR"]
["Río Grande, PR",72119,"Río Grande","PR","Río Grande, PR"]
["Sabana Grande, PR",72121,"Sabana Grande","PR","Sabana Grande, PR"]
["Salinas, PR",72123,"Salinas","PR","Salinas, PR"]
["San Germán, PR",72125,"San Germán","PR","San Germán, PR"]
["San Juan, PR",72127,"San Juan","PR","San Juan, PR"]
["San Lorenzo, PR",72129,"San Lorenzo","PR","San Lorenzo, PR"]
["San Sebastián, PR",72131,"San Sebastián","PR","San Sebastián, PR"]
["Santa Isabel, PR",72133,"Santa Isabel","PR","Santa Isabel, PR"]
["Toa Alta, PR",72135,"Toa Alta","PR","Toa Alta, PR"]
["Toa Baja, PR",72137,"Toa Baja","PR","Toa Baja, PR"]
["Trujillo Alto, PR",72139,"Trujillo Alto","PR","Trujillo Alto, PR"]
["Utuado, PR",72141,"Utuado","PR","Utuado, PR"]
["Vega Alta, PR",72143,"Vega Alta","PR","Vega Alta, PR"]
["Vega Baja, PR",72145,"Vega Baja","PR","Vega Baja, PR"]
["Vieques, PR",72147,"Vieques","PR","Vieques, PR"]
["Villalba, PR",72149,"Villalba","PR","Villalba, PR"]
["Yabucoa, PR",72151,"Yabucoa","PR","Yabucoa, PR"]
["Yauco, PR",72153,"Yauco","PR","Yauco, PR"]
["St. Croix, VI",78010,"St. Croix","VI","St. Croix, VI"]
["St. John, VI",78020,"St. John","VI","St. John, VI"]
["St. Thomas, VI",78030,"St. Thomas","VI","St. Thomas, VI"]

{"sheet":"InternalUseOnly_FeedbackFormula","index":4,"n_rows":8,"n_cols":3,"rows_kept":8,"cut":false,"hidden":true,"merged":[]}
["Sheet","Excel Column","Formula"]
["Wells","FIPS County Identifier","=VLOOKUP($E2,InternalUseOnly_Feedbacks!$A$2:$E$3234,2,FALSE)"]
["Wells","Basin ID GHGRP AAPG","=VLOOKUP($T2,InternalUseOnly_Feedbacks!$G$2:$I$113,2,FALSE)"]
["Wellpad_TankFlash","Tank Flash Properties Data Source","=VLOOKUP($B2,Wells!$A:$AV,MATCH(E$1,Wells!$1:$1,0),FALSE)"]
["Wellpad_Pneumatics","Pneumatic Controller Activity Factor Data Source","=VLOOKUP($B2,Wells!$A:$AV,MATCH(D$1,Wells!$1:$1,0),FALSE)"]
["Wellpad_Pneumatics","Pneumatic Controller Emission Factor Data Source","=VLOOKUP($B2,Wells!$A:$AV,MATCH(E$1,Wells!$1:$1,0),FALSE)"]
["Wellpad_ChemicalInjectionPump","Chemical Injection Pump Activity Factor Data Source","=VLOOKUP($B2,Wells!$A:$AV,MATCH(D$1,Wells!$1:$1,0),FALSE)"]
["Wellpad_ChemicalInjectionPump","Chemical Injection Pump Emission Factor Data Source","=VLOOKUP($B2,Wells!$A:$AV,MATCH(E$1,Wells!$1:$1,0),FALSE)"]

{"sheet":"InternalUseOnly_CondFormat","index":5,"n_rows":202,"n_cols":20,"rows_kept":202,"cut":false,"hidden":true,"merged":[]}
["Sheet","Excel Column","Depends","op","value","result",null,null,"c_tgt_manual_excemple","c_src_manual_example","c_tgt","c_src","op","val","result"]
["Facility_List","Leak Survey Method","Leak Emission Data Source","=","U.S. EPA Greenhouse Gas Reporting Program (GHGRP)","mandatory",null,null,null,null,{"$f":"MATCH($B2,INDIRECT(\"'\"&$A2&\"'!$1:$1\"),0)","v":7},{"$f":"MATCH($C2,INDIRECT(\"'\"&$A2&\"'!$1:$1\"),0)","v":6},{"$f":"D2","v":"="},{"$f":"E2","v":"U.S. EPA Greenhouse Gas Reporting Program (GHGRP)"},{"$f":"F2","v":"mandatory"}]
[null,null,null,null,null,null,null,null,null,null,{"$error":"#REF!"},{"$error":"#REF!"},{"$f":"D3","v":0},0,0]
["Facility_List","Filename for User Specified Leaks","Leak Emission Data Source","=","User specified","mandatory",null,null,null,null,8,6,{"$f":"D4","v":"="},"User specified","mandatory"]
[null,null,null,null,null,null,null,null,null,null,{"$error":"#REF!"},{"$error":"#REF!"},{"$f":"D5","v":0},0,0]
["Composition","Condensate (or OIL) formation","Composition Data Source","=","thermodynamics","mandatory",null,null,{"$f":"MATCH($B6,Composition!$1:$1,0)","v":3},{"$f":"MATCH($C6,Composition!$1:$1,0)","v":2},3,2,{"$f":"D6","v":"="},{"$f":"E6","v":"thermodynamics"},"mandatory",null,"How to use:"]
["Composition","Number of Separator Stages","Composition Data Source","=","thermodynamics","mandatory",null,null,null,null,4,2,{"$f":"D7","v":"="},{"$f":"E7","v":"thermodynamics"},{"$f":"F7","v":"mandatory"},null,null,"Fill Columns A:F"]
["Composition","API Gravity","Composition Data Source","=","thermodynamics","mandatory",null,null,null,null,5,2,"=","thermodynamics","mandatory",null,null,null,"rule 1","All rules for one sheet should be define next each other,"]
["Composition","Gas to Oil Ratio [scf/bbl]","Composition Data Source","=","thermodynamics","mandatory",null,null,null,null,6,2,"=","thermodynamics","mandatory",null,null,null,null," i.e. don’t go somewhere and come back"]
["Composition","Temperature [F]","Composition Data Source","=","thermodynamics","mandatory",null,null,null,null,7,2,"=","thermodynamics","mandatory",null,null,null,"rule 2","One block shoud list contiguous set of columns"]
["Composition","1st Stage Pressure [psia]","Composition Data Source","=","thermodynamics","mandatory",null,null,null,null,8,2,"=","thermodynamics","mandatory",null,null,null,null,"i.e., if you have to skip columns for a given rule, create two rules"]
["Composition","2nd Stage Pressure [psia]","Composition Data Source","=","thermodynamics","mandatory",null,null,null,null,9,2,"=","thermodynamics","mandatory",null,null,null,"rule 3","columns D:F has to be identical within a block"]
[null,null,null,null,null,null,null,null,null,null,{"$error":"#REF!"},{"$error":"#REF!"},0,0,0,null,null,null,"rule 4","Rules are enforced by the rules below are overwrite the one above"]
["Composition","Condensate (or OIL) formation","Composition Data Source","<>","thermodynamics","disabled",null,null,null,null,3,2,"<>","thermodynamics","disabled",null,null,null,null,"So generic rule near the top, and then specific rules to be come near the end to overwrite"]
["Composition","Number of Separator Stages","Composition Data Source","<>","thermodynamics","disabled",null,null,null,null,4,2,"<>","thermodynamics","disabled"]
["Composition","API Gravity","Composition Data Source","<>","thermodynamics","disabled",null,null,null,null,5,2,"<>","thermodynamics","disabled",null,null,null,"pretty strict rule and high redundancy, but I preferred being explicit instead of getting cryptic"]
["Composition","Gas to Oil Ratio [scf/bbl]","Composition Data Source","<>","thermodynamics","disabled",null,null,null,null,6,2,"<>","thermodynamics","disabled"]
["Composition","Temperature [F]","Composition Data Source","<>","thermodynamics","disabled",null,null,null,null,7,2,"<>","thermodynamics","disabled",null,null,"Extend columns K:L to one row passed to the end of entries in A:F"]
["Composition","1st Stage Pressure [psia]","Composition Data Source","<>","thermodynamics","disabled",null,null,null,null,8,2,"<>","thermodynamics","disabled",null,null,null,"Caveate:","columnk K:L has =INDIRECT() function which may make excel file to be slow "]
["Composition","2nd Stage Pressure [psia]","Composition Data Source","<>","thermodynamics","disabled",null,null,null,null,9,2,"<>","thermodynamics","disabled",null,null,null,null,"if that happens, replace columns K:L with formala in I:J, but"]
[null,null,null,null,null,null,null,null,null,null,{"$error":"#REF!"},{"$error":"#REF!"},0,0,0,null,null,null,null,"each row you have to manually copy the name of sheet from columnA…"]
["Composition","Ethane [molar fraction]","Composition Data Source","=","thermodynamics","optional",null,null,null,null,11,2,"=","thermodynamics","optional",null,null,"Run macro set_cond_format"]
["Composition","Propane [molar fraction]","Composition Data Source","=","thermodynamics","optional",null,null,null,null,12,2,"=","thermodynamics","optional"]
[null,null,null,null,null,null,null,null,null,null,{"$error":"#REF!"},{"$error":"#REF!"},0,0,0]
["Composition","Butane [molar fraction]","Composition Data Source","=","thermodynamics","disabled",null,null,null,null,13,2,"=","thermodynamics","disabled"]
["Composition","Isobutane [molar fraction]","Composition Data Source","=","thermodynamics","disabled",null,null,null,null,14,2,"=","thermodynamics","disabled"]
["Composition","Pentane [molar fraction]","Composition Data Source","=","thermodynamics","disabled",null,null,null,null,15,2,"=","thermodynamics","disabled"]
["Composition","Isopentane [molar fraction]","Composition Data Source","=","thermodynamics","disabled",null,null,null,null,16,2,"=","thermodynamics","disabled"]
["Composition","Hexanes [molar fraction]","Composition Data Source","=","thermodynamics","disabled",null,null,null,null,17,2,"=","thermodynamics","disabled"]
["Composition","CO2 [molar fraction]","Composition Data Source","=","thermodynamics","disabled",null,null,null,null,18,2,"=","thermodynamics","disabled"]
["Composition","N2 [molar fraction]","Composition Data Source","=","thermodynamics","disabled",null,null,null,null,19,2,"=","thermodynamics","disabled"]
["Composition","H2S [molar fraction]","Composition Data Source","=","thermodynamics","disabled",null,null,null,null,20,2,"=","thermodynamics","disabled"]
[null,null,null,null,null,null,null,null,null,null,{"$error":"#REF!"},{"$error":"#REF!"},0,0,0]
["Composition","Ethane [molar fraction]","Composition Data Source","=","Cardoso 2019 correlation","disabled",null,null,null,null,11,2,"=","Cardoso 2019 correlation","disabled"]
["Composition","Propane [molar fraction]","Composition Data Source","=","Cardoso 2019 correlation","disabled",null,null,null,null,12,2,"=","Cardoso 2019 correlation","disabled"]
["Composition","Butane [molar fraction]","Composition Data Source","=","Cardoso 2019 correlation","disabled",null,null,null,null,13,2,"=","Cardoso 2019 correlation","disabled"]
["Composition","Isobutane [molar fraction]","Composition Data Source","=","Cardoso 2019 correlation","disabled",null,null,null,null,14,2,"=","Cardoso 2019 correlation","disabled"]
["Composition","Pentane [molar fraction]","Composition Data Source","=","Cardoso 2019 correlation","disabled",null,null,null,null,15,2,"=","Cardoso 2019 correlation","disabled"]
["Composition","Isopentane [molar fraction]","Composition Data Source","=","Cardoso 2019 correlation","disabled",null,null,null,null,16,2,"=","Cardoso 2019 correlation","disabled"]
["Composition","Hexanes [molar fraction]","Composition Data Source","=","Cardoso 2019 correlation","disabled",null,null,null,null,17,2,"=","Cardoso 2019 correlation","disabled"]
["Composition","CO2 [molar fraction]","Composition Data Source","=","Cardoso 2019 correlation","disabled",null,null,null,null,18,2,"=","Cardoso 2019 correlation","disabled"]
["Composition","N2 [molar fraction]","Composition Data Source","=","Cardoso 2019 correlation","disabled",null,null,null,null,19,2,"=","Cardoso 2019 correlation","disabled"]
["Composition","H2S [molar fraction]","Composition Data Source","=","Cardoso 2019 correlation","disabled",null,null,null,null,20,2,"=","Cardoso 2019 correlation","disabled"]
[null,null,null,null,null,null,null,null,null,null,{"$error":"#REF!"},{"$error":"#REF!"},0,0,0]
["Composition","Ethane [molar fraction]","Composition Data Source","=","user specified","mandatory",null,null,null,null,11,2,"=","user specified","mandatory"]
["Composition","Propane [molar fraction]","Composition Data Source","=","user specified","mandatory",null,null,null,null,12,2,"=","user specified","mandatory"]
["Composition","Butane [molar fraction]","Composition Data Source","=","user specified","mandatory",null,null,null,null,13,2,"=","user specified","mandatory"]
["Composition","Isobutane [molar fraction]","Composition Data Source","=","user specified","mandatory",null,null,null,null,14,2,"=","user specified","mandatory"]
["Composition","Pentane [molar fraction]","Composition Data Source","=","user specified","mandatory",null,null,null,null,15,2,"=","user specified","mandatory"]
["Composition","Isopentane [molar fraction]","Composition Data Source","=","user specified","mandatory",null,null,null,null,16,2,"=","user specified","mandatory"]
["Composition","Hexanes [molar fraction]","Composition Data Source","=","user specified","mandatory",null,null,null,null,17,2,"=","user specified","mandatory"]
["Composition","CO2 [molar fraction]","Composition Data Source","=","user specified","mandatory",null,null,null,null,18,2,"=","user specified","mandatory"]
["Composition","N2 [molar fraction]","Composition Data Source","=","user specified","mandatory",null,null,null,null,19,2,"=","user specified","mandatory"]
["Composition","H2S [molar fraction]","Composition Data Source","=","user specified","mandatory",null,null,null,null,20,2,"=","user specified","mandatory"]
[null,null,null,null,null,null,null,null,null,null,{"$error":"#REF!"},{"$error":"#REF!"},0,0,0]
["Composition","2nd Stage Pressure [psia]","Number of Separator Stages","=",1,"disabled",null,null,null,null,9,4,"=",1,"disabled"]
[null,null,null,null,null,null,null,null,null,null,{"$error":"#REF!"},{"$error":"#REF!"},0,0,0]
["Composition","API Gravity","Condensate (or OIL) formation","=","no","disabled",null,null,null,null,5,3,"=","no","disabled"]
["Composition","Gas to Oil Ratio [scf/bbl]","Condensate (or OIL) formation","=","no","disabled",null,null,null,null,6,3,"=","no","disabled"]
[null,null,null,null,null,null,null,null,null,null,{"$error":"#REF!"},{"$error":"#REF!"},0,0,0]
["Wells","Shale Play Name\nEIA NEMS","Decline Curve Data Source","=","None (fully specified)","disabled",null,null,null,null,{"$error":"#REF!"},{"$error":"#REF!"},"=","None (fully specified)","disabled"]
["Wells","Gas or Oil Well","Decline Curve Data Source","=","None (fully specified)","disabled",null,null,null,null,{"$error":"#REF!"},{"$error":"#REF!"},"=","None (fully specified)","disabled"]
["Wells","Gas Production at start of simulation [Mcf/day]","Decline Curve Data Source","=","None (fully specified)","disabled",null,null,null,null,{"$error":"#REF!"},{"$error":"#REF!"},"=","None (fully specified)","disabled"]
["Wells","Oil Production  at start of simulation [bbl/day]","Decline Curve Data Source","=","None (fully specified)","disabled",null,null,null,null,{"$error":"#REF!"},{"$error":"#REF!"},"=","None (fully specified)","disabled"]
["Wells","Water Production  at start of simulation [bbl/day]","Decline Curve Data Source","=","None (fully specified)","disabled",null,null,null,null,{"$error":"#REF!"},{"$error":"#REF!"},"=","None (fully specified)","disabled"]
[null,null,null,null,null,null,null,null,null,null,{"$f":"MATCH($B66,INDIRECT(\"'\"&$A66&\"'!$1:$1\"),0)","v":{"$error":"#REF!"}},{"$f":"MATCH($C66,INDIRECT(\"'\"&$A66&\"'!$1:$1\"),0)","v":{"$error":"#REF!"}},0,0,0]
["Wells","Gas or Oil Well","Unloading Activity Factor Data Source","=","U.S. EPA Greenhouse Gas Reporting Program (GHGRP)","mandatory",null,null,null,null,{"$error":"#REF!"},{"$error":"#REF!"},{"$f":"D67","v":"="},{"$f":"E67","v":"U.S. EPA Greenhouse Gas Reporting Program (GHGRP)"},{"$f":"F67","v":"mandatory"}]
[null,null,null,null,null,null,null,null,null,null,{"$error":"#REF!"},{"$error":"#REF!"},0,0,0]
["Wells","Gas or Oil Well","Pneumatic Controller Activity Factor Data Source","=","U.S. EPA Greenhouse Gas Reporting Program (GHGRP)","mandatory",null,null,null,null,{"$error":"#REF!"},{"$error":"#REF!"},"=","U.S. EPA Greenhouse Gas Reporting Program (GHGRP)","mandatory"]
[null,null,null,null,null,null,null,null,null,null,{"$error":"#REF!"},{"$error":"#REF!"},0,0,0]
["Wells","Gas or Oil Well","Chemical Injection Pump Activity Factor Data Source","=","U.S. EPA Greenhouse Gas Reporting Program (GHGRP)","mandatory",null,null,null,null,{"$error":"#REF!"},{"$error":"#REF!"},"=","U.S. EPA Greenhouse Gas Reporting Program (GHGRP)","mandatory"]
[null,null,null,null,null,null,null,null,null,null,{"$error":"#REF!"},{"$error":"#REF!"},0,0,0]
["Wells","Decline Qi oil [bbl/day]","Decline Curve Data Source","=","None (fully specified)","mandatory",null,null,null,null,{"$error":"#REF!"},{"$error":"#REF!"},"=","None (fully specified)","mandatory"]
["Wells","Decline Qi gas [Mcf/day]","Decline Curve Data Source","=","None (fully specified)","mandatory",null,null,null,null,{"$error":"#REF!"},{"$error":"#REF!"},"=","None (fully specified)","mandatory"]
["Wells","Decline Qi water [bbl/day]","Decline Curve Data Source","=","None (fully specified)","mandatory",null,null,null,null,{"$error":"#REF!"},{"$error":"#REF!"},"=","None (fully specified)","mandatory"]
["Wells","Decline Di [1/month]","Decline Curve Data Source","=","None (fully specified)","mandatory",null,null,null,null,{"$error":"#REF!"},{"$error":"#REF!"},"=","None (fully specified)","mandatory"]
["Wells","Decline b hyperbolic [dimensionless]","Decline Curve Data Source","=","None (fully specified)","mandatory",null,null,null,null,{"$error":"#REF!"},{"$error":"#REF!"},{"$f":"D77","v":"="},{"$f":"E77","v":"None (fully specified)"},{"$f":"F77","v":"mandatory"}]
[null,null,null,null,null,null,null,null,null,null,{"$error":"#REF!"},{"$error":"#REF!"},0,0,0]
["Wells","Shale Play Name\nEIA NEMS","Decline Curve Data Source","=","EIA National Energy Modeling Systems 2017","mandatory",null,null,null,null,{"$error":"#REF!"},{"$error":"#REF!"},"=","EIA National Energy Modeling Systems 2017","mandatory"]
["Wells","Gas or Oil Well","Decline Curve Data Source","=","EIA National Energy Modeling Systems 2017","mandatory",null,null,null,null,{"$error":"#REF!"},{"$error":"#REF!"},"=","EIA National Energy Modeling Systems 2017","mandatory"]
["Wells","Gas Production at start of simulation [Mcf/day]","Decline Curve Data Source","=","EIA National Energy Modeling Systems 2017","mandatory",null,null,null,null,{"$error":"#REF!"},{"$error":"#REF!"},"=","EIA National Energy Modeling Systems 2017","mandatory"]
["Wells","Oil Production  at start of simulation [bbl/day]","Decline Curve Data Source","=","EIA National Energy Modeling Systems 2017","mandatory",null,null,null,null,{"$error":"#REF!"},{"$error":"#REF!"},"=","EIA National Energy Modeling Systems 2017","mandatory"]
["Wells","Water Production  at start of simulation [bbl/day]","Decline Curve Data Source","=","EIA National Energy Modeling Systems 2017","mandatory",null,null,null,null,{"$error":"#REF!"},{"$error":"#REF!"},"=","EIA National Energy Modeling Systems 2017","mandatory"]
[null,null,null,null,null,null,null,null,null,null,{"$error":"#REF!"},{"$error":"#REF!"},0,0,0]
["Wells","Decline Qi oil [bbl/day]","Decline Curve Data Source","=","EIA National Energy Modeling Systems 2017","disabled",null,null,null,null,{"$error":"#REF!"},{"$error":"#REF!"},"=","EIA National Energy Modeling Systems 2017","disabled"]
["Wells","Decline Qi gas [Mcf/day]","Decline Curve Data Source","=","EIA National Energy Modeling Systems 2017","disabled",null,null,null,null,{"$error":"#REF!"},{"$error":"#REF!"},"=","EIA National Energy Modeling Systems 2017","disabled"]
["Wells","Decline Qi water [bbl/day]","Decline Curve Data Source","=","EIA National Energy Modeling Systems 2017","disabled",null,null,null,null,{"$error":"#REF!"},{"$error":"#REF!"},"=","EIA National Energy Modeling Systems 2017","disabled"]
["Wells","Decline Di [1/month]","Decline Curve Data Source","=","EIA National Energy Modeling Systems 2017","disabled",null,null,null,null,{"$error":"#REF!"},{"$error":"#REF!"},"=","EIA National Energy Modeling Systems 2017","disabled"]
["Wells","Decline b hyperbolic [dimensionless]","Decline Curve Data Source","=","EIA National Energy Modeling Systems 2017","disabled",null,null,null,null,{"$error":"#REF!"},{"$error":"#REF!"},"=","EIA National Energy Modeling Systems 2017","disabled"]
[null,null,null,null,null,null,null,null,null,null,{"$error":"#REF!"},{"$error":"#REF!"},0,0,0]
["Wells","Basin ID GHGRP AAPG","Unloading Activity Factor Data Source","=","None (fully specified)","disabled",null,null,null,null,{"$error":"#REF!"},{"$error":"#REF!"},"=","None (fully specified)","disabled"]
["Wells","Basin Name AAPG","Unloading Activity Factor Data Source","=","None (fully specified)","disabled",null,null,null,null,{"$error":"#REF!"},{"$error":"#REF!"},"=","None (fully specified)","disabled"]
["Wells","Formation Type GHGRP","Unloading Activity Factor Data Source","=","None (fully specified)","disabled",null,null,null,null,{"$error":"#REF!"},{"$error":"#REF!"},"=","None (fully specified)","disabled"]
[null,null,null,null,null,null,null,null,null,null,{"$error":"#REF!"},{"$error":"#REF!"},0,0,0]
["Wells","Unloading technology","Unloading Activity Factor Data Source","=","None (fully specified)","mandatory",null,null,null,null,{"$error":"#REF!"},{"$error":"#REF!"},"=","None (fully specified)","mandatory"]
[null,null,null,null,null,null,null,null,null,null,{"$error":"#REF!"},{"$error":"#REF!"},0,0,0]
["Wells","Basin ID GHGRP AAPG","Unloading Activity Factor Data Source","=","U.S. EPA Greenhouse Gas Reporting Program (GHGRP)","mandatory",null,null,null,null,{"$error":"#REF!"},{"$error":"#REF!"},"=","U.S. EPA Greenhouse Gas Reporting Program (GHGRP)","mandatory"]
["Wells","Basin Name AAPG","Unloading Activity Factor Data Source","=","U.S. EPA Greenhouse Gas Reporting Program (GHGRP)","mandatory",null,null,null,null,{"$error":"#REF!"},{"$error":"#REF!"},"=","U.S. EPA Greenhouse Gas Reporting Program (GHGRP)","mandatory"]
["Wells","Formation Type GHGRP","Unloading Activity Factor Data Source","=","U.S. EPA Greenhouse Gas Reporting Program (GHGRP)","mandatory",null,null,null,null,{"$error":"#REF!"},{"$error":"#REF!"},"=","U.S. EPA Greenhouse Gas Reporting Program (GHGRP)","mandatory"]
[null,null,null,null,null,null,null,null,null,null,{"$error":"#REF!"},{"$error":"#REF!"},0,0,0]
["Wells","Unloading technology","Unloading Activity Factor Data Source","=","U.S. EPA Greenhouse Gas Reporting Program (GHGRP)","disabled",null,null,null,null,{"$error":"#REF!"},{"$error":"#REF!"},"=","U.S. EPA Greenhouse Gas Reporting Program (GHGRP)","disabled"]
[null,null,null,null,null,null,null,null,null,null,{"$error":"#REF!"},{"$error":"#REF!"},0,0,0]
["Wells","Unloading frequency [event/yr]","Unloading Properties Data Source","=","None (fully specified)","mandatory",null,null,null,null,{"$error":"#REF!"},{"$error":"#REF!"},"=","None (fully specified)","mandatory"]
["Wells","Unloading shutin duration [sec]","Unloading Properties Data Source","=","None (fully specified)","mandatory",null,null,null,null,{"$error":"#REF!"},{"$error":"#REF!"},"=","None (fully specified)","mandatory"]
["Wells","Unloading venting duration [sec]","Unloading Properties Data Source","=","None (fully specified)","mandatory",null,null,null,null,{"$error":"#REF!"},{"$error":"#REF!"},"=","None (fully specified)","mandatory"]
["Wells","Unloading wholegas [scf/event]","Unloading Properties Data Source","=","None (fully specified)","mandatory",null,null,null,null,{"$error":"#REF!"},{"$error":"#REF!"},"=","None (fully specified)","mandatory"]
["Wells","Unloading onset age [months]","Unloading Properties Data Source","=","None (fully specified)","mandatory",null,null,null,null,{"$error":"#REF!"},{"$error":"#REF!"},"=","None (fully specified)","mandatory"]
["Wells","Unloading start time of day [hh:mm:ss]","Unloading Properties Data Source","=","None (fully specified)","mandatory",null,null,null,null,{"$error":"#REF!"},{"$error":"#REF!"},"=","None (fully specified)","mandatory"]
[null,null,null,null,null,null,null,null,null,null,{"$error":"#REF!"},{"$error":"#REF!"},0,0,0]
["Wells","Unloading frequency [event/yr]","Unloading Properties Data Source","=","Allen 2015, Allen 2020","optional",null,null,null,null,{"$error":"#REF!"},{"$error":"#REF!"},"=","Allen 2015, Allen 2020","optional"]
["Wells","Unloading shutin duration [sec]","Unloading Properties Data Source","=","Allen 2015, Allen 2020","optional",null,null,null,null,{"$error":"#REF!"},{"$error":"#REF!"},"=","Allen 2015, Allen 2020","optional"]
["Wells","Unloading venting duration [sec]","Unloading Properties Data Source","=","Allen 2015, Allen 2020","optional",null,null,null,null,{"$error":"#REF!"},{"$error":"#REF!"},"=","Allen 2015, Allen 2020","optional"]
["Wells","Unloading wholegas [scf/event]","Unloading Properties Data Source","=","Allen 2015, Allen 2020","optional",null,null,null,null,{"$error":"#REF!"},{"$error":"#REF!"},"=","Allen 2015, Allen 2020","optional"]
["Wells","Unloading onset age [months]","Unloading Properties Data Source","=","Allen 2015, Allen 2020","optional",null,null,null,null,{"$error":"#REF!"},{"$error":"#REF!"},"=","Allen 2015, Allen 2020","optional"]
["Wells","Unloading start time of day [hh:mm:ss]","Unloading Properties Data Source","=","Allen 2015, Allen 2020","optional",null,null,null,null,{"$error":"#REF!"},{"$error":"#REF!"},"=","Allen 2015, Allen 2020","optional"]
[null,null,null,null,null,null,null,null,null,null,{"$error":"#REF!"},{"$error":"#REF!"},0,0,0]
["Wells","Unloading frequency [event/yr]","Unloading technology","=","none","disabled",null,null,null,null,{"$error":"#REF!"},{"$error":"#REF!"},"=","none","disabled"]
["Wells","Unloading shutin duration [sec]","Unloading technology","=","none","disabled",null,null,null,null,{"$error":"#REF!"},{"$error":"#REF!"},"=","none","disabled"]
["Wells","Unloading venting duration [sec]","Unloading technology","=","none","disabled",null,null,null,null,{"$error":"#REF!"},{"$error":"#REF!"},"=","none","disabled"]
["Wells","Unloading wholegas [scf/event]","Unloading technology","=","none","disabled",null,null,null,null,{"$error":"#REF!"},{"$error":"#REF!"},"=","none","disabled"]
["Wells","Unloading onset age [months]","Unloading technology","=","none","disabled",null,null,null,null,{"$error":"#REF!"},{"$error":"#REF!"},"=","none","disabled"]
["Wells","Unloading start time of day [hh:mm:ss]","Unloading technology","=","none","disabled",null,null,null,null,{"$error":"#REF!"},{"$error":"#REF!"},"=","none","disabled"]
[null,null,null,null,null,null,null,null,null,null,{"$error":"#REF!"},{"$error":"#REF!"},0,0,0]
["Wells","Unloading frequency [event/yr]","Unloading Activity Factor Data Source","=","U.S. EPA Greenhouse Gas Reporting Program (GHGRP)","disabled",null,null,null,null,{"$error":"#REF!"},{"$error":"#REF!"},{"$f":"D124","v":"="},{"$f":"E124","v":"U.S. EPA Greenhouse Gas Reporting Program (GHGRP)"},{"$f":"F124","v":"disabled"}]
["Wells","Unloading shutin duration [sec]","Unloading Activity Factor Data Source","=","U.S. EPA Greenhouse Gas Reporting Program (GHGRP)","disabled",null,null,null,null,{"$error":"#REF!"},{"$error":"#REF!"},"=","U.S. EPA Greenhouse Gas Reporting Program (GHGRP)","disabled"]
["Wells","Unloading venting duration [sec]","Unloading Activity Factor Data Source","=","U.S. EPA Greenhouse Gas Reporting Program (GHGRP)","disabled",null,null,null,null,{"$error":"#REF!"},{"$error":"#REF!"},"=","U.S. EPA Greenhouse Gas Reporting Program (GHGRP)","disabled"]
["Wells","Unloading wholegas [scf/event]","Unloading Activity Factor Data Source","=","U.S. EPA Greenhouse Gas Reporting Program (GHGRP)","disabled",null,null,null,null,{"$error":"#REF!"},{"$error":"#REF!"},"=","U.S. EPA Greenhouse Gas Reporting Program (GHGRP)","disabled"]
["Wells","Unloading onset age [months]","Unloading Activity Factor Data Source","=","U.S. EPA Greenhouse Gas Reporting Program (GHGRP)","disabled",null,null,null,null,{"$error":"#REF!"},{"$error":"#REF!"},"=","U.S. EPA Greenhouse Gas Reporting Program (GHGRP)","disabled"]
["Wells","Unloading start time of day [hh:mm:ss]","Unloading Activity Factor Data Source","=","U.S. EPA Greenhouse Gas Reporting Program (GHGRP)","disabled",null,null,null,null,{"$error":"#REF!"},{"$error":"#REF!"},"=","U.S. EPA Greenhouse Gas Reporting Program (GHGRP)","disabled"]
[null,null,null,null,null,null,null,null,null,null,{"$error":"#REF!"},{"$error":"#REF!"},0,0,0]
["Wells","Unloading start time of day [hh:mm:ss]","Unloading technology","=","plunger auto","disabled",null,null,null,null,{"$error":"#REF!"},{"$error":"#REF!"},"=","plunger auto","disabled"]
[null,null,null,null,null,null,null,null,null,null,{"$error":"#REF!"},{"$error":"#REF!"},0,0,0]
["Wells","Unloading frequency [event/yr]","Unloading Properties Data Source","=","Allen 2015, Allen 2020; Timing from log by user","disabled",null,null,null,null,{"$error":"#REF!"},{"$error":"#REF!"},"=","Allen 2015, Allen 2020; Timing from log by user","disabled"]
["Wells","Unloading shutin duration [sec]","Unloading Properties Data Source","=","Allen 2015, Allen 2020; Timing from log by user","disabled",null,null,null,null,{"$error":"#REF!"},{"$error":"#REF!"},"=","Allen 2015, Allen 2020; Timing from log by user","disabled"]
["Wells","Unloading venting duration [sec]","Unloading Properties Data Source","=","Allen 2015, Allen 2020; Timing from log by user","disabled",null,null,null,null,{"$error":"#REF!"},{"$error":"#REF!"},"=","Allen 2015, Allen 2020; Timing from log by user","disabled"]
[null,null,null,null,null,null,null,null,null,null,{"$error":"#REF!"},{"$error":"#REF!"},0,0,0]
["Wells","Unloading wholegas [scf/event]","Unloading Properties Data Source","=","Allen 2015, Allen 2020; Timing from log by user","optional",null,null,null,null,{"$error":"#REF!"},{"$error":"#REF!"},"=","Allen 2015, Allen 2020; Timing from log by user","optional"]
[null,null,null,null,null,null,null,null,null,null,{"$error":"#REF!"},{"$error":"#REF!"},0,0,0]
["Wells","Unloading onset age [months]","Unloading Properties Data Source","=","Allen 2015, Allen 2020; Timing from log by user","disabled",null,null,null,null,{"$error":"#REF!"},{"$error":"#REF!"},"=","Allen 2015, Allen 2020; Timing from log by user","disabled"]
["Wells","Unloading start time of day [hh:mm:ss]","Unloading Properties Data Source","=","Allen 2015, Allen 2020; Timing from log by user","disabled",null,null,null,null,{"$error":"#REF!"},{"$error":"#REF!"},"=","Allen 2015, Allen 2020; Timing from log by user","disabled"]
[null,null,null,null,null,null,null,null,null,null,{"$error":"#REF!"},{"$error":"#REF!"},0,0,0]
["Wells","Completion methane [kg/event]","Completion Emission Factor Data Source","=","None (fully specified)","mandatory",null,null,null,null,{"$error":"#REF!"},{"$error":"#REF!"},"=","None (fully specified)","mandatory"]
[null,null,null,null,null,null,null,null,null,null,{"$f":"MATCH($B143,INDIRECT(\"'\"&$A143&\"'!$1:$1\"),0)","v":{"$error":"#REF!"}},{"$f":"MATCH($C143,INDIRECT(\"'\"&$A143&\"'!$1:$1\"),0)","v":{"$error":"#REF!"}},0,0,0]
["Wells","Completion methane [kg/event]","Completion Emission Factor Data Source","<>","None (fully specified)","disabled",null,null,null,null,{"$error":"#REF!"},{"$error":"#REF!"},"<>","None (fully specified)","disabled"]
[null,null,null,null,null,null,null,null,null,null,{"$error":"#REF!"},{"$error":"#REF!"},0,0,0]
["Wells","Completion duration [hr]","Completion Timeseries Data Source","=","None (fully specified)","mandatory",null,null,null,null,{"$error":"#REF!"},{"$error":"#REF!"},"=","None (fully specified)","mandatory"]
[null,null,null,null,null,null,null,null,null,null,{"$error":"#REF!"},{"$error":"#REF!"},0,0,0]
["Wells","Completion duration [hr]","Completion Timeseries Data Source","<>","None (fully specified)","disabled",null,null,null,null,{"$error":"#REF!"},{"$error":"#REF!"},{"$f":"D148","v":"<>"},{"$f":"E148","v":"None (fully specified)"},{"$f":"F148","v":"disabled"}]
[null,null,null,null,null,null,null,null,null,null,{"$error":"#REF!"},{"$error":"#REF!"},0,0,0]
["Wellpad_Tankflash","Dump Volume [bbl]","Tank Flash Properties Data Source","=","None (fully specified)","mandatory",null,null,null,null,{"$error":"#REF!"},{"$error":"#REF!"},"=","None (fully specified)","mandatory"]
["Wellpad_Tankflash","Dump Duration [sec]","Tank Flash Properties Data Source","=","None (fully specified)","mandatory",null,null,null,null,{"$error":"#REF!"},{"$error":"#REF!"},"=","None (fully specified)","mandatory"]
["Wellpad_Tankflash","Dump Peak Timing [sec]","Tank Flash Properties Data Source","=","None (fully specified)","mandatory",null,null,null,null,{"$error":"#REF!"},{"$error":"#REF!"},"=","None (fully specified)","mandatory"]
[null,null,null,null,null,null,null,null,null,null,{"$error":"#REF!"},{"$error":"#REF!"},0,0,0]
["Wellpad_Tankflash","Dump Volume [bbl]","Tank Flash Properties Data Source","=","Dump volume user specified; Timing CAMS-MEET 2020","mandatory",null,null,null,null,{"$error":"#REF!"},{"$error":"#REF!"},"=","Dump volume user specified; Timing CAMS-MEET 2020","mandatory"]
[null,null,null,null,null,null,null,null,null,null,{"$error":"#REF!"},{"$error":"#REF!"},0,0,0]
["Wellpad_Tankflash","Dump Duration [sec]","Tank Flash Properties Data Source","=","Dump volume user specified; Timing CAMS-MEET 2020","disabled",null,null,null,null,{"$error":"#REF!"},{"$error":"#REF!"},"=","Dump volume user specified; Timing CAMS-MEET 2020","disabled"]
["Wellpad_Tankflash","Dump Peak Timing [sec]","Tank Flash Properties Data Source","=","Dump volume user specified; Timing CAMS-MEET 2020","disabled",null,null,null,null,{"$error":"#REF!"},{"$error":"#REF!"},"=","Dump volume user specified; Timing CAMS-MEET 2020","disabled"]
[null,null,null,null,null,null,null,null,null,null,{"$error":"#REF!"},{"$error":"#REF!"},0,0,0]
["Wellpad_Tankflash","Dump Volume [bbl]","Tank Flash Properties Data Source","=","CAMS-MEET 2020","disabled",null,null,null,null,{"$error":"#REF!"},{"$error":"#REF!"},"=","CAMS-MEET 2020","disabled"]
["Wellpad_Tankflash","Dump Duration [sec]","Tank Flash Properties Data Source","=","CAMS-MEET 2020","disabled",null,null,null,null,{"$error":"#REF!"},{"$error":"#REF!"},"=","CAMS-MEET 2020","disabled"]
["Wellpad_Tankflash","Dump Peak Timing [sec]","Tank Flash Properties Data Source","=","CAMS-MEET 2020","disabled",null,null,null,null,{"$error":"#REF!"},{"$error":"#REF!"},"=","CAMS-MEET 2020","disabled"]
[null,null,null,null,null,null,null,null,null,null,{"$error":"#REF!"},{"$error":"#REF!"},0,0,0]
["Wellpad_Pneumatics","Pneumatics_ID","Pneumatic Controller Activity Factor Data Source","=","None (fully specified)","mandatory",null,null,null,null,{"$error":"#REF!"},{"$error":"#REF!"},"=","None (fully specified)","mandatory"]
["Wellpad_Pneumatics","Well_ID","Pneumatic Controller Activity Factor Data Source","=","None (fully specified)","mandatory",null,null,null,null,{"$error":"#REF!"},{"$error":"#REF!"},"=","None (fully specified)","mandatory"]
["Wellpad_Pneumatics","Facility_ID","Pneumatic Controller Activity Factor Data Source","=","None (fully specified)","mandatory",null,null,null,null,{"$error":"#REF!"},{"$error":"#REF!"},"=","None (fully specified)","mandatory"]
[null,null,null,null,null,null,null,null,null,null,{"$error":"#REF!"},{"$error":"#REF!"},0,0,0]
["Wellpad_Pneumatics","Pneumatics_ID","Pneumatic Controller Activity Factor Data Source","=","U.S. EPA Greenhouse Gas Reporting Program (GHGRP)","disabled",null,null,null,null,{"$error":"#REF!"},{"$error":"#REF!"},"=","U.S. EPA Greenhouse Gas Reporting Program (GHGRP)","disabled"]
["Wellpad_Pneumatics","Well_ID","Pneumatic Controller Activity Factor Data Source","=","U.S. EPA Greenhouse Gas Reporting Program (GHGRP)","disabled",null,null,null,null,{"$error":"#REF!"},{"$error":"#REF!"},"=","U.S. EPA Greenhouse Gas Reporting Program (GHGRP)","disabled"]
["Wellpad_Pneumatics","Facility_ID","Pneumatic Controller Activity Factor Data Source","=","U.S. EPA Greenhouse Gas Reporting Program (GHGRP)","disabled",null,null,null,null,{"$error":"#REF!"},{"$error":"#REF!"},"=","U.S. EPA Greenhouse Gas Reporting Program (GHGRP)","disabled"]
[null,null,null,null,null,null,null,null,null,null,{"$error":"#REF!"},{"$error":"#REF!"},0,0,0]
["Wellpad_Pneumatics","Pnuematic Device Subtype","Pneumatic Controller Activity Factor Data Source","=","U.S. EPA Greenhouse Gas Reporting Program (GHGRP)","disabled",null,null,null,null,{"$error":"#REF!"},{"$error":"#REF!"},"=","U.S. EPA Greenhouse Gas Reporting Program (GHGRP)","disabled"]
["Wellpad_Pneumatics","Pneumatic Emission Model","Pneumatic Controller Activity Factor Data Source","=","U.S. EPA Greenhouse Gas Reporting Program (GHGRP)","disabled",null,null,null,null,{"$error":"#REF!"},{"$error":"#REF!"},"=","U.S. EPA Greenhouse Gas Reporting Program (GHGRP)","disabled"]
["Wellpad_Pneumatics","Normal Emission Rate [wholegas scf/hr]","Pneumatic Controller Activity Factor Data Source","=","U.S. EPA Greenhouse Gas Reporting Program (GHGRP)","disabled",null,null,null,null,{"$error":"#REF!"},{"$error":"#REF!"},"=","U.S. EPA Greenhouse Gas Reporting Program (GHGRP)","disabled"]
["Wellpad_Pneumatics","Abnormal Emission Rate [wholegas scf/hr]","Pneumatic Controller Activity Factor Data Source","=","U.S. EPA Greenhouse Gas Reporting Program (GHGRP)","disabled",null,null,null,null,{"$error":"#REF!"},{"$error":"#REF!"},"=","U.S. EPA Greenhouse Gas Reporting Program (GHGRP)","disabled"]
["Wellpad_Pneumatics","Fraction of Abnormally Operating Device [dimensionless]","Pneumatic Controller Activity Factor Data Source","=","U.S. EPA Greenhouse Gas Reporting Program (GHGRP)","disabled",null,null,null,null,{"$error":"#REF!"},{"$error":"#REF!"},"=","U.S. EPA Greenhouse Gas Reporting Program (GHGRP)","disabled"]
["Wellpad_Pneumatics","Mean Time to Repeair (MTTR) [hr]","Pneumatic Controller Activity Factor Data Source","=","U.S. EPA Greenhouse Gas Reporting Program (GHGRP)","disabled",null,null,null,null,{"$error":"#REF!"},{"$error":"#REF!"},"=","U.S. EPA Greenhouse Gas Reporting Program (GHGRP)","disabled"]
[null,null,null,null,null,null,null,null,null,null,{"$error":"#REF!"},{"$error":"#REF!"},0,0,0]
["Wellpad_Pneumatics","Pnuematic Device Subtype","Pneumatic Controller Emission Factor Data Source","=","None (fully specified)","mandatory",null,null,null,null,{"$error":"#REF!"},{"$error":"#REF!"},"=","None (fully specified)","mandatory"]
["Wellpad_Pneumatics","Pneumatic Emission Model","Pneumatic Controller Emission Factor Data Source","=","None (fully specified)","mandatory",null,null,null,null,{"$error":"#REF!"},{"$error":"#REF!"},"=","None (fully specified)","mandatory"]
["Wellpad_Pneumatics","Normal Emission Rate [wholegas scf/hr]","Pneumatic Controller Emission Factor Data Source","=","None (fully specified)","mandatory",null,null,null,null,{"$error":"#REF!"},{"$error":"#REF!"},"=","None (fully specified)","mandatory"]
["Wellpad_Pneumatics","Abnormal Emission Rate [wholegas scf/hr]","Pneumatic Controller Emission Factor Data Source","=","None (fully specified)","mandatory",null,null,null,null,{"$error":"#REF!"},{"$error":"#REF!"},"=","None (fully specified)","mandatory"]
["Wellpad_Pneumatics","Fraction of Abnormally Operating Device [dimensionless]","Pneumatic Controller Emission Factor Data Source","=","None (fully specified)","mandatory",null,null,null,null,{"$error":"#REF!"},{"$error":"#REF!"},"=","None (fully specified)","mandatory"]
["Wellpad_Pneumatics","Mean Time to Repeair (MTTR) [hr]","Pneumatic Controller Emission Factor Data Source","=","None (fully specified)","mandatory",null,null,null,null,{"$error":"#REF!"},{"$error":"#REF!"},{"$f":"D183","v":"="},{"$f":"E183","v":"None (fully specified)"},{"$f":"F183","v":"mandatory"}]
[null,null,null,null,null,null,null,null,null,null,{"$error":"#REF!"},{"$error":"#REF!"},0,0,0]
["Wellpad_Pneumatics","Pnuematic Device Subtype","Pneumatic Controller Emission Factor Data Source","<>","None (fully specified)","mandatory",null,null,null,null,{"$error":"#REF!"},{"$error":"#REF!"},"<>","None (fully specified)","mandatory"]
[null,null,null,null,null,null,null,null,null,null,{"$error":"#REF!"},{"$error":"#REF!"},0,0,0]
["Wellpad_Pneumatics","Pnuematic Device Subtype","Pneumatic Controller Emission Factor Data Source","=","None (fully specified)","disabled",null,null,null,null,{"$error":"#REF!"},{"$error":"#REF!"},{"$f":"D187","v":"="},{"$f":"E187","v":"None (fully specified)"},{"$f":"F187","v":"disabled"}]
[null,null,null,null,null,null,null,null,null,null,{"$error":"#REF!"},{"$error":"#REF!"},0,0,0]
["Wellpad_Pneumatics","Pneumatic Emission Model","Pneumatic Controller Emission Factor Data Source","<>","None (fully specified)","disabled",null,null,null,null,{"$error":"#REF!"},{"$error":"#REF!"},{"$f":"D189","v":"<>"},{"$f":"E189","v":"None (fully specified)"},{"$f":"F189","v":"disabled"}]
["Wellpad_Pneumatics","Normal Emission Rate [wholegas scf/hr]","Pneumatic Controller Emission Factor Data Source","<>","None (fully specified)","disabled",null,null,null,null,{"$error":"#REF!"},{"$error":"#REF!"},"<>","None (fully specified)","disabled"]
["Wellpad_Pneumatics","Abnormal Emission Rate [wholegas scf/hr]","Pneumatic Controller Emission Factor Data Source","<>","None (fully specified)","disabled",null,null,null,null,{"$error":"#REF!"},{"$error":"#REF!"},"<>","None (fully specified)","disabled"]
["Wellpad_Pneumatics","Fraction of Abnormally Operating Device [dimensionless]","Pneumatic Controller Emission Factor Data Source","<>","None (fully specified)","disabled",null,null,null,null,{"$error":"#REF!"},{"$error":"#REF!"},"<>","None (fully specified)","disabled"]
["Wellpad_Pneumatics","Mean Time to Repeair (MTTR) [hr]","Pneumatic Controller Emission Factor Data Source","<>","None (fully specified)","disabled",null,null,null,null,{"$error":"#REF!"},{"$error":"#REF!"},"<>","None (fully specified)","disabled"]
[null,null,null,null,null,null,null,null,null,null,{"$error":"#REF!"},{"$error":"#REF!"},0,0,0]
["Wellpad_Pneumatics","Abnormal Emission Rate [wholegas scf/hr]","Pneumatic Emission Model","=","Fixed Emission Rate","disabled",null,null,null,null,{"$error":"#REF!"},{"$error":"#REF!"},"=","Fixed Emission Rate","disabled"]
["Wellpad_Pneumatics","Fraction of Abnormally Operating Device [dimensionless]","Pneumatic Emission Model","=","Fixed Emission Rate","disabled",null,null,null,null,{"$error":"#REF!"},{"$error":"#REF!"},"=","Fixed Emission Rate","disabled"]
["Wellpad_Pneumatics","Mean Time to Repeair (MTTR) [hr]","Pneumatic Emission Model","=","Fixed Emission Rate","disabled",null,null,null,null,{"$error":"#REF!"},{"$error":"#REF!"},"=","Fixed Emission Rate","disabled"]
[null,null,null,null,null,null,null,null,null,null,{"$error":"#REF!"},{"$error":"#REF!"},0,0,0]
["Wellpad_ChemicalInjectionPump","Emission Rate methane [kg/hr]","Chemical Injection Pump Emission Factor Data Source","<>","None (fully specified)","disabled",null,null,null,null,{"$error":"#REF!"},{"$error":"#REF!"},"<>","None (fully specified)","disabled"]
[null,null,null,null,null,null,null,null,null,null,{"$error":"#REF!"},{"$error":"#REF!"},0,0,0]
["Wellpad_ChemicalInjectionPump","Emission Rate methane [kg/hr]","Chemical Injection Pump Emission Factor Data Source","=","None (fully specified)","mandatory",null,null,null,null,{"$error":"#REF!"},{"$error":"#REF!"},"=","None (fully specified)","mandatory"]
[null,null,null,null,null,null,null,null,null,null,{"$error":"#REF!"},{"$error":"#REF!"},0,0,0]

{"sheet":"InternalUseOnly_Validation","index":6,"n_rows":139,"n_cols":13,"rows_kept":139,"cut":false,"hidden":true,"merged":[]}
["Sheet","Excel Column","Intake Data Key","Required/Optional/Not Used","Valid values"]
["Global_Simulation_Parameters","Plot Interval",null,"Required","SECONDS","MINUTES","HOURS","DAYS","MONTHS","YEARS"]
["Facility_List","Facility_ID","facilityID","Required"]
["Facility_List","Latitude","facilityLat","Required"]
["Facility_List","Longitude","facilityLong","Required"]
["Facility_List","Sector","sector","Required","Production","Gathering and Boosting","Processing","Transmission and Storage"]
["Facility_List","Leak Emission Data Source","leakDataSource","Required","User specified","Gathering Compressor Station Study (CSU)","Transmission and Storage Compressor Station Study (CSU)","U.S. EPA Greenhouse Gas Reporting Program (GHGRP)"]
["Facility_List","Leak Survey Method","surveyMethod","Required","OGI, Method 21, Infrared, or Acoustic","Method 21 as specified in §60.5397a"]
["Facility_List","Filename for User Specified Leaks","userLeakFile","Optional"]
["Facility_List","Pneumatic Data Source","pneumaticDataSource","Required","U.S. EPA Greenhouse Gas Reporting Program (GHGRP)","Allen 2015 EF","Allen 2015 EF; Allen 2020 Abnormal Operation"]
["Facility_List","Reporting Year","reportingYear","Required",2018,2017,2016,2015]
["Facility_List","Region","region","Required","Eastern","Western"]
["Facility_List","Composition Profile ID","profile_id","Required","=Composition!$A$2:$A$1048576"]
["Composition","Composition Profile ID","profile_id","Required"]
["Composition","Composition Data Source","profileDataSource","Required","user specified","thermodynamics","Cardoso 2019 correlation","AP-42","Subpart_C"]
["Composition","Condensate (or OIL) formation","condensate_prod","Required","yes","no"]
["Composition","Number of Separator Stages","n_stages","Required",1,2]
["Composition","API Gravity","api_gravity"]
["Composition","Gas to Oil Ratio [scf/bbl]","gor"]
["Composition","Temperature [F]","temp"]
["Composition","1st Stage Pressure [psia]","p1"]
["Composition","2nd Stage Pressure [psia]","p2"]
["Composition","Methane [molar fraction]","methane"]
["Composition","Ethane [molar fraction]","ethane"]
["Composition","Propane [molar fraction]","propane"]
["Composition","Butane [molar fraction]","butane"]
["Composition","Isobutane [molar fraction]","isobutane"]
["Composition","Pentane [molar fraction]","pentane"]
["Composition","Isopentane [molar fraction]","isopentane"]
["Composition","Hexanes [molar fraction]","hexanes"]
["Composition","CO2 [molar fraction]","carbon_dioxide"]
["Composition","N2 [molar fraction]","nitrogen"]
["Composition","H2S [molar fraction]","hydrogen_sulfide"]
["Compressors","Compressor_ID","compressorID","Required"]
["Compressors","Facility_ID","facilityID","Required","=Facility_List!$A$2:$A$1048576"]
["Compressors","Type","compressorType","Required","Centrifugal","Reciprocating"]
["Compressors","Data Source","compressorDataSource","Required","Gathering Compressor Station Study (CSU)","Transmission and Storage Compressor Station Study (CSU)","U.S. EPA Greenhouse Gas Reporting Program (GHGRP)","User specified"]
["Compressors","Filename for User Specified Data Source","userCompressorFile","Optional"]
["Compressors","Driver Type","driverData.driverType","Optional",null,"Two stroke lean burn","Four stroke lean burn","Four stroke rich burn","Turbine","Electric motor"]
["Compressors","Driver Size [HP]","driverData.driverSize","Optional"]
["Compressors","Cylinders","driverData.cylinders","Optional"]
["Compressors","Seal Type","driverData.sealType","Optional",null,"Dry","Wet"]
["Compressors","Fuel Consumption [BTU/bhp-hr]","driverData.efficiency","Optional"]
["Compressors","Combustion Emission Reference","combustionEmissionReference","Required",null,"EPA AP-42","40 CFR Subpart C"]
["Compressors","Average Loading [%]","driverData.loading.mu","Optional"]
["Compressors","Loading Standard Deviation [%]","driverData.loading.sigma","Optional"]
["Compressors","OP Mode Hours per Year [Hours]","operationData.uptime","Optional"]
["Compressors","NOP Mode Hours per Year [Hours]","operationData.percentNOP","Optional"]
["Compressors","NOD Mode Hours per Year [Hours]","operationData.percentNOD","Optional"]
["Compressors","OP Mode Runtime [Hours]","operationData.opTime","Optional"]
["Compressors","NOP Mode Runtime [Hours]","operationData.nopTime","Optional"]
["Compressors","NOD Mode Runtime [Hours]","operationData.nodTime","Optional"]
["Compressors","Starter Vent Emission Volume [SCF]","starterVentVolume","Optional"]
["Compressors","Starter Vent Duration [s]","starterVentDuration","Optional"]
["Compressors","Blowdown Vent Emission Volume [SCF]","blowdownVentVolume","Optional"]
["Compressors","Blowdown Vent Duration [s]","blowdownVentDuration","Optional"]
["Dehydrators","Dehydrator_ID","dehydratorID","Required"]
["Dehydrators","Facility_ID","facilityID","Required","=Facility_List!$A$2:$A$1048576"]
["Dehydrators","Throughput","dehydratorType","Required","< 0.4 MMSCF/day","≥ 0.4 MMSCF/day"]
["Dehydrators","Sector","sector","Required","Production","Gathering and Boosting","Processing","Transmission and Storage"]
["Dehydrators","Vent to Flare","flared","Optional",null,true,false]
["Dehydrators","Vent to Atmosphere","vented","Optional",null,true,false]
["Dehydrators","Flared Methane Emissions [metric tons/year]","flaredCH4","Optional"]
["Dehydrators","Vented Methane Emissions [metric tons/year]","ventedCH4","Optional"]
["Other_Equipment","Facility_ID","facilityID","Required","=Facility_List!$A$2:$A$1048576"]
["Other_Equipment","AGRU","AGRU","Required"]
["Other_Equipment","Separators","separator","Required"]
["Other_Equipment","Tanks","tank","Required"]
["Other_Equipment","Meter/Piping","yardPiping","Required"]
["Other_Equipment","In-line Heater","inlineHeater","Required"]
["Wells","Well_ID","wellID","Required"]
["Wells","Facility_ID","facilityID",null,"=Facility_List!$A$2:$A$1048576"]
["Wells","Composition Profile ID","profile_id",null,"=Composition!$A$2:$A$1048576"]
["Wells","FIPS County Identifier","fips","Echoed"]
["Wells","County","county","Required","=InternalUseOnly_Feedbacks!$A$2:$A$3234"]
["Wells","Decline Curve Data Source","declineCurveDataSrouce","Required","None (fully specified)","EIA National Energy Modeling Systems 2017"]
["Wells","Shale Play Name EIA NEMS","shale_play_nems","Optional","Bakken","Barnett","Woodford","Eagle Ford","Fayetteville","Haynesville-Bossier","Marcellus","Spraberry","Wolfcamp"]
["Wells","Gas or Oil Well","gas_or_oil","Required","GAS","OIL"]
["Wells","Gas Production at start of simulation [Mcf/day]","gas_Mcf_day"]
["Wells","Oil Production  at start of simulation [bbl/day]","oil_bbl_day"]
["Wells","Water Production  at start of simulation [bbl/day]","water_bbl_day"]
["Wells","Last Completion Date","last_completion_date"]
["Wells","Decline Qi oil [bbl/day]","Q_i_oil_bbl_per_day"]
["Wells","Decline Qi gas [Mcf/day]","Q_i_gas_Mcf_per_day"]
["Wells","Decline Qi water [bbl/day]","Q_i_water_bbl_per_day"]
["Wells","Decline Di [1/month]","D_i_per_month"]
["Wells","Decline b hyperbolic [dimensionless]","b_hyperbolic"]
["Wells","Unloading Activity Factor Data Source","unloadingAFDataSource","Required","None (fully specified)","U.S. EPA Greenhouse Gas Reporting Program (GHGRP)"]
["Wells","Basin ID GHGRP AAPG","basin_id_aapg","Echoed"]
["Wells","Basin Name AAPG","basinName","Optional","=InternalUseOnly_Feedbacks!$G$2:$G$113"]
["Wells","Formation Type GHGRP","formation_type","Optional","Conventional","Unconventional","Oil","High permeability gas","Other_Equipments tight reservoir rock","Coal seam","Shale gas"]
["Wells","Unloading technology","unloading_technology",null,"none","no plunger","plunger manual","plunger auto"]
["Wells","Unloading Properties Data Source","unloadingPropDataSource","Required","None (fully specified)","Allen 2015, Allen 2020","Allen 2015, Allen 2020; Timing Vaughn 2018","Allen 2015, Allen 2020; Timing from log by user"]
["Wells","Unloading frequency [event/yr]","unloading_freq_per_yr"]
["Wells","Unloading shutin duration [sec]","shutin_duration_sec"]
["Wells","Unloading venting duration [sec]","venting_duration_sec"]
["Wells","Unloading wholegas [scf/event]","unloading_wholegas_scf_event"]
["Wells","Unloading onset age [months]","unloading_onset_age_months"]
["Wells","Unloading start time of day [hh:mm:ss]","unloading_start_time_of_day"]
["Wells","Completion Emission Factor Data Source","completionEFDataSource","Required","None (fully specified)","U.S. EPA Greenhouse Gas Reporting Program (GHGRP)","Allen 2013 Potential emission","Allen 2013 Measured emission"]
["Wells","Completion Timeseries Data Source","completionTSDataSource","Required","None (fully specified)","Duration sampled from Allen 2013, Fixed rate","Two stage duration with temporal variation from Allen 2013"]
["Wells","Completion methane [kg/event]","completion_methane_kg_event"]
["Wells","Completion duration [hr]","completion_duration_hr"]
["Wells","Tank Flash Properties Data Source","tankflashDataSource","Required","None (fully specified)","Dump volume user specified; Timing CAMS-MEET 2020","CAMS-MEET 2020"]
["Wells","Pneumatic Controller Activity Factor Data Source","pneumaticAFDataSource","Required","None (fully specified)","U.S. EPA Greenhouse Gas Reporting Program (GHGRP)"]
["Wells","Pneumatic Controller Emission Factor Data Source","pneumaticEFDataSource","Required","None (fully specified)","U.S. EPA Greenhouse Gas Reporting Program (GHGRP)","Allen 2015 EF","Allen 2015 EF; Allen 2020 Abnormal Operation"]
["Wells","Chemical Injection Pump Activity Factor Data Source","chemicalInjectionPumpAFDataSource","Required","None (fully specified)","U.S. EPA Greenhouse Gas Reporting Program (GHGRP)"]
["Wells","Chemical Injection Pump Emission Factor Data Source","chemicalInjectionPumpEFDataSource","Required","None (fully specified)","U.S. EPA Greenhouse Gas Reporting Program (GHGRP)","Allen 2013 EF"]
["Wellpad_TankFlash","Tank_ID","tankID"]
["Wellpad_TankFlash","Well_ID","wellID",null,"=Wells!$A$2:$A$1048576"]
["Wellpad_TankFlash","Facility_ID","facilityID",null,"=Facility_List!$A$2:$A$1048576"]
["Wellpad_TankFlash","Tank Fluid Type","fluid_type","Required","condensate","water"]
["Wellpad_TankFlash","Tank Flash Properties Data Source","tankflashDataSource_copy","Echoed"]
["Wellpad_TankFlash","Dump Volume [bbl]","dump_volume_bbl"]
["Wellpad_TankFlash","Dump Duration [sec]","dump_duration_seconds"]
["Wellpad_TankFlash","Dump Peak Timing [sec]","dump_peak_seconds"]
["Wellpad_Pneumatics","Pneumatics_ID","pneumaticsID"]
["Wellpad_Pneumatics","Well_ID","wellID",null,"=Wells!$A$2:$A$1048576"]
["Wellpad_Pneumatics","Facility_ID","facilityID",null,"=Facility_List!$A$2:$A$1048576"]
["Wellpad_Pneumatics","Pneumatic Activity Factor Data Source","pneumaticAFDataSource","Echoed"]
["Wellpad_Pneumatics","Pneumatic Emission Factor Data Source","pneumaticEFDataSource","Echoed"]
["Wellpad_Pneumatics","Pneumatic Device Type","pneumaticDeviceType","Required","Pneumatic Controller","Pneumatic Pump"]
["Wellpad_Pneumatics","Pnuematic Device Subtype","pneumaticDeviceSubtype","Required","intermittent","lowbleed","highbleed","diaphragm","piston","unknown"]
["Wellpad_Pneumatics","Pneumatic Emission Model","pneumaticEmModel","Required","Fixed Emission Rate","Two states (Normal/Abnormal) with constant MTTR and Abnormal Fraction"]
["Wellpad_Pneumatics","Normal Emission Rate [wholegas scf/hr]","wholegasNormalScfhr"]
["Wellpad_Pneumatics","Abnormal Emission Rate [wholegas scf/hr]","wholegasAbnormalScfhr"]
["Wellpad_Pneumatics","Fraction of Abnormally Operating Device [dimensionless]","pAbnormal"]
["Wellpad_Pneumatics","Mean Time to Repeair (MTTR) [hr]","MTTR_hr"]
["Wellpad_ChemicalInjectionPump","ChemicalInjectionPump_ID","chemicalInjectionPumpID"]
["Wellpad_ChemicalInjectionPump","Well_ID","wellID",null,"=Wells!$A$2:$A$1048576"]
["Wellpad_ChemicalInjectionPump","Facility_ID","facilityID",null,"=Facility_List!$A$2:$A$1048576"]
["Wellpad_ChemicalInjectionPump","Chemical Injection Pump Activity Factor Data Source","chemicalInjectionPumpAFDataSource","Echoed"]
["Wellpad_ChemicalInjectionPump","Chemical Injection Pump Emission Factor Data Source","chemicalInjectionPumpEFDataSource","Echoed"]
["Wellpad_ChemicalInjectionPump","Emission Rate methane [kg/hr]","CH4kghr"]
["Wellpad_UnloadingTiming","Well_ID","wellID",null,"=Wells!$A$2:$A$1048576"]
["Wellpad_UnloadingTiming","Facility_ID","facilityID",null,"=Facility_List!$A$2:$A$1048576"]
["Wellpad_UnloadingTiming","Venting Start DateTime [yyyy-mm-dd HH:MM:SS]","venting_start_datetime"]
["Wellpad_UnloadingTiming","Venting Duration [hr]","venting_duration_hr"]
["Wellpad_UnloadingTiming","Shut in Duration prior to venting [hr]","shutin_duration_hr"]